Workbook

Sheet Intro and Data Inputs
B1: GASB 75 Alternative Measurement Method for LEOFF 1
B3: Welcome to the Office of the State Actuary's AMM Online Tool
B4: Intended Use
C5: This Alternative Measurement Method (AMM) Online Tool is intended to assist local government employers in Washington State covering Law Enforcement Officers' and Fire Fighters' Retirement System (LEOFF) Plan 1 retiree healthcare costs with their reporting requirements for Other Post-Employment Benefits (OPEB) healthcare obligations under Governmental Accounting Standards Board (GASB) Statement No. 75. Please review the following explanation and directions below, along with the Additional Disclosures and Certification Letter before proceeding.
B7: Requirements to use this tool
B8: The following requirements must be met to use this tool:
C9: (1) Employers must be local government entities in Washington State. Employers outside the State of Washington are not eligible to use this tool.
C10: (2) Covered members must be active in or retired from LEOFF 1. Please see the Public Employees' Benefit Board (PEBB) AMM Online Tool for reporting PEBB healthcare obligations.
C11: (3) Employers must have less than 100 total LEOFF 1 members.
B13: Steps to calculate your reporting results
C14: (1) Enable Macros. For Excel versions 2010 or greater, there should be a tan strip across the top of the screen when you open Excel - please allow macros to run.
C15: (2) Gather member information on the age and annual payroll (if any) of active members and retirees. Please see the Additional Disclosures for further guidance.
C16: (3) Group active member and retiree information by the age divisions according to the Data Inputs table below.
C17: (4) Calculate the average age for each age division.
C18: (5) Copy your data into the Data Inputs table below. There has been an effort by OSA to screen unreasonable inputs into the tool. However, the ultimate responsibility of the accuracy of the inputs, and in effect the results, falls on the user of the tool.
C19: (6) Determine if you want to include Excise Tax in your reporting results.
C20: (7) Press the Calculate button. Please print the entire workbook for your records (5 pages).
C22: Data Inputs
C23: LEOFF 1 Members (Actives and Retirees)
C24: Age Divisions | D24: 55-64 | E24: 65-69 | F24: 70-74 | G24: 75+
C25: Number of Members | D25: 0 | E25: 0 | F25: 0 | G25: 0
C26: Average Age | D26: 60 | E26: 67 | F26: 72 | G26: 80
C27: Annual Covered Employee Payroll = | E27: 0
B29: Excise Tax
C30: The federal Patient Protection and Affordable Care Act levies a 40 percent excise tax on employers for the value of health plan costs that exceed certain thresholds. Plans that exceed this threshold are considered high cost or "Cadillac" health plans. The excise tax impacts the medical inflation trend for these "Cadillac" plans. Medical trend, claims costs, and aging factors were determined by healthcare actuaries at Milliman. The medical inflation trend is the percent that medical costs are expected to increase in future years. This tool allows the user to calculate costs with and without the excise tax included in the medical inflation trend. The inclusion of this excise tax in the tool does not represent tax advice or an opinion that this tax applies to this plan. Please consult your auditor or tax advisor for further information. Please see the 2016 LEOFF 1 Medical Benefits Actuarial Valuation Report on our website for more information.
B32: Do you want to include Excise Tax in your reporting results?
I38: Page 1 of 5

Sheet GASB Results
B1: LEOFF 1 - GASB 75 Reporting Results and Required Disclosures
C3: Schedule of Changes in Total Other Liability and Related Ratios
C4: Measurement Date of June 30, 2018
C5: Total OPEB Liability (TOL)
C6: Service Cost* | E6: =ROUND(Log!L5,0) -> 0
C7: Interest Cost | E7: =ROUND(((E6+E13)*Lookups!L1+E10*((1+Lookups!L1)^0.5-1)),0) -> 0
C8: Changes in Experience Data and Assumptions | E8: =E12-E6-E7-E10 -> 0
C9: Changes in Benefit Terms | E9: 0
C10: Estimated Benefit Payments | E10: =-ROUND(SUM(Log!G7:J7)/AVERAGE(Trends!B3:H3),0) -> 0
C11: Other | E11: 0
C12: Net Change in Total OPEB Liability | E12: =E14-E13 -> 0
C13: Total OPEB Liability - Beginning | E13: =ROUND((Log!L6-E6-E10)/(1+Lookups!L1),0) -> 0
C14: Total OPEB Liability - Ending | E14: =ROUND(Log!L11,0) -> 0
C15: Covered Employee Payroll | E15: ='Intro and Data Inputs'!E27 -> 0
C16: TOL as a Percentage of Covered Payroll | E16: =IFERROR(E14/E15, "N/A") -> N/A
C18: OPEB Expense for Fiscal Year Ending June 30, 2018
D19: Service Cost* | E19: ='GASB Results'!E6 -> 0
D20: Interest Cost | E20: ='GASB Results'!E7 -> 0
D21: Changes in Experience Data and Assumptions | E21: ='GASB Results'!E8 -> 0
D22: Changes in Benefit Terms | E22: =E9 -> 0
D23: Other Changes in Fiduciary Net Position | E23: 0
D24: Total OPEB Expense | E24: =SUM(E19:E23) -> 0
D26: Transactions Subsequent to Measurement Date | E26: N/A* | F26: *See Additional Disclosures tab for more details and guidance.
C28: Sensitivity Analysis
C29: Total OPEB Liability | E29: 1% Decrease | F29: Current | G29: 1% Increase
C30: Discount Rate | E30: =ROUND(Log!L26,0) -> 0 | F30: ='GASB Results'!E14 -> 0 | G30: =ROUND(Log!L31,0) -> 0
C31: Healthcare Trend | E31: =ROUND(Log!L16,0) -> 0 | F31: ='GASB Results'!E14 -> 0 | G31: =ROUND(Log!L21,0) -> 0
C33: Methodology
C34: Actuarial Valuation Date | E34: ="6/30/"&Lookups!L14 -> 6/30/2018
C35: Actuarial Measurement Date | E35: =E34 -> 6/30/2018
C36: Actuarial Cost Method | E36: Entry Age*
C37: Amortization Method | E37: Recognized Immediately
C38: Asset Valuation Method | E38: N/A (No Assets)
C39: Assumptions
C40: Discount Rate1
C41: Beginning of Measurement Year | E41: =Lookups!L1 -> 0.0358
C42: End of Measurement Year | E42: =Lookups!L2 -> 0.0387
C43: Healthcare Trend Rates2
D44: Medical Costs | E44: Initial rate is approximately 12% / 7% for Excise Tax / No Excise Tax, trends down to about 5% in 2080.
D45: Long-Term Care | E45: 0.045
D46: Medicare Part B Premiums | E46: Approximately 5%, varies by year.
C47: Mortality Rates (assume 100% male population)*
C48: Base Mortality Table | E48: RP-2000 Mortality Table
C49: Age Setback | E49: +1 year Healthy / -2 years Disabled Blended 50%/50% Healthy/Disabled
C50: Mortality Improvements | E50: 100% Scale BB
C51: Projection Period | E51: Generational
C52: Medicare Participation Rate | E52: 1
C53: 1Source: Bond Buyer General Obligation 20-Bond Municipal Index.
C54: 2For additional detail on the healthcare trend rates, please see OSA's 2016 LEOFF 1 Medical Benefits Actuarial Valuation Report.
H55: Page 2 of 5

Sheet Additional Disclosures
B1: LEOFF 1 - AMM Online Tool Additional Disclosures
C3: This tab is intended to:
C4: (1) Provide guidance on concepts that require users to apply their judgment and/or consult with their auditor.
C5: (2) Document the assumptions and methods we employed for purposes of this AMM Online Tool that vary from the underlying GASB 45 actuarial valuation we performed at the plan-level.
C7: Data Inputs:
C9: We assume the inputs you provide are as of the measurement date of 6/30/2018. If you are not able to determine the counts and average ages as of that time, utilizing your current data or as of your reporting date may be reasonable. Please consult with your auditor for further guidance.
C11: Transactions Subsequent to Measurement Date:
C13: ="If your reporting date is after the 6/30/2018 measurement date, you will include the dollar amount of benefits paid between measurement and reporting date in your accounting results."&" You may use your actual benefit payments for this period (if known), or our estimate as provided below. Please see the BARS Manual from the State Auditor's Office for more information on how to incorporate this into your financial statements." -> If your reporting date is after the 6/30/2018 measurement date, you will include the dollar amount of benefits paid between measurement and reporting date in your accounting results. You may use your actual benefit payments for this period (if known), or our estimate as provided below. Please see the BARS Manual from the State Auditor's Office for more information on how to incorporate this into your financial statements.
C15: ="We estimate your first-year projected monthly benefits are $"&ROUND(Log!L7/12,0)&". If your reporting date is after the measurement date, multiply this amount by the number of months between your fiscal year-end and the measurement date. We believe this approach will serve as a reasonable estimate under this AMM Online Tool." -> We estimate your first-year projected monthly benefits are $0. If your reporting date is after the measurement date, multiply this amount by the number of months between your fiscal year-end and the measurement date. We believe this approach will serve as a reasonable estimate under this AMM Online Tool.
C17: ="In other words, if you have a 12/31/2018 reporting date, your estimated transactions subsequent to the measurement date would be $"&ROUND(Log!L7/12,0)&" x 6 = $"&ROUND(Log!L7/2,0)&"." -> In other words, if you have a 12/31/2018 reporting date, your estimated transactions subsequent to the measurement date would be $0 x 6 = $0.
C19: OSA actuarial reports relied upon for purposes of this AMM Online Tool:
C21: 2016 LEOFF 1 Medical Benefits Actuarial Valuation Report
C23: Specific assumptions we made when developing this AMM Online Tool:
C25: ◊ We assumed any remaining active members will retire immediately following the measurement date.
C26: ▪ We made this simplifying assumption considering that over 99 percent of LEOFF 1 members are already retired and the remaining members are eligible to retire.
C27: ▪ This approach inherently assumes that all liabilities are fully earned and the Service Cost equals zero. In other words, the Entry Age Normal Total OPEB Liability is by definition equal to the Present Value of Future Benefits. Further, we implicitly do not need to make an assumption with respect to Projected Salary Changes.
C29: ◊ Each cohort is assumed to be 100 percent male.
C30: ▪ As of the measurement date, greater than 98 percent of the eligible LEOFF 1 population is male. For purposes of this AMM Online Tool, we believe this simplification is reasonable and note that it only impacts the mortality assumptions selected. We will continue to monitor this assumption for future versions of the tool.
C32: ◊ We selected the four age-based cohorts for this AMM Online Tool based upon the overall distribution of the LEOFF 1 eligible population. We believe this grouping approach is reasonable for purposes of the AMM.
C34: ◊ Medical and long-term care costs were projected from June 30, 2016 to the measurement date of June 30, 2018 using the healthcare trend rates detailed in the 2016 LEOFF 1 Medical Benefits Actuarial Valuation Report.
C41: We would like to hear your feedback if you used this tool. Please send us an email at:
C42: State.Actuary@leg.wa.gov
C44: Glossary
C45: Link to the OSA website that includes definitions for frequently used actuarial and OPEB terms.
D46: Page 3 of 5

Sheet Certification Letter
B1: GASB 75 AMM Online Tool Actuarial Certification
D59: Page 4 of 5
B61: GASB 75 AMM Online Tool Actuarial Certification (Continued)
D117: Page 5 of 5

Sheet Inactive (hidden)
A1: Inactives | B1: 1 | D1: Medical | E1: Medicare | G1: LTC - Inst. | H1: LTC - Non Inst. | J1: Medical - Age<65 | L1: Medical - Age>=65 | N1: Medicare | Q1: LTC - Inst. | T1: LTC - Non Inst. | X1: Medical | Y1: Medicare | AB1: LTC - Inst. | AC1: LTC - Non Inst. | AI1: Pct Male | AJ1: 1 | AP1: PV of
A2: Year | D2: Cost | E2: Cost | G2: Cost | H2: Cost | J2: Trend | K2: Rel Trend | L2: Trend | M2: Rel Trend | N2: Trend | O2: Rel Trend | Q2: Rate | R2: Trend | S2: Rel Trend | T2: Rate | U2: Trend | V2: Rel Trend | X2: Net Cost | Y2: Net Cost | Z2: Total | AB2: Net Cost | AC2: Net Cost | AD2: Total | AF2: Grand Total | AH2: Mort - M | AI2: Mort - F | AJ2: Mortality | AK2: Survive | AL2: Interest | AM2: Pay Timing | AP2: Benefits
A3: =ValYear -> 2018 | B3: 80 | D3: =VLOOKUP(B3,Lookups!A:B,2) -> 16563.61 | E3: =VLOOKUP(B3,Lookups!A:C,3) -> 1506.57 | G3: =VLOOKUP(B3,Lookups!A:D,4) -> 193012.84 | H3: =VLOOKUP(B3,Lookups!A:E,5) -> 102315.75 | J3: =VLOOKUP(A3,Trends!$A$3:$H$94,IF(ExFlg=0,4,2))+Sens -> 1.184 | K3: 1 | L3: =VLOOKUP(A3,Trends!$A$3:$H$94,IF(ExFlg=0,5,3))+Sens -> 1.123 | M3: 1 | N3: =VLOOKUP(A3,Trends!$A$3:$H$94,6)+Sens -> 1.0565 | O3: 1 | Q3: =IF(B3<=120,VLOOKUP(B3,Lookups!$A$3:$I$103,8,FALSE),"") -> 0.025 | R3: =VLOOKUP(A3,Trends!$A$3:$H$94,7)+Sens -> 1.045 | S3: 1 | T3: =IF(B3<=120,VLOOKUP(B3,Lookups!$A$3:$I$103,9,FALSE),"") -> 0.0399 | U3: =VLOOKUP(A3,Trends!$A$3:$H$94,8)+Sens -> 1.045 | V3: 1 | X3: =IF(B3<=120,IF(B3<65,D3*K3,D3*M3),"") -> 16563.61 | Y3: =IF(B3<=120,E3*O3,"") -> 1506.57 | Z3: =IF(B3<=120,X3+Y3,"") -> 18070.18 | AB3: =IF(B3<=120,G3*Q3*S3,"") -> 4825.321 | AC3: =IF(B3<=120,H3*T3*V3,"") -> 4082.398425 | AD3: =IF(B3<=120,AB3+AC3,"") -> 8907.719425 | AF3: =IF(B3<=120,Z3+AD3, "") -> 26977.89942 | AH3: =IF($B3<121,VLOOKUP($B3,Lookups!A:F,6)*(1-VLOOKUP($B3,Lookups!$N$3:$P$103,2))^($A3-$A$3),"") -> 0.052723 | AI3: =IF($B3<121,VLOOKUP($B3,Lookups!A:G,7)*(1-VLOOKUP($B3,Lookups!$N$3:$P$103,3))^($A3-$A$3),"") -> 0.0430805 | AJ3: =IF(B3<121,(PCTMALE*AH3+(1-PCTMALE)*AI3),"") -> 0.052723 | AK3: 1 | AL3: 1 | AM3: =IF(AJ3="","",ROUND((13/24)+(11/24)*(1/(1+IntRt))*(1-AJ3),6)) -> 0.960829 | AP3: =IF(B3<=120,AF3*AK3*AL3*AM3,"") -> 25921.14813
A4: =1+A3 -> 2019 | B4: =1+B3 -> 81 | D4: =VLOOKUP(B4,Lookups!A:B,2) -> 16591.66 | E4: =VLOOKUP(B4,Lookups!A:C,3) -> 1506.57 | G4: =VLOOKUP(B4,Lookups!A:D,4) -> 194000.12 | H4: =VLOOKUP(B4,Lookups!A:E,5) -> 102315.75 | J4: =VLOOKUP(A4,Trends!$A$3:$H$94,IF(ExFlg=0,4,2))+Sens -> 1.161 | K4: =K3*J3 -> 1.184 | L4: =VLOOKUP(A4,Trends!$A$3:$H$94,IF(ExFlg=0,5,3))+Sens -> 1.111 | M4: =M3*L3 -> 1.123 | N4: =VLOOKUP(A4,Trends!$A$3:$H$94,6)+Sens -> 1.057 | O4: =O3*N3 -> 1.0565 | Q4: =IF(B4<=120,VLOOKUP(B4,Lookups!$A$3:$I$103,8,FALSE),"") -> 0.0284 | R4: =VLOOKUP(A4,Trends!$A$3:$H$94,7)+Sens -> 1.045 | S4: =S3*R3 -> 1.045 | T4: =IF(B4<=120,VLOOKUP(B4,Lookups!$A$3:$I$103,9,FALSE),"") -> 0.043 | U4: =VLOOKUP(A4,Trends!$A$3:$H$94,8)+Sens -> 1.045 | V4: =V3*U3 -> 1.045 | X4: =IF(B4<=120,IF(B4<65,D4*K4,D4*M4),"") -> 18632.43418 | Y4: =IF(B4<=120,E4*O4,"") -> 1591.691205 | Z4: =IF(B4<=120,X4+Y4,"") -> 20224.12538 | AB4: =IF(B4<=120,G4*Q4*S4,"") -> 5757.535561 | AC4: =IF(B4<=120,H4*T4*V4,"") -> 4597.558226 | AD4: =IF(B4<=120,AB4+AC4,"") -> 10355.09379 | AF4: =IF(B4<=120,Z4+AD4, "") -> 30579.21917 | AH4: =IF($B4<121,VLOOKUP($B4,Lookups!A:F,6)*(1-VLOOKUP($B4,Lookups!$N$3:$P$103,2))^($A4-$A$3),"") -> 0.057812605 | AI4: =IF($B4<121,VLOOKUP($B4,Lookups!A:G,7)*(1-VLOOKUP($B4,Lookups!$N$3:$P$103,3))^($A4-$A$3),"") -> 0.047224918 | AJ4: =IF(B4<121,(PCTMALE*AH4+(1-PCTMALE)*AI4),"") -> 0.057812605 | AK4: =IF(B4<121,AK3*(1-AJ3),"") -> 0.947277 | AL4: =IF(B4<121,AL3/(1+IntRt),"") -> 0.9654373431 | AM4: =IF(AJ4="","",ROUND((13/24)+(11/24)*(1/(1+IntRt))*(1-AJ4),6)) -> 0.958577 | AP4: =IF(B4<=120,AF4*AK4*AL4*AM4,"") -> 26807.38688
A5: 2020 | B5: 82 | D5: =VLOOKUP(B5,Lookups!A:B,2) -> 16619.72 | E5: =VLOOKUP(B5,Lookups!A:C,3) -> 1506.57 | G5: =VLOOKUP(B5,Lookups!A:D,4) -> 194987.4 | H5: =VLOOKUP(B5,Lookups!A:E,5) -> 102315.75 | J5: =VLOOKUP(A5,Trends!$A$3:$H$94,IF(ExFlg=0,4,2))+Sens -> 1.057 | K5: =K4*J4 -> 1.374624 | L5: =VLOOKUP(A5,Trends!$A$3:$H$94,IF(ExFlg=0,5,3))+Sens -> 1.06 | M5: =M4*L4 -> 1.247653 | N5: =VLOOKUP(A5,Trends!$A$3:$H$94,6)+Sens -> 1.057 | O5: =O4*N4 -> 1.1167205 | Q5: =IF(B5<=120,VLOOKUP(B5,Lookups!$A$3:$I$103,8,FALSE),"") -> 0.0318 | R5: =VLOOKUP(A5,Trends!$A$3:$H$94,7)+Sens -> 1.045 | S5: =S4*R4 -> 1.092025 | T5: =IF(B5<=120,VLOOKUP(B5,Lookups!$A$3:$I$103,9,FALSE),"") -> 0.0462 | U5: =VLOOKUP(A5,Trends!$A$3:$H$94,8)+Sens -> 1.045 | V5: =V4*U4 -> 1.092025 | X5: 20735.64352 | Y5: 1682.417604 | Z5: 22418.06112 | AB5: 6771.209472 | AC5: 5161.988688 | AD5: 11933.19816 | AF5: 34351.25928 | AH5: =IF($B5<121,VLOOKUP($B5,Lookups!A:F,6)*(1-VLOOKUP($B5,Lookups!$N$3:$P$103,2))^($A5-$A$3),"") -> 0.0634992858 | AI5: =IF($B5<121,VLOOKUP($B5,Lookups!A:G,7)*(1-VLOOKUP($B5,Lookups!$N$3:$P$103,3))^($A5-$A$3),"") -> 0.05185130506 | AJ5: 0.0634992858 | AK5: =IF(B5<121,AK4*(1-AJ4),"") -> 0.892512449 | AL5: 0.9320692635 | AM5: 0.956061 | AP5: 27320.63154
A6: 2021 | B6: 83 | D6: =VLOOKUP(B6,Lookups!A:B,2) -> 16556.91 | E6: =VLOOKUP(B6,Lookups!A:C,3) -> 1506.57 | G6: =VLOOKUP(B6,Lookups!A:D,4) -> 195316.49 | H6: =VLOOKUP(B6,Lookups!A:E,5) -> 101753.58 | J6: =VLOOKUP(A6,Trends!$A$3:$H$94,IF(ExFlg=0,4,2))+Sens -> 1.057 | K6: =K5*J5 -> 1.452977568 | L6: =VLOOKUP(A6,Trends!$A$3:$H$94,IF(ExFlg=0,5,3))+Sens -> 1.06 | M6: 1.32251218 | N6: =VLOOKUP(A6,Trends!$A$3:$H$94,6)+Sens -> 1.0585 | O6: 1.180373568 | Q6: =IF(B6<=120,VLOOKUP(B6,Lookups!$A$3:$I$103,8,FALSE),"") -> 0.0378 | R6: =VLOOKUP(A6,Trends!$A$3:$H$94,7)+Sens -> 1.045 | S6: 1.141166125 | T6: =IF(B6<=120,VLOOKUP(B6,Lookups!$A$3:$I$103,9,FALSE),"") -> 0.0513 | U6: =VLOOKUP(A6,Trends!$A$3:$H$94,8)+Sens -> 1.045 | V6: 1.141166125 | X6: 21896.71514 | Y6: 1778.315407 | Z6: 23675.03055 | AB6: 8425.187645 | AC6: 5956.83999 | AD6: 14382.02764 | AF6: 38057.05818 | AH6: =IF($B6<121,VLOOKUP($B6,Lookups!A:F,6)*(1-VLOOKUP($B6,Lookups!$N$3:$P$103,2))^($A6-$A$3),"") -> 0.06961733303 | AI6: =IF($B6<121,VLOOKUP($B6,Lookups!A:G,7)*(1-VLOOKUP($B6,Lookups!$N$3:$P$103,3))^($A6-$A$3),"") -> 0.05702627977 | AJ6: 0.06961733303 | AK6: 0.8358385459 | AL6: 0.8998544733 | AM6: 0.953354 | AP6: 27288.77764
A7: 2022 | B7: 84 | D7: =VLOOKUP(B7,Lookups!A:B,2) -> 16494.52 | E7: =VLOOKUP(B7,Lookups!A:C,3) -> 1506.57 | G7: =VLOOKUP(B7,Lookups!A:D,4) -> 195645.58 | H7: =VLOOKUP(B7,Lookups!A:E,5) -> 101191.4 | J7: =VLOOKUP(A7,Trends!$A$3:$H$94,IF(ExFlg=0,4,2))+Sens -> 1.057 | K7: 1.535797289 | L7: =VLOOKUP(A7,Trends!$A$3:$H$94,IF(ExFlg=0,5,3))+Sens -> 1.06 | M7: 1.401862911 | N7: =VLOOKUP(A7,Trends!$A$3:$H$94,6)+Sens -> 1.0585 | O7: =O6*N6 -> 1.249425422 | Q7: =IF(B7<=120,VLOOKUP(B7,Lookups!$A$3:$I$103,8,FALSE),"") -> 0.0438 | R7: =VLOOKUP(A7,Trends!$A$3:$H$94,7)+Sens -> 1.045 | S7: 1.192518601 | T7: =IF(B7<=120,VLOOKUP(B7,Lookups!$A$3:$I$103,9,FALSE),"") -> 0.0565 | U7: =VLOOKUP(A7,Trends!$A$3:$H$94,8)+Sens -> 1.045 | V7: 1.192518601 | X7: 23123.05582 | Y7: 1882.346858 | Z7: 25005.40268 | AB7: 10219.02151 | AC7: 6818.00341 | AD7: 17037.02492 | AF7: 42042.42759 | AH7: =IF($B7<121,VLOOKUP($B7,Lookups!A:F,6)*(1-VLOOKUP($B7,Lookups!$N$3:$P$103,2))^($A7-$A$3),"") -> 0.07620025244 | AI7: =IF($B7<121,VLOOKUP($B7,Lookups!A:G,7)*(1-VLOOKUP($B7,Lookups!$N$3:$P$103,3))^($A7-$A$3),"") -> 0.06280519418 | AJ7: 0.07620025244 | AK7: 0.7776496955 | AL7: 0.8687531119 | AM7: 0.950441 | AP7: 26995.62129
A8: 2023 | B8: 85 | D8: =VLOOKUP(B8,Lookups!A:B,2) -> 16432.27 | E8: =VLOOKUP(B8,Lookups!A:C,3) -> 1506.57 | G8: =VLOOKUP(B8,Lookups!A:D,4) -> 195974.68 | H8: =VLOOKUP(B8,Lookups!A:E,5) -> 100629.23 | J8: =VLOOKUP(A8,Trends!$A$3:$H$94,IF(ExFlg=0,4,2))+Sens -> 1.058 | K8: 1.623337735 | L8: =VLOOKUP(A8,Trends!$A$3:$H$94,IF(ExFlg=0,5,3))+Sens -> 1.061 | M8: 1.485974685 | N8: =VLOOKUP(A8,Trends!$A$3:$H$94,6)+Sens -> 1.0585 | O8: 1.322516809 | Q8: =IF(B8<=120,VLOOKUP(B8,Lookups!$A$3:$I$103,8,FALSE),"") -> 0.0499 | R8: =VLOOKUP(A8,Trends!$A$3:$H$94,7)+Sens -> 1.045 | S8: 1.246181938 | T8: =IF(B8<=120,VLOOKUP(B8,Lookups!$A$3:$I$103,9,FALSE),"") -> 0.0616 | U8: =VLOOKUP(A8,Trends!$A$3:$H$94,8)+Sens -> 1.045 | V8: 1.246181938 | X8: 24417.93724 | Y8: 1992.46415 | Z8: 26410.40139 | AB8: 12186.58331 | AC8: 7724.783456 | AD8: 19911.36677 | AF8: 46321.76816 | AH8: =IF($B8<121,VLOOKUP($B8,Lookups!A:F,6)*(1-VLOOKUP($B8,Lookups!$N$3:$P$103,2))^($A8-$A$3),"") -> 0.08328907676 | AI8: =IF($B8<121,VLOOKUP($B8,Lookups!A:G,7)*(1-VLOOKUP($B8,Lookups!$N$3:$P$103,3))^($A8-$A$3),"") -> 0.06920681602 | AJ8: 0.08328907676 | AK8: 0.7183925924 | AL8: 0.8387266962 | AM8: 0.947304 | AP8: 26439.71758
A9: 2024 | B9: 86 | D9: =VLOOKUP(B9,Lookups!A:B,2) -> 16370.29 | E9: =VLOOKUP(B9,Lookups!A:C,3) -> 1506.57 | G9: =VLOOKUP(B9,Lookups!A:D,4) -> 196303.77 | H9: =VLOOKUP(B9,Lookups!A:E,5) -> 100067.06 | J9: =VLOOKUP(A9,Trends!$A$3:$H$94,IF(ExFlg=0,4,2))+Sens -> 1.059 | K9: 1.717491323 | L9: =VLOOKUP(A9,Trends!$A$3:$H$94,IF(ExFlg=0,5,3))+Sens -> 1.061 | M9: 1.576619141 | N9: =VLOOKUP(A9,Trends!$A$3:$H$94,6)+Sens -> 1.0585 | O9: 1.399884043 | Q9: =IF(B9<=120,VLOOKUP(B9,Lookups!$A$3:$I$103,8,FALSE),"") -> 0.0559 | R9: =VLOOKUP(A9,Trends!$A$3:$H$94,7)+Sens -> 1.045 | S9: 1.302260125 | T9: =IF(B9<=120,VLOOKUP(B9,Lookups!$A$3:$I$103,9,FALSE),"") -> 0.0668 | U9: =VLOOKUP(A9,Trends!$A$3:$H$94,8)+Sens -> 1.045 | V9: 1.302260125 | X9: 25809.71256 | Y9: 2109.023302 | Z9: 27918.73586 | AB9: 14290.19618 | AC9: 8704.931249 | AD9: 22995.12743 | AF9: 50913.86329 | AH9: =IF($B9<121,VLOOKUP($B9,Lookups!A:F,6)*(1-VLOOKUP($B9,Lookups!$N$3:$P$103,2))^($A9-$A$3),"") -> 0.09091938011 | AI9: =IF($B9<121,VLOOKUP($B9,Lookups!A:G,7)*(1-VLOOKUP($B9,Lookups!$N$3:$P$103,3))^($A9-$A$3),"") -> 0.07620799304 | AJ9: 0.09091938011 | AK9: 0.6585583366 | AL9: 0.8097380732 | AM9: 0.943928 | AP9: 25627.94201
A10: 2025 | B10: 87 | D10: =VLOOKUP(B10,Lookups!A:B,2) -> 16308.46 | E10: =VLOOKUP(B10,Lookups!A:C,3) -> 1506.57 | G10: =VLOOKUP(B10,Lookups!A:D,4) -> 196632.86 | H10: =VLOOKUP(B10,Lookups!A:E,5) -> 99504.88 | J10: =VLOOKUP(A10,Trends!$A$3:$H$94,IF(ExFlg=0,4,2))+Sens -> 1.059 | K10: 1.818823312 | L10: =VLOOKUP(A10,Trends!$A$3:$H$94,IF(ExFlg=0,5,3))+Sens -> 1.062 | M10: 1.672792909 | N10: =VLOOKUP(A10,Trends!$A$3:$H$94,6)+Sens -> 1.0585 | O10: 1.481777259 | Q10: =IF(B10<=120,VLOOKUP(B10,Lookups!$A$3:$I$103,8,FALSE),"") -> 0.0619 | R10: =VLOOKUP(A10,Trends!$A$3:$H$94,7)+Sens -> 1.045 | S10: 1.36086183 | T10: =IF(B10<=120,VLOOKUP(B10,Lookups!$A$3:$I$103,9,FALSE),"") -> 0.0719 | U10: =VLOOKUP(A10,Trends!$A$3:$H$94,8)+Sens -> 1.045 | V10: 1.36086183 | X10: 27280.67624 | Y10: 2232.401166 | Z10: 29513.07741 | AB10: 16563.83052 | AC10: 9736.151067 | AD10: 26299.98159 | AF10: 55813.05899 | AH10: =IF($B10<121,VLOOKUP($B10,Lookups!A:F,6)*(1-VLOOKUP($B10,Lookups!$N$3:$P$103,2))^($A10-$A$3),"") -> 0.101652418 | AI10: =IF($B10<121,VLOOKUP($B10,Lookups!A:G,7)*(1-VLOOKUP($B10,Lookups!$N$3:$P$103,3))^($A10-$A$3),"") -> 0.08372958885 | AJ10: 0.101652418 | AK10: 0.5986826209 | AL10: 0.781751374 | AM10: 0.939178 | AP10: 24532.90862
A11: 2026 | B11: 88 | D11: =VLOOKUP(B11,Lookups!A:B,2) -> 16246.91 | E11: =VLOOKUP(B11,Lookups!A:C,3) -> 1506.57 | G11: =VLOOKUP(B11,Lookups!A:D,4) -> 193012.84 | H11: =VLOOKUP(B11,Lookups!A:E,5) -> 96131.83 | J11: =VLOOKUP(A11,Trends!$A$3:$H$94,IF(ExFlg=0,4,2))+Sens -> 1.059 | K11: 1.926133887 | L11: =VLOOKUP(A11,Trends!$A$3:$H$94,IF(ExFlg=0,5,3))+Sens -> 1.062 | M11: 1.776506069 | N11: =VLOOKUP(A11,Trends!$A$3:$H$94,6)+Sens -> 1.0585 | O11: 1.568461229 | Q11: =IF(B11<=120,VLOOKUP(B11,Lookups!$A$3:$I$103,8,FALSE),"") -> 0.072 | R11: =VLOOKUP(A11,Trends!$A$3:$H$94,7)+Sens -> 1.045 | S11: 1.422100613 | T11: =IF(B11<=120,VLOOKUP(B11,Lookups!$A$3:$I$103,9,FALSE),"") -> 0.0761 | U11: =VLOOKUP(A11,Trends!$A$3:$H$94,8)+Sens -> 1.045 | V11: 1.422100613 | X11: 28862.73422 | Y11: 2362.996634 | Z11: 31225.73085 | AB11: 19762.82482 | AC11: 10403.56512 | AD11: 30166.38994 | AF11: 61392.1208 | AH11: =IF($B11<121,VLOOKUP($B11,Lookups!A:F,6)*(1-VLOOKUP($B11,Lookups!$N$3:$P$103,2))^($A11-$A$3),"") -> 0.1136634057 | AI11: =IF($B11<121,VLOOKUP($B11,Lookups!A:G,7)*(1-VLOOKUP($B11,Lookups!$N$3:$P$103,3))^($A11-$A$3),"") -> 0.09163033061 | AJ11: 0.1136634057 | AK11: 0.5378250848 | AL11: 0.7547319695 | AM11: 0.933864 | AP11: 23271.80511
A12: 2027 | B12: 89 | D12: =VLOOKUP(B12,Lookups!A:B,2) -> 16185.63 | E12: =VLOOKUP(B12,Lookups!A:C,3) -> 1506.57 | G12: =VLOOKUP(B12,Lookups!A:D,4) -> 189392.82 | H12: =VLOOKUP(B12,Lookups!A:E,5) -> 92758.79 | J12: =VLOOKUP(A12,Trends!$A$3:$H$94,IF(ExFlg=0,4,2))+Sens -> 1.059 | K12: 2.039775786 | L12: =VLOOKUP(A12,Trends!$A$3:$H$94,IF(ExFlg=0,5,3))+Sens -> 1.062 | M12: 1.886649446 | N12: =VLOOKUP(A12,Trends!$A$3:$H$94,6)+Sens -> 1.0585 | O12: 1.660216211 | Q12: =IF(B12<=120,VLOOKUP(B12,Lookups!$A$3:$I$103,8,FALSE),"") -> 0.082 | R12: =VLOOKUP(A12,Trends!$A$3:$H$94,7)+Sens -> 1.045 | S12: 1.48609514 | T12: =IF(B12<=120,VLOOKUP(B12,Lookups!$A$3:$I$103,9,FALSE),"") -> 0.0803 | U12: =VLOOKUP(A12,Trends!$A$3:$H$94,8)+Sens -> 1.045 | V12: 1.48609514 | X12: 30536.60986 | Y12: 2501.231937 | Z12: 33037.8418 | AB12: 23079.37145 | AC12: 11069.22548 | AD12: 34148.59693 | AF12: 67186.43874 | AH12: =IF($B12<121,VLOOKUP($B12,Lookups!A:F,6)*(1-VLOOKUP($B12,Lookups!$N$3:$P$103,2))^($A12-$A$3),"") -> 0.1264505481 | AI12: =IF($B12<121,VLOOKUP($B12,Lookups!A:G,7)*(1-VLOOKUP($B12,Lookups!$N$3:$P$103,3))^($A12-$A$3),"") -> 0.09971602236 | AJ12: 0.1264505481 | AK12: 0.476694054 | AL12: 0.7286464274 | AM12: 0.928205 | AP12: 21661.17943
A13: 2028 | B13: 90 | D13: =VLOOKUP(B13,Lookups!A:B,2) -> 16185.63 | E13: =VLOOKUP(B13,Lookups!A:C,3) -> 1506.57 | G13: =VLOOKUP(B13,Lookups!A:D,4) -> 185772.8 | H13: =VLOOKUP(B13,Lookups!A:E,5) -> 89385.74 | J13: =VLOOKUP(A13,Trends!$A$3:$H$94,IF(ExFlg=0,4,2))+Sens -> 1.059 | K13: 2.160122558 | L13: =VLOOKUP(A13,Trends!$A$3:$H$94,IF(ExFlg=0,5,3))+Sens -> 1.062 | M13: 2.003621711 | N13: =VLOOKUP(A13,Trends!$A$3:$H$94,6)+Sens -> 1.0585 | O13: 1.757338859 | Q13: =IF(B13<=120,VLOOKUP(B13,Lookups!$A$3:$I$103,8,FALSE),"") -> 0.0921 | R13: =VLOOKUP(A13,Trends!$A$3:$H$94,7)+Sens -> 1.045 | S13: 1.552969422 | T13: =IF(B13<=120,VLOOKUP(B13,Lookups!$A$3:$I$103,9,FALSE),"") -> 0.0846 | U13: =VLOOKUP(A13,Trends!$A$3:$H$94,8)+Sens -> 1.045 | V13: 1.552969422 | X13: 32429.87968 | Y13: 2647.554005 | Z13: 35077.43368 | AB13: 26570.8019 | AC13: 11743.60695 | AD13: 38314.40886 | AF13: 73391.84254 | AH13: =IF($B13<121,VLOOKUP($B13,Lookups!A:F,6)*(1-VLOOKUP($B13,Lookups!$N$3:$P$103,2))^($A13-$A$3),"") -> 0.1405052051 | AI13: =IF($B13<121,VLOOKUP($B13,Lookups!A:G,7)*(1-VLOOKUP($B13,Lookups!$N$3:$P$103,3))^($A13-$A$3),"") -> 0.1108644473 | AJ13: 0.1405052051 | AK13: 0.4164158296 | AL13: 0.7034624709 | AM13: 0.921986 | AP13: 19821.67181
A14: 2029 | B14: 91 | D14: =VLOOKUP(B14,Lookups!A:B,2) -> 16185.63 | E14: =VLOOKUP(B14,Lookups!A:C,3) -> 1506.57 | G14: =VLOOKUP(B14,Lookups!A:D,4) -> 182152.78 | H14: =VLOOKUP(B14,Lookups!A:E,5) -> 86012.69 | J14: =VLOOKUP(A14,Trends!$A$3:$H$94,IF(ExFlg=0,4,2))+Sens -> 1.059 | K14: 2.287569789 | L14: =VLOOKUP(A14,Trends!$A$3:$H$94,IF(ExFlg=0,5,3))+Sens -> 1.062 | M14: 2.127846257 | N14: =VLOOKUP(A14,Trends!$A$3:$H$94,6)+Sens -> 1.056 | O14: 1.860143182 | Q14: =IF(B14<=120,VLOOKUP(B14,Lookups!$A$3:$I$103,8,FALSE),"") -> 0.1021 | R14: =VLOOKUP(A14,Trends!$A$3:$H$94,7)+Sens -> 1.045 | S14: 1.622853046 | T14: =IF(B14<=120,VLOOKUP(B14,Lookups!$A$3:$I$103,9,FALSE),"") -> 0.0888 | U14: =VLOOKUP(A14,Trends!$A$3:$H$94,8)+Sens -> 1.045 | V14: 1.622853046 | X14: 34440.53222 | Y14: 2802.435914 | Z14: 37242.96813 | AB14: 30181.49449 | AC14: 12395.23289 | AD14: 42576.72737 | AF14: 79819.69551 | AH14: =IF($B14<121,VLOOKUP($B14,Lookups!A:F,6)*(1-VLOOKUP($B14,Lookups!$N$3:$P$103,2))^($A14-$A$3),"") -> 0.1558112397 | AI14: =IF($B14<121,VLOOKUP($B14,Lookups!A:G,7)*(1-VLOOKUP($B14,Lookups!$N$3:$P$103,3))^($A14-$A$3),"") -> 0.1225552433 | AJ14: 0.1558112397 | AK14: 0.357907238 | AL14: 0.6791489389 | AM14: 0.915214 | AP14: 17756.94418
A15: 2030 | B15: 92 | D15: =VLOOKUP(B15,Lookups!A:B,2) -> 16185.63 | E15: =VLOOKUP(B15,Lookups!A:C,3) -> 1506.57 | G15: =VLOOKUP(B15,Lookups!A:D,4) -> 178532.76 | H15: =VLOOKUP(B15,Lookups!A:E,5) -> 82639.65 | J15: =VLOOKUP(A15,Trends!$A$3:$H$94,IF(ExFlg=0,4,2))+Sens -> 1.059 | K15: 2.422536406 | L15: =VLOOKUP(A15,Trends!$A$3:$H$94,IF(ExFlg=0,5,3))+Sens -> 1.062 | M15: 2.259772725 | N15: =VLOOKUP(A15,Trends!$A$3:$H$94,6)+Sens -> 1.053 | O15: 1.964311201 | Q15: =IF(B15<=120,VLOOKUP(B15,Lookups!$A$3:$I$103,8,FALSE),"") -> 0.1122 | R15: =VLOOKUP(A15,Trends!$A$3:$H$94,7)+Sens -> 1.045 | S15: 1.695881433 | T15: =IF(B15<=120,VLOOKUP(B15,Lookups!$A$3:$I$103,9,FALSE),"") -> 0.093 | U15: =VLOOKUP(A15,Trends!$A$3:$H$94,8)+Sens -> 1.045 | V15: 1.695881433 | X15: 36575.84521 | Y15: 2959.372326 | Z15: 39535.21754 | AB15: 33970.83807 | AC15: 13033.67547 | AD15: 47004.51354 | AF15: 86539.73108 | AH15: =IF($B15<121,VLOOKUP($B15,Lookups!A:F,6)*(1-VLOOKUP($B15,Lookups!$N$3:$P$103,2))^($A15-$A$3),"") -> 0.1717264264 | AI15: =IF($B15<121,VLOOKUP($B15,Lookups!A:G,7)*(1-VLOOKUP($B15,Lookups!$N$3:$P$103,3))^($A15-$A$3),"") -> 0.134660416 | AJ15: 0.1717264264 | AK15: 0.3021412676 | AL15: 0.6556757472 | AM15: 0.908171 | AP15: 15569.77504
A16: 2031 | B16: 93 | D16: =VLOOKUP(B16,Lookups!A:B,2) -> 16185.63 | E16: =VLOOKUP(B16,Lookups!A:C,3) -> 1506.57 | G16: =VLOOKUP(B16,Lookups!A:D,4) -> 173431.83 | H16: =VLOOKUP(B16,Lookups!A:E,5) -> 81290.43 | J16: =VLOOKUP(A16,Trends!$A$3:$H$94,IF(ExFlg=0,4,2))+Sens -> 1.059 | K16: 2.565466054 | L16: =VLOOKUP(A16,Trends!$A$3:$H$94,IF(ExFlg=0,5,3))+Sens -> 1.062 | M16: 2.399878634 | N16: =VLOOKUP(A16,Trends!$A$3:$H$94,6)+Sens -> 1.053 | O16: 2.068419694 | Q16: =IF(B16<=120,VLOOKUP(B16,Lookups!$A$3:$I$103,8,FALSE),"") -> 0.1208 | R16: =VLOOKUP(A16,Trends!$A$3:$H$94,7)+Sens -> 1.045 | S16: 1.772196097 | T16: =IF(B16<=120,VLOOKUP(B16,Lookups!$A$3:$I$103,9,FALSE),"") -> 0.0925 | U16: =VLOOKUP(A16,Trends!$A$3:$H$94,8)+Sens -> 1.045 | V16: 1.772196097 | X16: 38843.54762 | Y16: 3116.219059 | Z16: 41959.76668 | AB16: 37128.50964 | AC16: 13325.78891 | AD16: 50454.29855 | AF16: 92414.06523 | AH16: =IF($B16<121,VLOOKUP($B16,Lookups!A:F,6)*(1-VLOOKUP($B16,Lookups!$N$3:$P$103,2))^($A16-$A$3),"") -> 0.1886962216 | AI16: =IF($B16<121,VLOOKUP($B16,Lookups!A:G,7)*(1-VLOOKUP($B16,Lookups!$N$3:$P$103,3))^($A16-$A$3),"") -> 0.1470711675 | AJ16: 0.1886962216 | AK16: 0.2502556274 | AL16: 0.6330138513 | AM16: 0.900662 | AP16: 13185.51144
A17: 2032 | B17: 94 | D17: =VLOOKUP(B17,Lookups!A:B,2) -> 16185.63 | E17: =VLOOKUP(B17,Lookups!A:C,3) -> 1506.57 | G17: =VLOOKUP(B17,Lookups!A:D,4) -> 168330.89 | H17: =VLOOKUP(B17,Lookups!A:E,5) -> 79941.21 | J17: =VLOOKUP(A17,Trends!$A$3:$H$94,IF(ExFlg=0,4,2))+Sens -> 1.059 | K17: 2.716828551 | L17: =VLOOKUP(A17,Trends!$A$3:$H$94,IF(ExFlg=0,5,3))+Sens -> 1.062 | M17: 2.548671109 | N17: =VLOOKUP(A17,Trends!$A$3:$H$94,6)+Sens -> 1.053 | O17: 2.178045938 | Q17: =IF(B17<=120,VLOOKUP(B17,Lookups!$A$3:$I$103,8,FALSE),"") -> 0.1293 | R17: =VLOOKUP(A17,Trends!$A$3:$H$94,7)+Sens -> 1.045 | S17: 1.851944922 | T17: =IF(B17<=120,VLOOKUP(B17,Lookups!$A$3:$I$103,9,FALSE),"") -> 0.092 | U17: =VLOOKUP(A17,Trends!$A$3:$H$94,8)+Sens -> 1.045 | V17: 1.851944922 | X17: 41251.84757 | Y17: 3281.378669 | Z17: 44533.22624 | AB17: 40307.92212 | AC17: 13620.29805 | AD17: 53928.22017 | AF17: 98461.4464 | AH17: =IF($B17<121,VLOOKUP($B17,Lookups!A:F,6)*(1-VLOOKUP($B17,Lookups!$N$3:$P$103,2))^($A17-$A$3),"") -> 0.2066868708 | AI17: =IF($B17<121,VLOOKUP($B17,Lookups!A:G,7)*(1-VLOOKUP($B17,Lookups!$N$3:$P$103,3))^($A17-$A$3),"") -> 0.159692416 | AJ17: 0.2066868708 | AK17: 0.2030333361 | AL17: 0.6111352107 | AM17: 0.892701 | AP17: 10906.28619
A18: 2033 | B18: 95 | D18: =VLOOKUP(B18,Lookups!A:B,2) -> 16185.63 | E18: =VLOOKUP(B18,Lookups!A:C,3) -> 1506.57 | G18: =VLOOKUP(B18,Lookups!A:D,4) -> 163229.96 | H18: =VLOOKUP(B18,Lookups!A:E,5) -> 78591.99 | J18: =VLOOKUP(A18,Trends!$A$3:$H$94,IF(ExFlg=0,4,2))+Sens -> 1.059 | K18: 2.877121436 | L18: =VLOOKUP(A18,Trends!$A$3:$H$94,IF(ExFlg=0,5,3))+Sens -> 1.062 | M18: 2.706688718 | N18: =VLOOKUP(A18,Trends!$A$3:$H$94,6)+Sens -> 1.053 | O18: 2.293482373 | Q18: =IF(B18<=120,VLOOKUP(B18,Lookups!$A$3:$I$103,8,FALSE),"") -> 0.1379 | R18: =VLOOKUP(A18,Trends!$A$3:$H$94,7)+Sens -> 1.045 | S18: 1.935282443 | T18: =IF(B18<=120,VLOOKUP(B18,Lookups!$A$3:$I$103,9,FALSE),"") -> 0.0914 | U18: =VLOOKUP(A18,Trends!$A$3:$H$94,8)+Sens -> 1.045 | V18: 1.935282443 | X18: 43809.46212 | Y18: 3455.291738 | Z18: 47264.75386 | AB18: 43562.06885 | AC18: 13901.72964 | AD18: 57463.79848 | AF18: 104728.5523 | AH18: =IF($B18<121,VLOOKUP($B18,Lookups!A:F,6)*(1-VLOOKUP($B18,Lookups!$N$3:$P$103,2))^($A18-$A$3),"") -> 0.2256907803 | AI18: =IF($B18<121,VLOOKUP($B18,Lookups!A:G,7)*(1-VLOOKUP($B18,Lookups!$N$3:$P$103,3))^($A18-$A$3),"") -> 0.1724289732 | AJ18: 0.2256907803 | AK18: 0.1610690112 | AL18: 0.5900127541 | AM18: 0.884292 | AP18: 8801.04393
A19: 2034 | B19: 96 | D19: =VLOOKUP(B19,Lookups!A:B,2) -> 16185.63 | E19: =VLOOKUP(B19,Lookups!A:C,3) -> 1506.57 | G19: =VLOOKUP(B19,Lookups!A:D,4) -> 158129.02 | H19: =VLOOKUP(B19,Lookups!A:E,5) -> 77242.77 | J19: =VLOOKUP(A19,Trends!$A$3:$H$94,IF(ExFlg=0,4,2))+Sens -> 1.059 | K19: 3.046871601 | L19: =VLOOKUP(A19,Trends!$A$3:$H$94,IF(ExFlg=0,5,3))+Sens -> 1.062 | M19: 2.874503419 | N19: =VLOOKUP(A19,Trends!$A$3:$H$94,6)+Sens -> 1.053 | O19: 2.415036939 | Q19: =IF(B19<=120,VLOOKUP(B19,Lookups!$A$3:$I$103,8,FALSE),"") -> 0.1464 | R19: =VLOOKUP(A19,Trends!$A$3:$H$94,7)+Sens -> 1.045 | S19: 2.022370153 | T19: =IF(B19<=120,VLOOKUP(B19,Lookups!$A$3:$I$103,9,FALSE),"") -> 0.0909 | U19: =VLOOKUP(A19,Trends!$A$3:$H$94,8)+Sens -> 1.045 | V19: 2.022370153 | X19: 46525.64877 | Y19: 3638.422201 | Z19: 50164.07097 | AB19: 46818.04808 | AC19: 14199.80466 | AD19: 61017.85274 | AF19: 111181.9237 | AH19: =IF($B19<121,VLOOKUP($B19,Lookups!A:F,6)*(1-VLOOKUP($B19,Lookups!$N$3:$P$103,2))^($A19-$A$3),"") -> 0.245733642 | AI19: =IF($B19<121,VLOOKUP($B19,Lookups!A:G,7)*(1-VLOOKUP($B19,Lookups!$N$3:$P$103,3))^($A19-$A$3),"") -> 0.1851842842 | AJ19: 0.245733642 | AK19: 0.1247172204 | AL19: 0.5696203458 | AM19: 0.875424 | AP19: 6914.559991
A20: 2035 | B20: 97 | D20: =VLOOKUP(B20,Lookups!A:B,2) -> 16185.63 | E20: =VLOOKUP(B20,Lookups!A:C,3) -> 1506.57 | G20: =VLOOKUP(B20,Lookups!A:D,4) -> 153028.08 | H20: =VLOOKUP(B20,Lookups!A:E,5) -> 75893.55 | J20: =VLOOKUP(A20,Trends!$A$3:$H$94,IF(ExFlg=0,4,2))+Sens -> 1.059 | K20: 3.226637025 | L20: =VLOOKUP(A20,Trends!$A$3:$H$94,IF(ExFlg=0,5,3))+Sens -> 1.062 | M20: 3.052722631 | N20: =VLOOKUP(A20,Trends!$A$3:$H$94,6)+Sens -> 1.053 | O20: 2.543033896 | Q20: =IF(B20<=120,VLOOKUP(B20,Lookups!$A$3:$I$103,8,FALSE),"") -> 0.155 | R20: =VLOOKUP(A20,Trends!$A$3:$H$94,7)+Sens -> 1.045 | S20: 2.11337681 | T20: =IF(B20<=120,VLOOKUP(B20,Lookups!$A$3:$I$103,9,FALSE),"") -> 0.0904 | U20: =VLOOKUP(A20,Trends!$A$3:$H$94,8)+Sens -> 1.045 | V20: 2.11337681 | X20: 49410.23899 | Y20: 3831.258577 | Z20: 53241.49757 | AB20: 50127.92931 | AC20: 14499.40684 | AD20: 64627.33615 | AF20: 117868.8337 | AH20: =IF($B20<121,VLOOKUP($B20,Lookups!A:F,6)*(1-VLOOKUP($B20,Lookups!$N$3:$P$103,2))^($A20-$A$3),"") -> 0.2668664086 | AI20: =IF($B20<121,VLOOKUP($B20,Lookups!A:G,7)*(1-VLOOKUP($B20,Lookups!$N$3:$P$103,3))^($A20-$A$3),"") -> 0.1978690038 | AJ20: 0.2668664086 | AK20: 0.0940700036 | AL20: 0.5499327532 | AM20: 0.866073 | AP20: 5280.976476
A21: 2036 | B21: 98 | D21: =VLOOKUP(B21,Lookups!A:B,2) -> 16185.63 | E21: =VLOOKUP(B21,Lookups!A:C,3) -> 1506.57 | G21: =VLOOKUP(B21,Lookups!A:D,4) -> 153028.08 | H21: =VLOOKUP(B21,Lookups!A:E,5) -> 75893.55 | J21: =VLOOKUP(A21,Trends!$A$3:$H$94,IF(ExFlg=0,4,2))+Sens -> 1.059 | K21: 3.417008609 | L21: =VLOOKUP(A21,Trends!$A$3:$H$94,IF(ExFlg=0,5,3))+Sens -> 1.062 | M21: 3.241991434 | N21: =VLOOKUP(A21,Trends!$A$3:$H$94,6)+Sens -> 1.053 | O21: 2.677814693 | Q21: =IF(B21<=120,VLOOKUP(B21,Lookups!$A$3:$I$103,8,FALSE),"") -> 0.155 | R21: =VLOOKUP(A21,Trends!$A$3:$H$94,7)+Sens -> 1.045 | S21: 2.208478766 | T21: =IF(B21<=120,VLOOKUP(B21,Lookups!$A$3:$I$103,9,FALSE),"") -> 0.0904 | U21: =VLOOKUP(A21,Trends!$A$3:$H$94,8)+Sens -> 1.045 | V21: 2.208478766 | X21: 52473.67381 | Y21: 4034.315282 | Z21: 56507.98909 | AB21: 52383.68613 | AC21: 15151.88015 | AD21: 67535.56628 | AF21: 124043.5554 | AH21: =IF($B21<121,VLOOKUP($B21,Lookups!A:F,6)*(1-VLOOKUP($B21,Lookups!$N$3:$P$103,2))^($A21-$A$3),"") -> 0.278911952 | AI21: =IF($B21<121,VLOOKUP($B21,Lookups!A:G,7)*(1-VLOOKUP($B21,Lookups!$N$3:$P$103,3))^($A21-$A$3),"") -> 0.2029287917 | AJ21: 0.278911952 | AK21: 0.06896587958 | AL21: 0.5309256161 | AM21: 0.860742 | AP21: 3909.445469
A22: 2037 | B22: 99 | D22: =VLOOKUP(B22,Lookups!A:B,2) -> 16185.63 | E22: =VLOOKUP(B22,Lookups!A:C,3) -> 1506.57 | G22: =VLOOKUP(B22,Lookups!A:D,4) -> 153028.08 | H22: =VLOOKUP(B22,Lookups!A:E,5) -> 75893.55 | J22: =VLOOKUP(A22,Trends!$A$3:$H$94,IF(ExFlg=0,4,2))+Sens -> 1.059 | K22: 3.618612117 | L22: =VLOOKUP(A22,Trends!$A$3:$H$94,IF(ExFlg=0,5,3))+Sens -> 1.062 | M22: 3.442994903 | N22: =VLOOKUP(A22,Trends!$A$3:$H$94,6)+Sens -> 1.053 | O22: 2.819738872 | Q22: =IF(B22<=120,VLOOKUP(B22,Lookups!$A$3:$I$103,8,FALSE),"") -> 0.155 | R22: =VLOOKUP(A22,Trends!$A$3:$H$94,7)+Sens -> 1.045 | S22: 2.307860311 | T22: =IF(B22<=120,VLOOKUP(B22,Lookups!$A$3:$I$103,9,FALSE),"") -> 0.0904 | U22: =VLOOKUP(A22,Trends!$A$3:$H$94,8)+Sens -> 1.045 | V22: 2.307860311 | X22: 55727.04159 | Y22: 4248.133992 | Z22: 59975.17558 | AB22: 54740.952 | AC22: 15833.71476 | AD22: 70574.66676 | AF22: 130549.8423 | AH22: =IF($B22<121,VLOOKUP($B22,Lookups!A:F,6)*(1-VLOOKUP($B22,Lookups!$N$3:$P$103,2))^($A22-$A$3),"") -> 0.3015098484 | AI22: =IF($B22<121,VLOOKUP($B22,Lookups!A:G,7)*(1-VLOOKUP($B22,Lookups!$N$3:$P$103,3))^($A22-$A$3),"") -> 0.2157792235 | AJ22: 0.3015098484 | AK22: 0.04973047149 | AL22: 0.5125754162 | AM22: 0.850743 | AP22: 2831.099192
A23: 2038 | B23: 100 | D23: =VLOOKUP(B23,Lookups!A:B,2) -> 16185.63 | E23: =VLOOKUP(B23,Lookups!A:C,3) -> 1506.57 | G23: =VLOOKUP(B23,Lookups!A:D,4) -> 153028.08 | H23: =VLOOKUP(B23,Lookups!A:E,5) -> 75893.55 | J23: =VLOOKUP(A23,Trends!$A$3:$H$94,IF(ExFlg=0,4,2))+Sens -> 1.059 | K23: 3.832110232 | L23: =VLOOKUP(A23,Trends!$A$3:$H$94,IF(ExFlg=0,5,3))+Sens -> 1.062 | M23: 3.656460587 | N23: =VLOOKUP(A23,Trends!$A$3:$H$94,6)+Sens -> 1.053 | O23: 2.969185032 | Q23: =IF(B23<=120,VLOOKUP(B23,Lookups!$A$3:$I$103,8,FALSE),"") -> 0.155 | R23: =VLOOKUP(A23,Trends!$A$3:$H$94,7)+Sens -> 1.045 | S23: 2.411714025 | T23: =IF(B23<=120,VLOOKUP(B23,Lookups!$A$3:$I$103,9,FALSE),"") -> 0.0904 | U23: =VLOOKUP(A23,Trends!$A$3:$H$94,8)+Sens -> 1.045 | V23: 2.411714025 | X23: 59182.11817 | Y23: 4473.285093 | Z23: 63655.40326 | AB23: 57204.29484 | AC23: 16546.23192 | AD23: 73750.52676 | AF23: 137405.93 | AH23: =IF($B23<121,VLOOKUP($B23,Lookups!A:F,6)*(1-VLOOKUP($B23,Lookups!$N$3:$P$103,2))^($A23-$A$3),"") -> 0.3130806903 | AI23: =IF($B23<121,VLOOKUP($B23,Lookups!A:G,7)*(1-VLOOKUP($B23,Lookups!$N$3:$P$103,3))^($A23-$A$3),"") -> 0.2227284153 | AJ23: 0.3130806903 | AK23: 0.03473624457 | AL23: 0.494859448 | AM23: 0.845623 | AP23: 1997.316975
A24: 2039 | B24: 101 | D24: =VLOOKUP(B24,Lookups!A:B,2) -> 16185.63 | E24: =VLOOKUP(B24,Lookups!A:C,3) -> 1506.57 | G24: =VLOOKUP(B24,Lookups!A:D,4) -> 153028.08 | H24: =VLOOKUP(B24,Lookups!A:E,5) -> 75893.55 | J24: =VLOOKUP(A24,Trends!$A$3:$H$94,IF(ExFlg=0,4,2))+Sens -> 1.059 | K24: 4.058204736 | L24: =VLOOKUP(A24,Trends!$A$3:$H$94,IF(ExFlg=0,5,3))+Sens -> 1.061 | M24: 3.883161143 | N24: =VLOOKUP(A24,Trends!$A$3:$H$94,6)+Sens -> 1.0505 | O24: 3.126551838 | Q24: =IF(B24<=120,VLOOKUP(B24,Lookups!$A$3:$I$103,8,FALSE),"") -> 0.155 | R24: =VLOOKUP(A24,Trends!$A$3:$H$94,7)+Sens -> 1.045 | S24: 2.520241156 | T24: =IF(B24<=120,VLOOKUP(B24,Lookups!$A$3:$I$103,9,FALSE),"") -> 0.0904 | U24: =VLOOKUP(A24,Trends!$A$3:$H$94,8)+Sens -> 1.045 | V24: 2.520241156 | X24: 62851.40949 | Y24: 4710.369203 | Z24: 67561.7787 | AB24: 59778.48811 | AC24: 17290.81236 | AD24: 77069.30047 | AF24: 144631.0792 | AH24: =IF($B24<121,VLOOKUP($B24,Lookups!A:F,6)*(1-VLOOKUP($B24,Lookups!$N$3:$P$103,2))^($A24-$A$3),"") -> 0.3364738706 | AI24: =IF($B24<121,VLOOKUP($B24,Lookups!A:G,7)*(1-VLOOKUP($B24,Lookups!$N$3:$P$103,3))^($A24-$A$3),"") -> 0.2407227642 | AJ24: 0.3364738706 | AK24: 0.02386099714 | AL24: 0.4777557907 | AM24: 0.835272 | AP24: 1377.159043
A25: 2040 | B25: 102 | D25: =VLOOKUP(B25,Lookups!A:B,2) -> 16185.63 | E25: =VLOOKUP(B25,Lookups!A:C,3) -> 1506.57 | G25: =VLOOKUP(B25,Lookups!A:D,4) -> 153028.08 | H25: =VLOOKUP(B25,Lookups!A:E,5) -> 75893.55 | J25: =VLOOKUP(A25,Trends!$A$3:$H$94,IF(ExFlg=0,4,2))+Sens -> 1.059 | K25: 4.297638815 | L25: =VLOOKUP(A25,Trends!$A$3:$H$94,IF(ExFlg=0,5,3))+Sens -> 1.06 | M25: 4.120033973 | N25: =VLOOKUP(A25,Trends!$A$3:$H$94,6)+Sens -> 1.0485 | O25: 3.284442706 | Q25: =IF(B25<=120,VLOOKUP(B25,Lookups!$A$3:$I$103,8,FALSE),"") -> 0.155 | R25: =VLOOKUP(A25,Trends!$A$3:$H$94,7)+Sens -> 1.045 | S25: 2.633652008 | T25: =IF(B25<=120,VLOOKUP(B25,Lookups!$A$3:$I$103,9,FALSE),"") -> 0.0904 | U25: =VLOOKUP(A25,Trends!$A$3:$H$94,8)+Sens -> 1.045 | V25: 2.633652008 | X25: 66685.34547 | Y25: 4948.242848 | Z25: 71633.58832 | AB25: 62468.52008 | AC25: 18068.89891 | AD25: 80537.41899 | AF25: 152171.0073 | AH25: =IF($B25<121,VLOOKUP($B25,Lookups!A:F,6)*(1-VLOOKUP($B25,Lookups!$N$3:$P$103,2))^($A25-$A$3),"") -> 0.3464322129 | AI25: =IF($B25<121,VLOOKUP($B25,Lookups!A:G,7)*(1-VLOOKUP($B25,Lookups!$N$3:$P$103,3))^($A25-$A$3),"") -> 0.251574982 | AJ25: 0.3464322129 | AK25: 0.01583239507 | AL25: 0.4612432812 | AM25: 0.830865 | AP25: 923.2919558
A26: 2041 | B26: 103 | D26: =VLOOKUP(B26,Lookups!A:B,2) -> 16185.63 | E26: =VLOOKUP(B26,Lookups!A:C,3) -> 1506.57 | G26: =VLOOKUP(B26,Lookups!A:D,4) -> 153028.08 | H26: =VLOOKUP(B26,Lookups!A:E,5) -> 75893.55 | J26: =VLOOKUP(A26,Trends!$A$3:$H$94,IF(ExFlg=0,4,2))+Sens -> 1.059 | K26: 4.551199506 | L26: =VLOOKUP(A26,Trends!$A$3:$H$94,IF(ExFlg=0,5,3))+Sens -> 1.059 | M26: 4.367236011 | N26: =VLOOKUP(A26,Trends!$A$3:$H$94,6)+Sens -> 1.0485 | O26: 3.443738178 | Q26: =IF(B26<=120,VLOOKUP(B26,Lookups!$A$3:$I$103,8,FALSE),"") -> 0.155 | R26: =VLOOKUP(A26,Trends!$A$3:$H$94,7)+Sens -> 1.045 | S26: 2.752166348 | T26: =IF(B26<=120,VLOOKUP(B26,Lookups!$A$3:$I$103,9,FALSE),"") -> 0.0904 | U26: =VLOOKUP(A26,Trends!$A$3:$H$94,8)+Sens -> 1.045 | V26: 2.752166348 | X26: 70686.4662 | Y26: 5188.232626 | Z26: 75874.69883 | AB26: 65279.60348 | AC26: 18881.99936 | AD26: 84161.60284 | AF26: 160036.3017 | AH26: =IF($B26<121,VLOOKUP($B26,Lookups!A:F,6)*(1-VLOOKUP($B26,Lookups!$N$3:$P$103,2))^($A26-$A$3),"") -> 0.3693208333 | AI26: =IF($B26<121,VLOOKUP($B26,Lookups!A:G,7)*(1-VLOOKUP($B26,Lookups!$N$3:$P$103,3))^($A26-$A$3),"") -> 0.2745875642 | AJ26: 0.3693208333 | AK26: 0.01034754341 | AL26: 0.445301488 | AM26: 0.820737 | AP26: 605.2209076
A27: 2042 | B27: 104 | D27: =VLOOKUP(B27,Lookups!A:B,2) -> 16185.63 | E27: =VLOOKUP(B27,Lookups!A:C,3) -> 1506.57 | G27: =VLOOKUP(B27,Lookups!A:D,4) -> 153028.08 | H27: =VLOOKUP(B27,Lookups!A:E,5) -> 75893.55 | J27: =VLOOKUP(A27,Trends!$A$3:$H$94,IF(ExFlg=0,4,2))+Sens -> 1.059 | K27: 4.819720276 | L27: =VLOOKUP(A27,Trends!$A$3:$H$94,IF(ExFlg=0,5,3))+Sens -> 1.059 | M27: 4.624902936 | N27: =VLOOKUP(A27,Trends!$A$3:$H$94,6)+Sens -> 1.0485 | O27: 3.610759479 | Q27: =IF(B27<=120,VLOOKUP(B27,Lookups!$A$3:$I$103,8,FALSE),"") -> 0.155 | R27: =VLOOKUP(A27,Trends!$A$3:$H$94,7)+Sens -> 1.045 | S27: 2.876013834 | T27: =IF(B27<=120,VLOOKUP(B27,Lookups!$A$3:$I$103,9,FALSE),"") -> 0.0904 | U27: =VLOOKUP(A27,Trends!$A$3:$H$94,8)+Sens -> 1.045 | V27: 2.876013834 | X27: 74856.96771 | Y27: 5439.861909 | Z27: 80296.82961 | AB27: 68217.18564 | AC27: 19731.68933 | AD27: 87948.87497 | AF27: 168245.7046 | AH27: =IF($B27<121,VLOOKUP($B27,Lookups!A:F,6)*(1-VLOOKUP($B27,Lookups!$N$3:$P$103,2))^($A27-$A$3),"") -> 0.3754090767 | AI27: =IF($B27<121,VLOOKUP($B27,Lookups!A:G,7)*(1-VLOOKUP($B27,Lookups!$N$3:$P$103,3))^($A27-$A$3),"") -> 0.2880994297 | AJ27: 0.3754090767 | AK27: 0.006525980057 | AL27: 0.4299106854 | AM27: 0.818043 | AP27: 386.1393844
A28: 2043 | B28: 105 | D28: =VLOOKUP(B28,Lookups!A:B,2) -> 16185.63 | E28: =VLOOKUP(B28,Lookups!A:C,3) -> 1506.57 | G28: =VLOOKUP(B28,Lookups!A:D,4) -> 153028.08 | H28: =VLOOKUP(B28,Lookups!A:E,5) -> 75893.55 | J28: =VLOOKUP(A28,Trends!$A$3:$H$94,IF(ExFlg=0,4,2))+Sens -> 1.059 | K28: 5.104083773 | L28: =VLOOKUP(A28,Trends!$A$3:$H$94,IF(ExFlg=0,5,3))+Sens -> 1.058 | M28: 4.897772209 | N28: =VLOOKUP(A28,Trends!$A$3:$H$94,6)+Sens -> 1.0485 | O28: 3.785881314 | Q28: =IF(B28<=120,VLOOKUP(B28,Lookups!$A$3:$I$103,8,FALSE),"") -> 0.155 | R28: =VLOOKUP(A28,Trends!$A$3:$H$94,7)+Sens -> 1.045 | S28: 3.005434457 | T28: =IF(B28<=120,VLOOKUP(B28,Lookups!$A$3:$I$103,9,FALSE),"") -> 0.0904 | U28: =VLOOKUP(A28,Trends!$A$3:$H$94,8)+Sens -> 1.045 | V28: 3.005434457 | X28: 79273.5288 | Y28: 5703.695211 | Z28: 84977.22401 | AB28: 71286.95899 | AC28: 20619.61535 | AD28: 91906.57434 | AF28: 176883.7984 | AH28: =IF($B28<121,VLOOKUP($B28,Lookups!A:F,6)*(1-VLOOKUP($B28,Lookups!$N$3:$P$103,2))^($A28-$A$3),"") -> 0.3960015 | AI28: =IF($B28<121,VLOOKUP($B28,Lookups!A:G,7)*(1-VLOOKUP($B28,Lookups!$N$3:$P$103,3))^($A28-$A$3),"") -> 0.315268 | AJ28: 0.3960015 | AK28: 0.004076067909 | AL28: 0.4150518299 | AM28: 0.808931 | AP28: 242.0712865
A29: 2044 | B29: 106 | D29: =VLOOKUP(B29,Lookups!A:B,2) -> 16185.63 | E29: =VLOOKUP(B29,Lookups!A:C,3) -> 1506.57 | G29: =VLOOKUP(B29,Lookups!A:D,4) -> 153028.08 | H29: =VLOOKUP(B29,Lookups!A:E,5) -> 75893.55 | J29: =VLOOKUP(A29,Trends!$A$3:$H$94,IF(ExFlg=0,4,2))+Sens -> 1.059 | K29: 5.405224715 | L29: =VLOOKUP(A29,Trends!$A$3:$H$94,IF(ExFlg=0,5,3))+Sens -> 1.058 | M29: 5.181842997 | N29: =VLOOKUP(A29,Trends!$A$3:$H$94,6)+Sens -> 1.0485 | O29: 3.969496558 | Q29: =IF(B29<=120,VLOOKUP(B29,Lookups!$A$3:$I$103,8,FALSE),"") -> 0.155 | R29: =VLOOKUP(A29,Trends!$A$3:$H$94,7)+Sens -> 1.045 | S29: 3.140679007 | T29: =IF(B29<=120,VLOOKUP(B29,Lookups!$A$3:$I$103,9,FALSE),"") -> 0.0904 | U29: =VLOOKUP(A29,Trends!$A$3:$H$94,8)+Sens -> 1.045 | V29: 3.140679007 | X29: 83871.39347 | Y29: 5980.324429 | Z29: 89851.7179 | AB29: 74494.87214 | AC29: 21547.49804 | AD29: 96042.37019 | AF29: 185894.0881 | AH29: =IF($B29<121,VLOOKUP($B29,Lookups!A:F,6)*(1-VLOOKUP($B29,Lookups!$N$3:$P$103,2))^($A29-$A$3),"") -> 0.398943 | AI29: =IF($B29<121,VLOOKUP($B29,Lookups!A:G,7)*(1-VLOOKUP($B29,Lookups!$N$3:$P$103,3))^($A29-$A$3),"") -> 0.330083 | AJ29: 0.398943 | AK29: 0.002461938903 | AL29: 0.4007065359 | AM29: 0.80763 | AP29: 148.1090916
A30: 2045 | B30: 107 | D30: =VLOOKUP(B30,Lookups!A:B,2) -> 16185.63 | E30: =VLOOKUP(B30,Lookups!A:C,3) -> 1506.57 | G30: =VLOOKUP(B30,Lookups!A:D,4) -> 153028.08 | H30: =VLOOKUP(B30,Lookups!A:E,5) -> 75893.55 | J30: =VLOOKUP(A30,Trends!$A$3:$H$94,IF(ExFlg=0,4,2))+Sens -> 1.059 | K30: 5.724132973 | L30: =VLOOKUP(A30,Trends!$A$3:$H$94,IF(ExFlg=0,5,3))+Sens -> 1.058 | M30: 5.482389891 | N30: =VLOOKUP(A30,Trends!$A$3:$H$94,6)+Sens -> 1.0485 | O30: 4.162017141 | Q30: =IF(B30<=120,VLOOKUP(B30,Lookups!$A$3:$I$103,8,FALSE),"") -> 0.155 | R30: =VLOOKUP(A30,Trends!$A$3:$H$94,7)+Sens -> 1.045 | S30: 3.282009562 | T30: =IF(B30<=120,VLOOKUP(B30,Lookups!$A$3:$I$103,9,FALSE),"") -> 0.0904 | U30: =VLOOKUP(A30,Trends!$A$3:$H$94,8)+Sens -> 1.045 | V30: 3.282009562 | X30: 88735.93429 | Y30: 6270.370164 | Z30: 95006.30446 | AB30: 77847.14139 | AC30: 22517.13546 | AD30: 100364.2768 | AF30: 195370.5813 | AH30: =IF($B30<121,VLOOKUP($B30,Lookups!A:F,6)*(1-VLOOKUP($B30,Lookups!$N$3:$P$103,2))^($A30-$A$3),"") -> 0.4 | AI30: =IF($B30<121,VLOOKUP($B30,Lookups!A:G,7)*(1-VLOOKUP($B30,Lookups!$N$3:$P$103,3))^($A30-$A$3),"") -> 0.3444925 | AJ30: 0.4 | AK30: 0.001479765611 | AL30: 0.3868570534 | AM30: 0.807162 | AP30: 90.27413306
A31: 2046 | B31: 108 | D31: =VLOOKUP(B31,Lookups!A:B,2) -> 16185.63 | E31: =VLOOKUP(B31,Lookups!A:C,3) -> 1506.57 | G31: =VLOOKUP(B31,Lookups!A:D,4) -> 153028.08 | H31: =VLOOKUP(B31,Lookups!A:E,5) -> 75893.55 | J31: =VLOOKUP(A31,Trends!$A$3:$H$94,IF(ExFlg=0,4,2))+Sens -> 1.059 | K31: 6.061856819 | L31: =VLOOKUP(A31,Trends!$A$3:$H$94,IF(ExFlg=0,5,3))+Sens -> 1.058 | M31: 5.800368505 | N31: =VLOOKUP(A31,Trends!$A$3:$H$94,6)+Sens -> 1.0485 | O31: 4.363874972 | Q31: =IF(B31<=120,VLOOKUP(B31,Lookups!$A$3:$I$103,8,FALSE),"") -> 0.155 | R31: =VLOOKUP(A31,Trends!$A$3:$H$94,7)+Sens -> 1.045 | S31: 3.429699993 | T31: =IF(B31<=120,VLOOKUP(B31,Lookups!$A$3:$I$103,9,FALSE),"") -> 0.0904 | U31: =VLOOKUP(A31,Trends!$A$3:$H$94,8)+Sens -> 1.045 | V31: 3.429699993 | X31: 93882.61848 | Y31: 6574.483117 | Z31: 100457.1016 | AB31: 81350.26275 | AC31: 23530.40655 | AD31: 104880.6693 | AF31: 205337.7709 | AH31: =IF($B31<121,VLOOKUP($B31,Lookups!A:F,6)*(1-VLOOKUP($B31,Lookups!$N$3:$P$103,2))^($A31-$A$3),"") -> 0.4 | AI31: =IF($B31<121,VLOOKUP($B31,Lookups!A:G,7)*(1-VLOOKUP($B31,Lookups!$N$3:$P$103,3))^($A31-$A$3),"") -> 0.3580805 | AJ31: 0.4 | AK31: 0.0008878593666 | AL31: 0.3734862458 | AM31: 0.807162 | AP31: 54.96020507
A32: 2047 | B32: 109 | D32: =VLOOKUP(B32,Lookups!A:B,2) -> 16185.63 | E32: =VLOOKUP(B32,Lookups!A:C,3) -> 1506.57 | G32: =VLOOKUP(B32,Lookups!A:D,4) -> 153028.08 | H32: =VLOOKUP(B32,Lookups!A:E,5) -> 75893.55 | J32: =VLOOKUP(A32,Trends!$A$3:$H$94,IF(ExFlg=0,4,2))+Sens -> 1.059 | K32: 6.419506371 | L32: =VLOOKUP(A32,Trends!$A$3:$H$94,IF(ExFlg=0,5,3))+Sens -> 1.057 | M32: 6.136789878 | N32: =VLOOKUP(A32,Trends!$A$3:$H$94,6)+Sens -> 1.0485 | O32: 4.575522908 | Q32: =IF(B32<=120,VLOOKUP(B32,Lookups!$A$3:$I$103,8,FALSE),"") -> 0.155 | R32: =VLOOKUP(A32,Trends!$A$3:$H$94,7)+Sens -> 1.045 | S32: 3.584036492 | T32: =IF(B32<=120,VLOOKUP(B32,Lookups!$A$3:$I$103,9,FALSE),"") -> 0.0904 | U32: =VLOOKUP(A32,Trends!$A$3:$H$94,8)+Sens -> 1.045 | V32: 3.584036492 | X32: 99327.81035 | Y32: 6893.345548 | Z32: 106221.1559 | AB32: 85011.02458 | AC32: 24589.27485 | AD32: 109600.2994 | AF32: 215821.4553 | AH32: =IF($B32<121,VLOOKUP($B32,Lookups!A:F,6)*(1-VLOOKUP($B32,Lookups!$N$3:$P$103,2))^($A32-$A$3),"") -> 0.4 | AI32: =IF($B32<121,VLOOKUP($B32,Lookups!A:G,7)*(1-VLOOKUP($B32,Lookups!$N$3:$P$103,3))^($A32-$A$3),"") -> 0.3704315 | AJ32: 0.4 | AK32: 0.00053271562 | AL32: 0.3605775689 | AM32: 0.807162 | AP32: 33.46181254
A33: 2048 | B33: 110 | D33: =VLOOKUP(B33,Lookups!A:B,2) -> 16185.63 | E33: =VLOOKUP(B33,Lookups!A:C,3) -> 1506.57 | G33: =VLOOKUP(B33,Lookups!A:D,4) -> 153028.08 | H33: =VLOOKUP(B33,Lookups!A:E,5) -> 75893.55 | J33: =VLOOKUP(A33,Trends!$A$3:$H$94,IF(ExFlg=0,4,2))+Sens -> 1.059 | K33: 6.798257247 | L33: =VLOOKUP(A33,Trends!$A$3:$H$94,IF(ExFlg=0,5,3))+Sens -> 1.057 | M33: 6.486586901 | N33: =VLOOKUP(A33,Trends!$A$3:$H$94,6)+Sens -> 1.0485 | O33: 4.797435769 | Q33: =IF(B33<=120,VLOOKUP(B33,Lookups!$A$3:$I$103,8,FALSE),"") -> 0.155 | R33: =VLOOKUP(A33,Trends!$A$3:$H$94,7)+Sens -> 1.045 | S33: 3.745318135 | T33: =IF(B33<=120,VLOOKUP(B33,Lookups!$A$3:$I$103,9,FALSE),"") -> 0.0904 | U33: =VLOOKUP(A33,Trends!$A$3:$H$94,8)+Sens -> 1.045 | V33: 3.745318135 | X33: 104989.4955 | Y33: 7227.672807 | Z33: 112217.1683 | AB33: 88836.52068 | AC33: 25695.79222 | AD33: 114532.3129 | AF33: 226749.4812 | AH33: =IF($B33<121,VLOOKUP($B33,Lookups!A:F,6)*(1-VLOOKUP($B33,Lookups!$N$3:$P$103,2))^($A33-$A$3),"") -> 0.4 | AI33: =IF($B33<121,VLOOKUP($B33,Lookups!A:G,7)*(1-VLOOKUP($B33,Lookups!$N$3:$P$103,3))^($A33-$A$3),"") -> 0.3811305 | AJ33: 0.4 | AK33: 0.000319629372 | AL33: 0.3481150501 | AM33: 0.807162 | AP33: 20.36462846
A34: 2049 | B34: 111 | D34: =VLOOKUP(B34,Lookups!A:B,2) -> 16185.63 | E34: =VLOOKUP(B34,Lookups!A:C,3) -> 1506.57 | G34: =VLOOKUP(B34,Lookups!A:D,4) -> 153028.08 | H34: =VLOOKUP(B34,Lookups!A:E,5) -> 75893.55 | J34: =VLOOKUP(A34,Trends!$A$3:$H$94,IF(ExFlg=0,4,2))+Sens -> 1.059 | K34: 7.199354425 | L34: =VLOOKUP(A34,Trends!$A$3:$H$94,IF(ExFlg=0,5,3))+Sens -> 1.057 | M34: 6.856322354 | N34: =VLOOKUP(A34,Trends!$A$3:$H$94,6)+Sens -> 1.048 | O34: 5.030111404 | Q34: =IF(B34<=120,VLOOKUP(B34,Lookups!$A$3:$I$103,8,FALSE),"") -> 0.155 | R34: =VLOOKUP(A34,Trends!$A$3:$H$94,7)+Sens -> 1.045 | S34: 3.913857451 | T34: =IF(B34<=120,VLOOKUP(B34,Lookups!$A$3:$I$103,9,FALSE),"") -> 0.0904 | U34: =VLOOKUP(A34,Trends!$A$3:$H$94,8)+Sens -> 1.045 | V34: 3.913857451 | X34: 110973.8968 | Y34: 7578.214938 | Z34: 118552.1117 | AB34: 92834.16411 | AC34: 26852.10287 | AD34: 119686.267 | AF34: 238238.3787 | AH34: =IF($B34<121,VLOOKUP($B34,Lookups!A:F,6)*(1-VLOOKUP($B34,Lookups!$N$3:$P$103,2))^($A34-$A$3),"") -> 0.4 | AI34: =IF($B34<121,VLOOKUP($B34,Lookups!A:G,7)*(1-VLOOKUP($B34,Lookups!$N$3:$P$103,3))^($A34-$A$3),"") -> 0.389761 | AJ34: 0.4 | AK34: 0.0001917776232 | AL34: 0.336083269 | AM34: 0.807162 | AP34: 12.39416454
A35: 2050 | B35: 112 | D35: =VLOOKUP(B35,Lookups!A:B,2) -> 16185.63 | E35: =VLOOKUP(B35,Lookups!A:C,3) -> 1506.57 | G35: =VLOOKUP(B35,Lookups!A:D,4) -> 153028.08 | H35: =VLOOKUP(B35,Lookups!A:E,5) -> 75893.55 | J35: =VLOOKUP(A35,Trends!$A$3:$H$94,IF(ExFlg=0,4,2))+Sens -> 1.059 | K35: 7.624116336 | L35: =VLOOKUP(A35,Trends!$A$3:$H$94,IF(ExFlg=0,5,3))+Sens -> 1.057 | M35: 7.247132729 | N35: =VLOOKUP(A35,Trends!$A$3:$H$94,6)+Sens -> 1.0475 | O35: 5.271556751 | Q35: =IF(B35<=120,VLOOKUP(B35,Lookups!$A$3:$I$103,8,FALSE),"") -> 0.155 | R35: =VLOOKUP(A35,Trends!$A$3:$H$94,7)+Sens -> 1.045 | S35: 4.089981036 | T35: =IF(B35<=120,VLOOKUP(B35,Lookups!$A$3:$I$103,9,FALSE),"") -> 0.0904 | U35: =VLOOKUP(A35,Trends!$A$3:$H$94,8)+Sens -> 1.045 | V35: 4.089981036 | X35: 117299.4089 | Y35: 7941.969255 | Z35: 125241.3782 | AB35: 97011.7015 | AC35: 28060.44749 | AD35: 125072.149 | AF35: 250313.5272 | AH35: =IF($B35<121,VLOOKUP($B35,Lookups!A:F,6)*(1-VLOOKUP($B35,Lookups!$N$3:$P$103,2))^($A35-$A$3),"") -> 0.4 | AI35: =IF($B35<121,VLOOKUP($B35,Lookups!A:G,7)*(1-VLOOKUP($B35,Lookups!$N$3:$P$103,3))^($A35-$A$3),"") -> 0.3959075 | AJ35: =IF(B35<121,(PCTMALE*AH35+(1-PCTMALE)*AI35),"") -> 0.4 | AK35: 0.0001150665739 | AL35: 0.3244673383 | AM35: =IF(AJ35="","",ROUND((13/24)+(11/24)*(1/(1+IntRt))*(1-AJ35),6)) -> 0.807162 | AP35: 7.54336628
A36: =1+A35 -> 2051 | B36: =1+B35 -> 113 | D36: =VLOOKUP(B36,Lookups!A:B,2) -> 16185.63 | E36: =VLOOKUP(B36,Lookups!A:C,3) -> 1506.57 | G36: =VLOOKUP(B36,Lookups!A:D,4) -> 153028.08 | H36: =VLOOKUP(B36,Lookups!A:E,5) -> 75893.55 | J36: =VLOOKUP(A36,Trends!$A$3:$H$94,IF(ExFlg=0,4,2))+Sens -> 1.059 | K36: 8.0739392 | L36: =VLOOKUP(A36,Trends!$A$3:$H$94,IF(ExFlg=0,5,3))+Sens -> 1.057 | M36: 7.660219294 | N36: =VLOOKUP(A36,Trends!$A$3:$H$94,6)+Sens -> 1.0475 | O36: 5.521955697 | Q36: =IF(B36<=120,VLOOKUP(B36,Lookups!$A$3:$I$103,8,FALSE),"") -> 0.155 | R36: =VLOOKUP(A36,Trends!$A$3:$H$94,7)+Sens -> 1.045 | S36: 4.274030182 | T36: =IF(B36<=120,VLOOKUP(B36,Lookups!$A$3:$I$103,9,FALSE),"") -> 0.0904 | U36: =VLOOKUP(A36,Trends!$A$3:$H$94,8)+Sens -> 1.045 | V36: 4.274030182 | X36: 123985.4752 | Y36: 8319.212795 | Z36: 132304.688 | AB36: 101377.2281 | AC36: 29323.16763 | AD36: 130700.3957 | AF36: 263005.0837 | AH36: =IF($B36<121,VLOOKUP($B36,Lookups!A:F,6)*(1-VLOOKUP($B36,Lookups!$N$3:$P$103,2))^($A36-$A$3),"") -> 0.4 | AI36: =IF($B36<121,VLOOKUP($B36,Lookups!A:G,7)*(1-VLOOKUP($B36,Lookups!$N$3:$P$103,3))^($A36-$A$3),"") -> 0.399154 | AJ36: 0.4 | AK36: 6.903994435e-05 | AL36: =IF(B36<121,AL35/(1+IntRt),"") -> 0.313252885 | AM36: 0.807162 | AP36: 4.591138171
A37: 2052 | B37: 114 | D37: =VLOOKUP(B37,Lookups!A:B,2) -> 16185.63 | E37: =VLOOKUP(B37,Lookups!A:C,3) -> 1506.57 | G37: =VLOOKUP(B37,Lookups!A:D,4) -> 153028.08 | H37: =VLOOKUP(B37,Lookups!A:E,5) -> 75893.55 | J37: =VLOOKUP(A37,Trends!$A$3:$H$94,IF(ExFlg=0,4,2))+Sens -> 1.059 | K37: 8.550301612 | L37: =VLOOKUP(A37,Trends!$A$3:$H$94,IF(ExFlg=0,5,3))+Sens -> 1.056 | M37: 8.096851794 | N37: =VLOOKUP(A37,Trends!$A$3:$H$94,6)+Sens -> 1.0475 | O37: 5.784248593 | Q37: =IF(B37<=120,VLOOKUP(B37,Lookups!$A$3:$I$103,8,FALSE),"") -> 0.155 | R37: =VLOOKUP(A37,Trends!$A$3:$H$94,7)+Sens -> 1.045 | S37: 4.466361541 | T37: =IF(B37<=120,VLOOKUP(B37,Lookups!$A$3:$I$103,9,FALSE),"") -> 0.0904 | U37: =VLOOKUP(A37,Trends!$A$3:$H$94,8)+Sens -> 1.045 | V37: 4.466361541 | X37: 131052.6473 | Y37: 8714.375402 | Z37: 139767.0227 | AB37: 105939.2033 | AC37: 30642.71017 | AD37: 136581.9135 | AF37: 276348.9362 | AH37: =IF($B37<121,VLOOKUP($B37,Lookups!A:F,6)*(1-VLOOKUP($B37,Lookups!$N$3:$P$103,2))^($A37-$A$3),"") -> 0.4 | AI37: =IF($B37<121,VLOOKUP($B37,Lookups!A:G,7)*(1-VLOOKUP($B37,Lookups!$N$3:$P$103,3))^($A37-$A$3),"") -> 0.4 | AJ37: 0.4 | AK37: 4.142396661e-05 | AL37: 0.302426033 | AM37: 0.807162 | AP37: 2.794405071
A38: 2053 | B38: 115 | D38: =VLOOKUP(B38,Lookups!A:B,2) -> 16185.63 | E38: =VLOOKUP(B38,Lookups!A:C,3) -> 1506.57 | G38: =VLOOKUP(B38,Lookups!A:D,4) -> 153028.08 | H38: =VLOOKUP(B38,Lookups!A:E,5) -> 75893.55 | J38: =VLOOKUP(A38,Trends!$A$3:$H$94,IF(ExFlg=0,4,2))+Sens -> 1.059 | K38: 9.054769407 | L38: =VLOOKUP(A38,Trends!$A$3:$H$94,IF(ExFlg=0,5,3))+Sens -> 1.056 | M38: 8.550275494 | N38: =VLOOKUP(A38,Trends!$A$3:$H$94,6)+Sens -> 1.0475 | O38: 6.059000401 | Q38: =IF(B38<=120,VLOOKUP(B38,Lookups!$A$3:$I$103,8,FALSE),"") -> 0.155 | R38: =VLOOKUP(A38,Trends!$A$3:$H$94,7)+Sens -> 1.045 | S38: 4.66734781 | T38: =IF(B38<=120,VLOOKUP(B38,Lookups!$A$3:$I$103,9,FALSE),"") -> 0.0904 | U38: =VLOOKUP(A38,Trends!$A$3:$H$94,8)+Sens -> 1.045 | V38: 4.66734781 | X38: 138391.5955 | Y38: 9128.308234 | Z38: 147519.9038 | AB38: 110706.4675 | AC38: 32021.63213 | AD38: 142728.0996 | AF38: 290248.0034 | AH38: =IF($B38<121,VLOOKUP($B38,Lookups!A:F,6)*(1-VLOOKUP($B38,Lookups!$N$3:$P$103,2))^($A38-$A$3),"") -> 0.4 | AI38: =IF($B38<121,VLOOKUP($B38,Lookups!A:G,7)*(1-VLOOKUP($B38,Lookups!$N$3:$P$103,3))^($A38-$A$3),"") -> 0.4 | AJ38: 0.4 | AK38: 2.485437997e-05 | AL38: 0.2919733858 | AM38: 0.807162 | AP38: 1.70010658
A39: 2054 | B39: 116 | D39: =VLOOKUP(B39,Lookups!A:B,2) -> 16185.63 | E39: =VLOOKUP(B39,Lookups!A:C,3) -> 1506.57 | G39: =VLOOKUP(B39,Lookups!A:D,4) -> 153028.08 | H39: =VLOOKUP(B39,Lookups!A:E,5) -> 75893.55 | J39: =VLOOKUP(A39,Trends!$A$3:$H$94,IF(ExFlg=0,4,2))+Sens -> 1.059 | K39: 9.589000802 | L39: =VLOOKUP(A39,Trends!$A$3:$H$94,IF(ExFlg=0,5,3))+Sens -> 1.056 | M39: 9.029090922 | N39: =VLOOKUP(A39,Trends!$A$3:$H$94,6)+Sens -> 1.0475 | O39: 6.34680292 | Q39: =IF(B39<=120,VLOOKUP(B39,Lookups!$A$3:$I$103,8,FALSE),"") -> 0.155 | R39: =VLOOKUP(A39,Trends!$A$3:$H$94,7)+Sens -> 1.045 | S39: 4.877378461 | T39: =IF(B39<=120,VLOOKUP(B39,Lookups!$A$3:$I$103,9,FALSE),"") -> 0.0904 | U39: =VLOOKUP(A39,Trends!$A$3:$H$94,8)+Sens -> 1.045 | V39: 4.877378461 | X39: 146141.5249 | Y39: 9561.902875 | Z39: 155703.4278 | AB39: 115688.2585 | AC39: 33462.60558 | AD39: 149150.8641 | AF39: 304854.2919 | AH39: =IF($B39<121,VLOOKUP($B39,Lookups!A:F,6)*(1-VLOOKUP($B39,Lookups!$N$3:$P$103,2))^($A39-$A$3),"") -> 0.4 | AI39: =IF($B39<121,VLOOKUP($B39,Lookups!A:G,7)*(1-VLOOKUP($B39,Lookups!$N$3:$P$103,3))^($A39-$A$3),"") -> 0.4 | AJ39: 0.4 | AK39: 1.491262798e-05 | AL39: 0.2818820099 | AM39: 0.807162 | AP39: 1.034366781
A40: 2055 | B40: 117 | D40: =VLOOKUP(B40,Lookups!A:B,2) -> 16185.63 | E40: =VLOOKUP(B40,Lookups!A:C,3) -> 1506.57 | G40: =VLOOKUP(B40,Lookups!A:D,4) -> 153028.08 | H40: =VLOOKUP(B40,Lookups!A:E,5) -> 75893.55 | J40: =VLOOKUP(A40,Trends!$A$3:$H$94,IF(ExFlg=0,4,2))+Sens -> 1.059 | K40: 10.15475185 | L40: =VLOOKUP(A40,Trends!$A$3:$H$94,IF(ExFlg=0,5,3))+Sens -> 1.056 | M40: 9.534720014 | N40: =VLOOKUP(A40,Trends!$A$3:$H$94,6)+Sens -> 1.0475 | O40: 6.648276059 | Q40: =IF(B40<=120,VLOOKUP(B40,Lookups!$A$3:$I$103,8,FALSE),"") -> 0.155 | R40: =VLOOKUP(A40,Trends!$A$3:$H$94,7)+Sens -> 1.045 | S40: 5.096860492 | T40: =IF(B40<=120,VLOOKUP(B40,Lookups!$A$3:$I$103,9,FALSE),"") -> 0.0904 | U40: =VLOOKUP(A40,Trends!$A$3:$H$94,8)+Sens -> 1.045 | V40: 5.096860492 | X40: 154325.4503 | Y40: 10016.09326 | Z40: 164341.5436 | AB40: 120894.2301 | AC40: 34968.42283 | AD40: 155862.653 | AF40: 320204.1965 | AH40: =IF($B40<121,VLOOKUP($B40,Lookups!A:F,6)*(1-VLOOKUP($B40,Lookups!$N$3:$P$103,2))^($A40-$A$3),"") -> 0.4 | AI40: =IF($B40<121,VLOOKUP($B40,Lookups!A:G,7)*(1-VLOOKUP($B40,Lookups!$N$3:$P$103,3))^($A40-$A$3),"") -> 0.4 | AJ40: 0.4 | AK40: 8.947576788e-06 | AL40: 0.2721394187 | AM40: 0.807162 | AP40: 0.6293389542
A41: 2056 | B41: 118 | D41: =VLOOKUP(B41,Lookups!A:B,2) -> 16185.63 | E41: =VLOOKUP(B41,Lookups!A:C,3) -> 1506.57 | G41: =VLOOKUP(B41,Lookups!A:D,4) -> 153028.08 | H41: =VLOOKUP(B41,Lookups!A:E,5) -> 75893.55 | J41: =VLOOKUP(A41,Trends!$A$3:$H$94,IF(ExFlg=0,4,2))+Sens -> 1.059 | K41: 10.75388221 | L41: =VLOOKUP(A41,Trends!$A$3:$H$94,IF(ExFlg=0,5,3))+Sens -> 1.056 | M41: 10.06866433 | N41: =VLOOKUP(A41,Trends!$A$3:$H$94,6)+Sens -> 1.0475 | O41: 6.964069171 | Q41: =IF(B41<=120,VLOOKUP(B41,Lookups!$A$3:$I$103,8,FALSE),"") -> 0.155 | R41: =VLOOKUP(A41,Trends!$A$3:$H$94,7)+Sens -> 1.045 | S41: 5.326219214 | T41: =IF(B41<=120,VLOOKUP(B41,Lookups!$A$3:$I$103,9,FALSE),"") -> 0.0904 | U41: =VLOOKUP(A41,Trends!$A$3:$H$94,8)+Sens -> 1.045 | V41: 5.326219214 | X41: 162967.6755 | Y41: 10491.85769 | Z41: 173459.5332 | AB41: 126334.4705 | AC41: 36542.00186 | AD41: 162876.4724 | AF41: 336336.0056 | AH41: =IF($B41<121,VLOOKUP($B41,Lookups!A:F,6)*(1-VLOOKUP($B41,Lookups!$N$3:$P$103,2))^($A41-$A$3),"") -> 0.7 | AI41: =IF($B41<121,VLOOKUP($B41,Lookups!A:G,7)*(1-VLOOKUP($B41,Lookups!$N$3:$P$103,3))^($A41-$A$3),"") -> 0.7 | AJ41: 0.7 | AK41: 5.368546073e-06 | AL41: 0.2627335573 | AM41: 0.674414 | AP41: 0.3199426737
A42: 2057 | B42: 119 | D42: =VLOOKUP(B42,Lookups!A:B,2) -> 16185.63 | E42: =VLOOKUP(B42,Lookups!A:C,3) -> 1506.57 | G42: =VLOOKUP(B42,Lookups!A:D,4) -> 153028.08 | H42: =VLOOKUP(B42,Lookups!A:E,5) -> 75893.55 | J42: =VLOOKUP(A42,Trends!$A$3:$H$94,IF(ExFlg=0,4,2))+Sens -> 1.059 | K42: 11.38836126 | L42: =VLOOKUP(A42,Trends!$A$3:$H$94,IF(ExFlg=0,5,3))+Sens -> 1.056 | M42: 10.63250954 | N42: =VLOOKUP(A42,Trends!$A$3:$H$94,6)+Sens -> 1.0475 | O42: 7.294862457 | Q42: =IF(B42<=120,VLOOKUP(B42,Lookups!$A$3:$I$103,8,FALSE),"") -> 0.155 | R42: =VLOOKUP(A42,Trends!$A$3:$H$94,7)+Sens -> 1.045 | S42: 5.565899079 | T42: =IF(B42<=120,VLOOKUP(B42,Lookups!$A$3:$I$103,9,FALSE),"") -> 0.0904 | U42: =VLOOKUP(A42,Trends!$A$3:$H$94,8)+Sens -> 1.045 | V42: 5.565899079 | X42: 172093.8653 | Y42: 10990.22093 | Z42: 183084.0863 | AB42: 132019.5217 | AC42: 38186.39194 | AD42: 170205.9136 | AF42: 353289.9999 | AH42: =IF($B42<121,VLOOKUP($B42,Lookups!A:F,6)*(1-VLOOKUP($B42,Lookups!$N$3:$P$103,2))^($A42-$A$3),"") -> 0.7 | AI42: =IF($B42<121,VLOOKUP($B42,Lookups!A:G,7)*(1-VLOOKUP($B42,Lookups!$N$3:$P$103,3))^($A42-$A$3),"") -> 1 | AJ42: 0.7 | AK42: 1.610563822e-06 | AL42: 0.2536527875 | AM42: 0.674414 | AP42: 0.09733644946
A43: 2058 | B43: 120 | D43: =VLOOKUP(B43,Lookups!A:B,2) -> 16185.63 | E43: =VLOOKUP(B43,Lookups!A:C,3) -> 1506.57 | G43: =VLOOKUP(B43,Lookups!A:D,4) -> 153028.08 | H43: =VLOOKUP(B43,Lookups!A:E,5) -> 75893.55 | J43: =VLOOKUP(A43,Trends!$A$3:$H$94,IF(ExFlg=0,4,2))+Sens -> 1.059 | K43: 12.06027457 | L43: =VLOOKUP(A43,Trends!$A$3:$H$94,IF(ExFlg=0,5,3))+Sens -> 1.056 | M43: 11.22793007 | N43: =VLOOKUP(A43,Trends!$A$3:$H$94,6)+Sens -> 1.0475 | O43: 7.641368424 | Q43: =IF(B43<=120,VLOOKUP(B43,Lookups!$A$3:$I$103,8,FALSE),"") -> 0.155 | R43: =VLOOKUP(A43,Trends!$A$3:$H$94,7)+Sens -> 1.045 | S43: 5.816364538 | T43: =IF(B43<=120,VLOOKUP(B43,Lookups!$A$3:$I$103,9,FALSE),"") -> 0.0904 | U43: =VLOOKUP(A43,Trends!$A$3:$H$94,8)+Sens -> 1.045 | V43: 5.816364538 | X43: 181731.1218 | Y43: 11512.25643 | Z43: 193243.3782 | AB43: 137960.4002 | AC43: 39904.77958 | AD43: 177865.1797 | AF43: 371108.558 | AH43: =IF($B43<121,VLOOKUP($B43,Lookups!A:F,6)*(1-VLOOKUP($B43,Lookups!$N$3:$P$103,2))^($A43-$A$3),"") -> 1 | AI43: =IF($B43<121,VLOOKUP($B43,Lookups!A:G,7)*(1-VLOOKUP($B43,Lookups!$N$3:$P$103,3))^($A43-$A$3),"") -> 1 | AJ43: 1 | AK43: 4.831691465e-07 | AL43: 0.2448858733 | AM43: 0.541667 | AP43: 0.02378462312
A44: 2059 | B44: 121 | D44: =VLOOKUP(B44,Lookups!A:B,2) -> 16185.63 | E44: =VLOOKUP(B44,Lookups!A:C,3) -> 1506.57 | G44: =VLOOKUP(B44,Lookups!A:D,4) -> 153028.08 | H44: =VLOOKUP(B44,Lookups!A:E,5) -> 75893.55 | J44: =VLOOKUP(A44,Trends!$A$3:$H$94,IF(ExFlg=0,4,2))+Sens -> 1.059 | K44: 12.77183077 | L44: =VLOOKUP(A44,Trends!$A$3:$H$94,IF(ExFlg=0,5,3))+Sens -> 1.056 | M44: 11.85669416 | N44: =VLOOKUP(A44,Trends!$A$3:$H$94,6)+Sens -> 1.0475 | O44: 8.004333424 | Q44: =IF(B44<=120,VLOOKUP(B44,Lookups!$A$3:$I$103,8,FALSE),"") ->  | R44: =VLOOKUP(A44,Trends!$A$3:$H$94,7)+Sens -> 1.045 | S44: 6.078100942 | T44: =IF(B44<=120,VLOOKUP(B44,Lookups!$A$3:$I$103,9,FALSE),"") ->  | U44: =VLOOKUP(A44,Trends!$A$3:$H$94,8)+Sens -> 1.045 | V44: 6.078100942 | AH44: =IF($B44<121,VLOOKUP($B44,Lookups!A:F,6)*(1-VLOOKUP($B44,Lookups!$N$3:$P$103,2))^($A44-$A$3),"") ->  | AI44: =IF($B44<121,VLOOKUP($B44,Lookups!A:G,7)*(1-VLOOKUP($B44,Lookups!$N$3:$P$103,3))^($A44-$A$3),"") -> 
A45: 2060 | B45: 122 | D45: =VLOOKUP(B45,Lookups!A:B,2) -> 16185.63 | E45: =VLOOKUP(B45,Lookups!A:C,3) -> 1506.57 | G45: =VLOOKUP(B45,Lookups!A:D,4) -> 153028.08 | H45: =VLOOKUP(B45,Lookups!A:E,5) -> 75893.55 | J45: =VLOOKUP(A45,Trends!$A$3:$H$94,IF(ExFlg=0,4,2))+Sens -> 1.059 | K45: 13.52536879 | L45: =VLOOKUP(A45,Trends!$A$3:$H$94,IF(ExFlg=0,5,3))+Sens -> 1.055 | M45: 12.52066903 | N45: =VLOOKUP(A45,Trends!$A$3:$H$94,6)+Sens -> 1.0475 | O45: 8.384539262 | Q45: =IF(B45<=120,VLOOKUP(B45,Lookups!$A$3:$I$103,8,FALSE),"") ->  | R45: =VLOOKUP(A45,Trends!$A$3:$H$94,7)+Sens -> 1.045 | S45: 6.351615484 | T45: =IF(B45<=120,VLOOKUP(B45,Lookups!$A$3:$I$103,9,FALSE),"") ->  | U45: =VLOOKUP(A45,Trends!$A$3:$H$94,8)+Sens -> 1.045 | V45: 6.351615484 | AH45: =IF($B45<121,VLOOKUP($B45,Lookups!A:F,6)*(1-VLOOKUP($B45,Lookups!$N$3:$P$103,2))^($A45-$A$3),"") ->  | AI45: =IF($B45<121,VLOOKUP($B45,Lookups!A:G,7)*(1-VLOOKUP($B45,Lookups!$N$3:$P$103,3))^($A45-$A$3),"") -> 
A46: 2061 | B46: 123 | D46: =VLOOKUP(B46,Lookups!A:B,2) -> 16185.63 | E46: =VLOOKUP(B46,Lookups!A:C,3) -> 1506.57 | G46: =VLOOKUP(B46,Lookups!A:D,4) -> 153028.08 | H46: =VLOOKUP(B46,Lookups!A:E,5) -> 75893.55 | J46: =VLOOKUP(A46,Trends!$A$3:$H$94,IF(ExFlg=0,4,2))+Sens -> 1.059 | K46: 14.32336555 | L46: =VLOOKUP(A46,Trends!$A$3:$H$94,IF(ExFlg=0,5,3))+Sens -> 1.055 | M46: 13.20930582 | N46: =VLOOKUP(A46,Trends!$A$3:$H$94,6)+Sens -> 1.0475 | O46: 8.782804876 | Q46: =IF(B46<=120,VLOOKUP(B46,Lookups!$A$3:$I$103,8,FALSE),"") ->  | R46: =VLOOKUP(A46,Trends!$A$3:$H$94,7)+Sens -> 1.045 | S46: 6.637438181 | T46: =IF(B46<=120,VLOOKUP(B46,Lookups!$A$3:$I$103,9,FALSE),"") ->  | U46: =VLOOKUP(A46,Trends!$A$3:$H$94,8)+Sens -> 1.045 | V46: 6.637438181 | AH46: =IF($B46<121,VLOOKUP($B46,Lookups!A:F,6)*(1-VLOOKUP($B46,Lookups!$N$3:$P$103,2))^($A46-$A$3),"") ->  | AI46: =IF($B46<121,VLOOKUP($B46,Lookups!A:G,7)*(1-VLOOKUP($B46,Lookups!$N$3:$P$103,3))^($A46-$A$3),"") -> 
A47: 2062 | B47: 124 | D47: =VLOOKUP(B47,Lookups!A:B,2) -> 16185.63 | E47: =VLOOKUP(B47,Lookups!A:C,3) -> 1506.57 | G47: =VLOOKUP(B47,Lookups!A:D,4) -> 153028.08 | H47: =VLOOKUP(B47,Lookups!A:E,5) -> 75893.55 | J47: =VLOOKUP(A47,Trends!$A$3:$H$94,IF(ExFlg=0,4,2))+Sens -> 1.059 | K47: 15.16844411 | L47: =VLOOKUP(A47,Trends!$A$3:$H$94,IF(ExFlg=0,5,3))+Sens -> 1.055 | M47: 13.93581764 | N47: =VLOOKUP(A47,Trends!$A$3:$H$94,6)+Sens -> 1.0475 | O47: 9.199988108 | Q47: =IF(B47<=120,VLOOKUP(B47,Lookups!$A$3:$I$103,8,FALSE),"") ->  | R47: =VLOOKUP(A47,Trends!$A$3:$H$94,7)+Sens -> 1.045 | S47: 6.936122899 | T47: =IF(B47<=120,VLOOKUP(B47,Lookups!$A$3:$I$103,9,FALSE),"") ->  | U47: =VLOOKUP(A47,Trends!$A$3:$H$94,8)+Sens -> 1.045 | V47: 6.936122899 | AH47: =IF($B47<121,VLOOKUP($B47,Lookups!A:F,6)*(1-VLOOKUP($B47,Lookups!$N$3:$P$103,2))^($A47-$A$3),"") ->  | AI47: =IF($B47<121,VLOOKUP($B47,Lookups!A:G,7)*(1-VLOOKUP($B47,Lookups!$N$3:$P$103,3))^($A47-$A$3),"") -> 
A48: 2063 | B48: 125 | D48: =VLOOKUP(B48,Lookups!A:B,2) -> 16185.63 | E48: =VLOOKUP(B48,Lookups!A:C,3) -> 1506.57 | G48: =VLOOKUP(B48,Lookups!A:D,4) -> 153028.08 | H48: =VLOOKUP(B48,Lookups!A:E,5) -> 75893.55 | J48: =VLOOKUP(A48,Trends!$A$3:$H$94,IF(ExFlg=0,4,2))+Sens -> 1.059 | K48: 16.06338232 | L48: =VLOOKUP(A48,Trends!$A$3:$H$94,IF(ExFlg=0,5,3))+Sens -> 1.055 | M48: 14.70228762 | N48: =VLOOKUP(A48,Trends!$A$3:$H$94,6)+Sens -> 1.0475 | O48: 9.636987543 | Q48: =IF(B48<=120,VLOOKUP(B48,Lookups!$A$3:$I$103,8,FALSE),"") ->  | R48: =VLOOKUP(A48,Trends!$A$3:$H$94,7)+Sens -> 1.045 | S48: 7.24824843 | T48: =IF(B48<=120,VLOOKUP(B48,Lookups!$A$3:$I$103,9,FALSE),"") ->  | U48: =VLOOKUP(A48,Trends!$A$3:$H$94,8)+Sens -> 1.045 | V48: 7.24824843 | AH48: =IF($B48<121,VLOOKUP($B48,Lookups!A:F,6)*(1-VLOOKUP($B48,Lookups!$N$3:$P$103,2))^($A48-$A$3),"") ->  | AI48: =IF($B48<121,VLOOKUP($B48,Lookups!A:G,7)*(1-VLOOKUP($B48,Lookups!$N$3:$P$103,3))^($A48-$A$3),"") -> 
A49: 2064 | B49: 126 | D49: =VLOOKUP(B49,Lookups!A:B,2) -> 16185.63 | E49: =VLOOKUP(B49,Lookups!A:C,3) -> 1506.57 | G49: =VLOOKUP(B49,Lookups!A:D,4) -> 153028.08 | H49: =VLOOKUP(B49,Lookups!A:E,5) -> 75893.55 | J49: =VLOOKUP(A49,Trends!$A$3:$H$94,IF(ExFlg=0,4,2))+Sens -> 1.059 | K49: 17.01112187 | L49: =VLOOKUP(A49,Trends!$A$3:$H$94,IF(ExFlg=0,5,3))+Sens -> 1.054 | M49: 15.51091343 | N49: =VLOOKUP(A49,Trends!$A$3:$H$94,6)+Sens -> 1.0475 | O49: 10.09474445 | Q49: =IF(B49<=120,VLOOKUP(B49,Lookups!$A$3:$I$103,8,FALSE),"") ->  | R49: =VLOOKUP(A49,Trends!$A$3:$H$94,7)+Sens -> 1.045 | S49: 7.574419609 | T49: =IF(B49<=120,VLOOKUP(B49,Lookups!$A$3:$I$103,9,FALSE),"") ->  | U49: =VLOOKUP(A49,Trends!$A$3:$H$94,8)+Sens -> 1.045 | V49: 7.574419609 | AH49: =IF($B49<121,VLOOKUP($B49,Lookups!A:F,6)*(1-VLOOKUP($B49,Lookups!$N$3:$P$103,2))^($A49-$A$3),"") ->  | AI49: =IF($B49<121,VLOOKUP($B49,Lookups!A:G,7)*(1-VLOOKUP($B49,Lookups!$N$3:$P$103,3))^($A49-$A$3),"") -> 
A50: 2065 | B50: 127 | D50: =VLOOKUP(B50,Lookups!A:B,2) -> 16185.63 | E50: =VLOOKUP(B50,Lookups!A:C,3) -> 1506.57 | G50: =VLOOKUP(B50,Lookups!A:D,4) -> 153028.08 | H50: =VLOOKUP(B50,Lookups!A:E,5) -> 75893.55 | J50: =VLOOKUP(A50,Trends!$A$3:$H$94,IF(ExFlg=0,4,2))+Sens -> 1.059 | K50: 18.01477806 | L50: =VLOOKUP(A50,Trends!$A$3:$H$94,IF(ExFlg=0,5,3))+Sens -> 1.054 | M50: 16.34850276 | N50: =VLOOKUP(A50,Trends!$A$3:$H$94,6)+Sens -> 1.0475 | O50: 10.57424481 | Q50: =IF(B50<=120,VLOOKUP(B50,Lookups!$A$3:$I$103,8,FALSE),"") ->  | R50: =VLOOKUP(A50,Trends!$A$3:$H$94,7)+Sens -> 1.045 | S50: 7.915268491 | T50: =IF(B50<=120,VLOOKUP(B50,Lookups!$A$3:$I$103,9,FALSE),"") ->  | U50: =VLOOKUP(A50,Trends!$A$3:$H$94,8)+Sens -> 1.045 | V50: 7.915268491 | AH50: =IF($B50<121,VLOOKUP($B50,Lookups!A:F,6)*(1-VLOOKUP($B50,Lookups!$N$3:$P$103,2))^($A50-$A$3),"") ->  | AI50: =IF($B50<121,VLOOKUP($B50,Lookups!A:G,7)*(1-VLOOKUP($B50,Lookups!$N$3:$P$103,3))^($A50-$A$3),"") -> 
A51: 2066 | B51: 128 | D51: =VLOOKUP(B51,Lookups!A:B,2) -> 16185.63 | E51: =VLOOKUP(B51,Lookups!A:C,3) -> 1506.57 | G51: =VLOOKUP(B51,Lookups!A:D,4) -> 153028.08 | H51: =VLOOKUP(B51,Lookups!A:E,5) -> 75893.55 | J51: =VLOOKUP(A51,Trends!$A$3:$H$94,IF(ExFlg=0,4,2))+Sens -> 1.059 | K51: 19.07764997 | L51: =VLOOKUP(A51,Trends!$A$3:$H$94,IF(ExFlg=0,5,3))+Sens -> 1.053 | M51: 17.23132191 | N51: =VLOOKUP(A51,Trends!$A$3:$H$94,6)+Sens -> 1.0475 | O51: 11.07652144 | Q51: =IF(B51<=120,VLOOKUP(B51,Lookups!$A$3:$I$103,8,FALSE),"") ->  | R51: =VLOOKUP(A51,Trends!$A$3:$H$94,7)+Sens -> 1.045 | S51: 8.271455573 | T51: =IF(B51<=120,VLOOKUP(B51,Lookups!$A$3:$I$103,9,FALSE),"") ->  | U51: =VLOOKUP(A51,Trends!$A$3:$H$94,8)+Sens -> 1.045 | V51: 8.271455573 | AH51: =IF($B51<121,VLOOKUP($B51,Lookups!A:F,6)*(1-VLOOKUP($B51,Lookups!$N$3:$P$103,2))^($A51-$A$3),"") ->  | AI51: =IF($B51<121,VLOOKUP($B51,Lookups!A:G,7)*(1-VLOOKUP($B51,Lookups!$N$3:$P$103,3))^($A51-$A$3),"") -> 
A52: 2067 | B52: 129 | D52: =VLOOKUP(B52,Lookups!A:B,2) -> 16185.63 | E52: =VLOOKUP(B52,Lookups!A:C,3) -> 1506.57 | G52: =VLOOKUP(B52,Lookups!A:D,4) -> 153028.08 | H52: =VLOOKUP(B52,Lookups!A:E,5) -> 75893.55 | J52: =VLOOKUP(A52,Trends!$A$3:$H$94,IF(ExFlg=0,4,2))+Sens -> 1.059 | K52: 20.20323132 | L52: =VLOOKUP(A52,Trends!$A$3:$H$94,IF(ExFlg=0,5,3))+Sens -> 1.052 | M52: 18.14458197 | N52: =VLOOKUP(A52,Trends!$A$3:$H$94,6)+Sens -> 1.0475 | O52: 11.60265621 | Q52: =IF(B52<=120,VLOOKUP(B52,Lookups!$A$3:$I$103,8,FALSE),"") ->  | R52: =VLOOKUP(A52,Trends!$A$3:$H$94,7)+Sens -> 1.045 | S52: 8.643671074 | T52: =IF(B52<=120,VLOOKUP(B52,Lookups!$A$3:$I$103,9,FALSE),"") ->  | U52: =VLOOKUP(A52,Trends!$A$3:$H$94,8)+Sens -> 1.045 | V52: 8.643671074 | AH52: =IF($B52<121,VLOOKUP($B52,Lookups!A:F,6)*(1-VLOOKUP($B52,Lookups!$N$3:$P$103,2))^($A52-$A$3),"") ->  | AI52: =IF($B52<121,VLOOKUP($B52,Lookups!A:G,7)*(1-VLOOKUP($B52,Lookups!$N$3:$P$103,3))^($A52-$A$3),"") -> 
A53: 2068 | B53: 130 | D53: =VLOOKUP(B53,Lookups!A:B,2) -> 16185.63 | E53: =VLOOKUP(B53,Lookups!A:C,3) -> 1506.57 | G53: =VLOOKUP(B53,Lookups!A:D,4) -> 153028.08 | H53: =VLOOKUP(B53,Lookups!A:E,5) -> 75893.55 | J53: =VLOOKUP(A53,Trends!$A$3:$H$94,IF(ExFlg=0,4,2))+Sens -> 1.059 | K53: 21.39522197 | L53: =VLOOKUP(A53,Trends!$A$3:$H$94,IF(ExFlg=0,5,3))+Sens -> 1.051 | M53: 19.08810023 | N53: =VLOOKUP(A53,Trends!$A$3:$H$94,6)+Sens -> 1.0475 | O53: 12.15378238 | Q53: =IF(B53<=120,VLOOKUP(B53,Lookups!$A$3:$I$103,8,FALSE),"") ->  | R53: =VLOOKUP(A53,Trends!$A$3:$H$94,7)+Sens -> 1.045 | S53: 9.032636273 | T53: =IF(B53<=120,VLOOKUP(B53,Lookups!$A$3:$I$103,9,FALSE),"") ->  | U53: =VLOOKUP(A53,Trends!$A$3:$H$94,8)+Sens -> 1.045 | V53: 9.032636273 | AH53: =IF($B53<121,VLOOKUP($B53,Lookups!A:F,6)*(1-VLOOKUP($B53,Lookups!$N$3:$P$103,2))^($A53-$A$3),"") ->  | AI53: =IF($B53<121,VLOOKUP($B53,Lookups!A:G,7)*(1-VLOOKUP($B53,Lookups!$N$3:$P$103,3))^($A53-$A$3),"") -> 
A54: 2069 | B54: 131 | D54: =VLOOKUP(B54,Lookups!A:B,2) -> 16185.63 | E54: =VLOOKUP(B54,Lookups!A:C,3) -> 1506.57 | G54: =VLOOKUP(B54,Lookups!A:D,4) -> 153028.08 | H54: =VLOOKUP(B54,Lookups!A:E,5) -> 75893.55 | J54: =VLOOKUP(A54,Trends!$A$3:$H$94,IF(ExFlg=0,4,2))+Sens -> 1.059 | K54: 22.65754006 | L54: =VLOOKUP(A54,Trends!$A$3:$H$94,IF(ExFlg=0,5,3))+Sens -> 1.05 | M54: 20.06159334 | N54: =VLOOKUP(A54,Trends!$A$3:$H$94,6)+Sens -> 1.0475 | O54: 12.73108704 | Q54: =IF(B54<=120,VLOOKUP(B54,Lookups!$A$3:$I$103,8,FALSE),"") ->  | R54: =VLOOKUP(A54,Trends!$A$3:$H$94,7)+Sens -> 1.045 | S54: 9.439104905 | T54: =IF(B54<=120,VLOOKUP(B54,Lookups!$A$3:$I$103,9,FALSE),"") ->  | U54: =VLOOKUP(A54,Trends!$A$3:$H$94,8)+Sens -> 1.045 | V54: 9.439104905 | AH54: =IF($B54<121,VLOOKUP($B54,Lookups!A:F,6)*(1-VLOOKUP($B54,Lookups!$N$3:$P$103,2))^($A54-$A$3),"") ->  | AI54: =IF($B54<121,VLOOKUP($B54,Lookups!A:G,7)*(1-VLOOKUP($B54,Lookups!$N$3:$P$103,3))^($A54-$A$3),"") -> 
A55: 2070 | B55: 132 | D55: =VLOOKUP(B55,Lookups!A:B,2) -> 16185.63 | E55: =VLOOKUP(B55,Lookups!A:C,3) -> 1506.57 | G55: =VLOOKUP(B55,Lookups!A:D,4) -> 153028.08 | H55: =VLOOKUP(B55,Lookups!A:E,5) -> 75893.55 | J55: =VLOOKUP(A55,Trends!$A$3:$H$94,IF(ExFlg=0,4,2))+Sens -> 1.059 | K55: 23.99433493 | L55: =VLOOKUP(A55,Trends!$A$3:$H$94,IF(ExFlg=0,5,3))+Sens -> 1.05 | M55: 21.06467301 | N55: =VLOOKUP(A55,Trends!$A$3:$H$94,6)+Sens -> 1.0475 | O55: 13.33581368 | Q55: =IF(B55<=120,VLOOKUP(B55,Lookups!$A$3:$I$103,8,FALSE),"") ->  | R55: =VLOOKUP(A55,Trends!$A$3:$H$94,7)+Sens -> 1.045 | S55: 9.863864626 | T55: =IF(B55<=120,VLOOKUP(B55,Lookups!$A$3:$I$103,9,FALSE),"") ->  | U55: =VLOOKUP(A55,Trends!$A$3:$H$94,8)+Sens -> 1.045 | V55: 9.863864626 | AH55: =IF($B55<121,VLOOKUP($B55,Lookups!A:F,6)*(1-VLOOKUP($B55,Lookups!$N$3:$P$103,2))^($A55-$A$3),"") ->  | AI55: =IF($B55<121,VLOOKUP($B55,Lookups!A:G,7)*(1-VLOOKUP($B55,Lookups!$N$3:$P$103,3))^($A55-$A$3),"") -> 
A56: 2071 | B56: 133 | D56: =VLOOKUP(B56,Lookups!A:B,2) -> 16185.63 | E56: =VLOOKUP(B56,Lookups!A:C,3) -> 1506.57 | G56: =VLOOKUP(B56,Lookups!A:D,4) -> 153028.08 | H56: =VLOOKUP(B56,Lookups!A:E,5) -> 75893.55 | J56: =VLOOKUP(A56,Trends!$A$3:$H$94,IF(ExFlg=0,4,2))+Sens -> 1.059 | K56: 25.41000069 | L56: =VLOOKUP(A56,Trends!$A$3:$H$94,IF(ExFlg=0,5,3))+Sens -> 1.049 | M56: 22.11790666 | N56: =VLOOKUP(A56,Trends!$A$3:$H$94,6)+Sens -> 1.0475 | O56: 13.96926483 | Q56: =IF(B56<=120,VLOOKUP(B56,Lookups!$A$3:$I$103,8,FALSE),"") ->  | R56: =VLOOKUP(A56,Trends!$A$3:$H$94,7)+Sens -> 1.045 | S56: 10.30773853 | T56: =IF(B56<=120,VLOOKUP(B56,Lookups!$A$3:$I$103,9,FALSE),"") ->  | U56: =VLOOKUP(A56,Trends!$A$3:$H$94,8)+Sens -> 1.045 | V56: 10.30773853 | AH56: =IF($B56<121,VLOOKUP($B56,Lookups!A:F,6)*(1-VLOOKUP($B56,Lookups!$N$3:$P$103,2))^($A56-$A$3),"") ->  | AI56: =IF($B56<121,VLOOKUP($B56,Lookups!A:G,7)*(1-VLOOKUP($B56,Lookups!$N$3:$P$103,3))^($A56-$A$3),"") -> 
A57: 2072 | B57: 134 | D57: =VLOOKUP(B57,Lookups!A:B,2) -> 16185.63 | E57: =VLOOKUP(B57,Lookups!A:C,3) -> 1506.57 | G57: =VLOOKUP(B57,Lookups!A:D,4) -> 153028.08 | H57: =VLOOKUP(B57,Lookups!A:E,5) -> 75893.55 | J57: =VLOOKUP(A57,Trends!$A$3:$H$94,IF(ExFlg=0,4,2))+Sens -> 1.059 | K57: 26.90919073 | L57: =VLOOKUP(A57,Trends!$A$3:$H$94,IF(ExFlg=0,5,3))+Sens -> 1.048 | M57: 23.20168409 | N57: =VLOOKUP(A57,Trends!$A$3:$H$94,6)+Sens -> 1.0475 | O57: 14.63280491 | Q57: =IF(B57<=120,VLOOKUP(B57,Lookups!$A$3:$I$103,8,FALSE),"") ->  | R57: =VLOOKUP(A57,Trends!$A$3:$H$94,7)+Sens -> 1.045 | S57: 10.77158677 | T57: =IF(B57<=120,VLOOKUP(B57,Lookups!$A$3:$I$103,9,FALSE),"") ->  | U57: =VLOOKUP(A57,Trends!$A$3:$H$94,8)+Sens -> 1.045 | V57: 10.77158677 | AH57: =IF($B57<121,VLOOKUP($B57,Lookups!A:F,6)*(1-VLOOKUP($B57,Lookups!$N$3:$P$103,2))^($A57-$A$3),"") ->  | AI57: =IF($B57<121,VLOOKUP($B57,Lookups!A:G,7)*(1-VLOOKUP($B57,Lookups!$N$3:$P$103,3))^($A57-$A$3),"") -> 
A58: 2073 | B58: 135 | D58: =VLOOKUP(B58,Lookups!A:B,2) -> 16185.63 | E58: =VLOOKUP(B58,Lookups!A:C,3) -> 1506.57 | G58: =VLOOKUP(B58,Lookups!A:D,4) -> 153028.08 | H58: =VLOOKUP(B58,Lookups!A:E,5) -> 75893.55 | J58: =VLOOKUP(A58,Trends!$A$3:$H$94,IF(ExFlg=0,4,2))+Sens -> 1.059 | K58: 28.49683298 | L58: =VLOOKUP(A58,Trends!$A$3:$H$94,IF(ExFlg=0,5,3))+Sens -> 1.047 | M58: 24.31536492 | N58: =VLOOKUP(A58,Trends!$A$3:$H$94,6)+Sens -> 1.0475 | O58: 15.32786314 | Q58: =IF(B58<=120,VLOOKUP(B58,Lookups!$A$3:$I$103,8,FALSE),"") ->  | R58: =VLOOKUP(A58,Trends!$A$3:$H$94,7)+Sens -> 1.045 | S58: 11.25630817 | T58: =IF(B58<=120,VLOOKUP(B58,Lookups!$A$3:$I$103,9,FALSE),"") ->  | U58: =VLOOKUP(A58,Trends!$A$3:$H$94,8)+Sens -> 1.045 | V58: 11.25630817 | AH58: =IF($B58<121,VLOOKUP($B58,Lookups!A:F,6)*(1-VLOOKUP($B58,Lookups!$N$3:$P$103,2))^($A58-$A$3),"") ->  | AI58: =IF($B58<121,VLOOKUP($B58,Lookups!A:G,7)*(1-VLOOKUP($B58,Lookups!$N$3:$P$103,3))^($A58-$A$3),"") -> 
A59: 2074 | B59: 136 | D59: =VLOOKUP(B59,Lookups!A:B,2) -> 16185.63 | E59: =VLOOKUP(B59,Lookups!A:C,3) -> 1506.57 | G59: =VLOOKUP(B59,Lookups!A:D,4) -> 153028.08 | H59: =VLOOKUP(B59,Lookups!A:E,5) -> 75893.55 | J59: =VLOOKUP(A59,Trends!$A$3:$H$94,IF(ExFlg=0,4,2))+Sens -> 1.059 | K59: 30.17814613 | L59: =VLOOKUP(A59,Trends!$A$3:$H$94,IF(ExFlg=0,5,3))+Sens -> 1.047 | M59: 25.45818708 | N59: =VLOOKUP(A59,Trends!$A$3:$H$94,6)+Sens -> 1.0475 | O59: 16.05593664 | Q59: =IF(B59<=120,VLOOKUP(B59,Lookups!$A$3:$I$103,8,FALSE),"") ->  | R59: =VLOOKUP(A59,Trends!$A$3:$H$94,7)+Sens -> 1.045 | S59: 11.76284204 | T59: =IF(B59<=120,VLOOKUP(B59,Lookups!$A$3:$I$103,9,FALSE),"") ->  | U59: =VLOOKUP(A59,Trends!$A$3:$H$94,8)+Sens -> 1.045 | V59: 11.76284204 | AH59: =IF($B59<121,VLOOKUP($B59,Lookups!A:F,6)*(1-VLOOKUP($B59,Lookups!$N$3:$P$103,2))^($A59-$A$3),"") ->  | AI59: =IF($B59<121,VLOOKUP($B59,Lookups!A:G,7)*(1-VLOOKUP($B59,Lookups!$N$3:$P$103,3))^($A59-$A$3),"") -> 
A60: 2075 | B60: 137 | D60: =VLOOKUP(B60,Lookups!A:B,2) -> 16185.63 | E60: =VLOOKUP(B60,Lookups!A:C,3) -> 1506.57 | G60: =VLOOKUP(B60,Lookups!A:D,4) -> 153028.08 | H60: =VLOOKUP(B60,Lookups!A:E,5) -> 75893.55 | J60: =VLOOKUP(A60,Trends!$A$3:$H$94,IF(ExFlg=0,4,2))+Sens -> 1.059 | K60: 31.95865675 | L60: =VLOOKUP(A60,Trends!$A$3:$H$94,IF(ExFlg=0,5,3))+Sens -> 1.047 | M60: 26.65472187 | N60: =VLOOKUP(A60,Trends!$A$3:$H$94,6)+Sens -> 1.0475 | O60: 16.81859363 | Q60: =IF(B60<=120,VLOOKUP(B60,Lookups!$A$3:$I$103,8,FALSE),"") ->  | R60: =VLOOKUP(A60,Trends!$A$3:$H$94,7)+Sens -> 1.045 | S60: 12.29216993 | T60: =IF(B60<=120,VLOOKUP(B60,Lookups!$A$3:$I$103,9,FALSE),"") ->  | U60: =VLOOKUP(A60,Trends!$A$3:$H$94,8)+Sens -> 1.045 | V60: 12.29216993 | AH60: =IF($B60<121,VLOOKUP($B60,Lookups!A:F,6)*(1-VLOOKUP($B60,Lookups!$N$3:$P$103,2))^($A60-$A$3),"") ->  | AI60: =IF($B60<121,VLOOKUP($B60,Lookups!A:G,7)*(1-VLOOKUP($B60,Lookups!$N$3:$P$103,3))^($A60-$A$3),"") -> 
A61: 2076 | B61: 138 | D61: =VLOOKUP(B61,Lookups!A:B,2) -> 16185.63 | E61: =VLOOKUP(B61,Lookups!A:C,3) -> 1506.57 | G61: =VLOOKUP(B61,Lookups!A:D,4) -> 153028.08 | H61: =VLOOKUP(B61,Lookups!A:E,5) -> 75893.55 | J61: =VLOOKUP(A61,Trends!$A$3:$H$94,IF(ExFlg=0,4,2))+Sens -> 1.059 | K61: 33.8442175 | L61: =VLOOKUP(A61,Trends!$A$3:$H$94,IF(ExFlg=0,5,3))+Sens -> 1.047 | M61: 27.9074938 | N61: =VLOOKUP(A61,Trends!$A$3:$H$94,6)+Sens -> 1.0475 | O61: 17.61747683 | Q61: =IF(B61<=120,VLOOKUP(B61,Lookups!$A$3:$I$103,8,FALSE),"") ->  | R61: =VLOOKUP(A61,Trends!$A$3:$H$94,7)+Sens -> 1.045 | S61: 12.84531758 | T61: =IF(B61<=120,VLOOKUP(B61,Lookups!$A$3:$I$103,9,FALSE),"") ->  | U61: =VLOOKUP(A61,Trends!$A$3:$H$94,8)+Sens -> 1.045 | V61: 12.84531758 | AH61: =IF($B61<121,VLOOKUP($B61,Lookups!A:F,6)*(1-VLOOKUP($B61,Lookups!$N$3:$P$103,2))^($A61-$A$3),"") ->  | AI61: =IF($B61<121,VLOOKUP($B61,Lookups!A:G,7)*(1-VLOOKUP($B61,Lookups!$N$3:$P$103,3))^($A61-$A$3),"") -> 
A62: 2077 | B62: 139 | D62: =VLOOKUP(B62,Lookups!A:B,2) -> 16185.63 | E62: =VLOOKUP(B62,Lookups!A:C,3) -> 1506.57 | G62: =VLOOKUP(B62,Lookups!A:D,4) -> 153028.08 | H62: =VLOOKUP(B62,Lookups!A:E,5) -> 75893.55 | J62: =VLOOKUP(A62,Trends!$A$3:$H$94,IF(ExFlg=0,4,2))+Sens -> 1.059 | K62: 35.84102633 | L62: =VLOOKUP(A62,Trends!$A$3:$H$94,IF(ExFlg=0,5,3))+Sens -> 1.047 | M62: 29.219146 | N62: =VLOOKUP(A62,Trends!$A$3:$H$94,6)+Sens -> 1.0475 | O62: 18.45430698 | Q62: =IF(B62<=120,VLOOKUP(B62,Lookups!$A$3:$I$103,8,FALSE),"") ->  | R62: =VLOOKUP(A62,Trends!$A$3:$H$94,7)+Sens -> 1.045 | S62: 13.42335687 | T62: =IF(B62<=120,VLOOKUP(B62,Lookups!$A$3:$I$103,9,FALSE),"") ->  | U62: =VLOOKUP(A62,Trends!$A$3:$H$94,8)+Sens -> 1.045 | V62: 13.42335687 | AH62: =IF($B62<121,VLOOKUP($B62,Lookups!A:F,6)*(1-VLOOKUP($B62,Lookups!$N$3:$P$103,2))^($A62-$A$3),"") ->  | AI62: =IF($B62<121,VLOOKUP($B62,Lookups!A:G,7)*(1-VLOOKUP($B62,Lookups!$N$3:$P$103,3))^($A62-$A$3),"") -> 
A63: 2078 | B63: 140 | D63: =VLOOKUP(B63,Lookups!A:B,2) -> 16185.63 | E63: =VLOOKUP(B63,Lookups!A:C,3) -> 1506.57 | G63: =VLOOKUP(B63,Lookups!A:D,4) -> 153028.08 | H63: =VLOOKUP(B63,Lookups!A:E,5) -> 75893.55 | J63: =VLOOKUP(A63,Trends!$A$3:$H$94,IF(ExFlg=0,4,2))+Sens -> 1.059 | K63: 37.95564688 | L63: =VLOOKUP(A63,Trends!$A$3:$H$94,IF(ExFlg=0,5,3))+Sens -> 1.047 | M63: 30.59244587 | N63: =VLOOKUP(A63,Trends!$A$3:$H$94,6)+Sens -> 1.0475 | O63: 19.33088656 | Q63: =IF(B63<=120,VLOOKUP(B63,Lookups!$A$3:$I$103,8,FALSE),"") ->  | R63: =VLOOKUP(A63,Trends!$A$3:$H$94,7)+Sens -> 1.045 | S63: 14.02740793 | T63: =IF(B63<=120,VLOOKUP(B63,Lookups!$A$3:$I$103,9,FALSE),"") ->  | U63: =VLOOKUP(A63,Trends!$A$3:$H$94,8)+Sens -> 1.045 | V63: 14.02740793 | AH63: =IF($B63<121,VLOOKUP($B63,Lookups!A:F,6)*(1-VLOOKUP($B63,Lookups!$N$3:$P$103,2))^($A63-$A$3),"") ->  | AI63: =IF($B63<121,VLOOKUP($B63,Lookups!A:G,7)*(1-VLOOKUP($B63,Lookups!$N$3:$P$103,3))^($A63-$A$3),"") -> 
A64: 2079 | B64: 141 | D64: =VLOOKUP(B64,Lookups!A:B,2) -> 16185.63 | E64: =VLOOKUP(B64,Lookups!A:C,3) -> 1506.57 | G64: =VLOOKUP(B64,Lookups!A:D,4) -> 153028.08 | H64: =VLOOKUP(B64,Lookups!A:E,5) -> 75893.55 | J64: =VLOOKUP(A64,Trends!$A$3:$H$94,IF(ExFlg=0,4,2))+Sens -> 1.059 | K64: 40.19503005 | L64: =VLOOKUP(A64,Trends!$A$3:$H$94,IF(ExFlg=0,5,3))+Sens -> 1.047 | M64: 32.03029082 | N64: =VLOOKUP(A64,Trends!$A$3:$H$94,6)+Sens -> 1.0475 | O64: 20.24910367 | Q64: =IF(B64<=120,VLOOKUP(B64,Lookups!$A$3:$I$103,8,FALSE),"") ->  | R64: =VLOOKUP(A64,Trends!$A$3:$H$94,7)+Sens -> 1.045 | S64: 14.65864129 | T64: =IF(B64<=120,VLOOKUP(B64,Lookups!$A$3:$I$103,9,FALSE),"") ->  | U64: =VLOOKUP(A64,Trends!$A$3:$H$94,8)+Sens -> 1.045 | V64: 14.65864129 | AH64: =IF($B64<121,VLOOKUP($B64,Lookups!A:F,6)*(1-VLOOKUP($B64,Lookups!$N$3:$P$103,2))^($A64-$A$3),"") ->  | AI64: =IF($B64<121,VLOOKUP($B64,Lookups!A:G,7)*(1-VLOOKUP($B64,Lookups!$N$3:$P$103,3))^($A64-$A$3),"") -> 
A65: 2080 | B65: 142 | D65: =VLOOKUP(B65,Lookups!A:B,2) -> 16185.63 | E65: =VLOOKUP(B65,Lookups!A:C,3) -> 1506.57 | G65: =VLOOKUP(B65,Lookups!A:D,4) -> 153028.08 | H65: =VLOOKUP(B65,Lookups!A:E,5) -> 75893.55 | J65: =VLOOKUP(A65,Trends!$A$3:$H$94,IF(ExFlg=0,4,2))+Sens -> 1.059 | K65: 42.56653682 | L65: =VLOOKUP(A65,Trends!$A$3:$H$94,IF(ExFlg=0,5,3))+Sens -> 1.047 | M65: 33.53571449 | N65: =VLOOKUP(A65,Trends!$A$3:$H$94,6)+Sens -> 1.0475 | O65: 21.21093609 | Q65: =IF(B65<=120,VLOOKUP(B65,Lookups!$A$3:$I$103,8,FALSE),"") ->  | R65: =VLOOKUP(A65,Trends!$A$3:$H$94,7)+Sens -> 1.045 | S65: 15.31828014 | T65: =IF(B65<=120,VLOOKUP(B65,Lookups!$A$3:$I$103,9,FALSE),"") ->  | U65: =VLOOKUP(A65,Trends!$A$3:$H$94,8)+Sens -> 1.045 | V65: 15.31828014 | AH65: =IF($B65<121,VLOOKUP($B65,Lookups!A:F,6)*(1-VLOOKUP($B65,Lookups!$N$3:$P$103,2))^($A65-$A$3),"") ->  | AI65: =IF($B65<121,VLOOKUP($B65,Lookups!A:G,7)*(1-VLOOKUP($B65,Lookups!$N$3:$P$103,3))^($A65-$A$3),"") -> 
A66: 2081 | B66: 143 | D66: =VLOOKUP(B66,Lookups!A:B,2) -> 16185.63 | E66: =VLOOKUP(B66,Lookups!A:C,3) -> 1506.57 | G66: =VLOOKUP(B66,Lookups!A:D,4) -> 153028.08 | H66: =VLOOKUP(B66,Lookups!A:E,5) -> 75893.55 | J66: =VLOOKUP(A66,Trends!$A$3:$H$94,IF(ExFlg=0,4,2))+Sens -> 1.059 | K66: 45.07796249 | L66: =VLOOKUP(A66,Trends!$A$3:$H$94,IF(ExFlg=0,5,3))+Sens -> 1.047 | M66: 35.11189307 | N66: =VLOOKUP(A66,Trends!$A$3:$H$94,6)+Sens -> 1.0475 | O66: 22.21845556 | Q66: =IF(B66<=120,VLOOKUP(B66,Lookups!$A$3:$I$103,8,FALSE),"") ->  | R66: =VLOOKUP(A66,Trends!$A$3:$H$94,7)+Sens -> 1.045 | S66: 16.00760275 | T66: =IF(B66<=120,VLOOKUP(B66,Lookups!$A$3:$I$103,9,FALSE),"") ->  | U66: =VLOOKUP(A66,Trends!$A$3:$H$94,8)+Sens -> 1.045 | V66: 16.00760275 | AH66: =IF($B66<121,VLOOKUP($B66,Lookups!A:F,6)*(1-VLOOKUP($B66,Lookups!$N$3:$P$103,2))^($A66-$A$3),"") ->  | AI66: =IF($B66<121,VLOOKUP($B66,Lookups!A:G,7)*(1-VLOOKUP($B66,Lookups!$N$3:$P$103,3))^($A66-$A$3),"") -> 
A67: 2082 | B67: 144 | D67: =VLOOKUP(B67,Lookups!A:B,2) -> 16185.63 | E67: =VLOOKUP(B67,Lookups!A:C,3) -> 1506.57 | G67: =VLOOKUP(B67,Lookups!A:D,4) -> 153028.08 | H67: =VLOOKUP(B67,Lookups!A:E,5) -> 75893.55 | J67: =VLOOKUP(A67,Trends!$A$3:$H$94,IF(ExFlg=0,4,2))+Sens -> 1.059 | K67: 47.73756228 | L67: =VLOOKUP(A67,Trends!$A$3:$H$94,IF(ExFlg=0,5,3))+Sens -> 1.047 | M67: 36.76215205 | N67: =VLOOKUP(A67,Trends!$A$3:$H$94,6)+Sens -> 1.0475 | O67: 23.2738322 | Q67: =IF(B67<=120,VLOOKUP(B67,Lookups!$A$3:$I$103,8,FALSE),"") ->  | R67: =VLOOKUP(A67,Trends!$A$3:$H$94,7)+Sens -> 1.045 | S67: 16.72794487 | T67: =IF(B67<=120,VLOOKUP(B67,Lookups!$A$3:$I$103,9,FALSE),"") ->  | U67: =VLOOKUP(A67,Trends!$A$3:$H$94,8)+Sens -> 1.045 | V67: 16.72794487 | AH67: =IF($B67<121,VLOOKUP($B67,Lookups!A:F,6)*(1-VLOOKUP($B67,Lookups!$N$3:$P$103,2))^($A67-$A$3),"") ->  | AI67: =IF($B67<121,VLOOKUP($B67,Lookups!A:G,7)*(1-VLOOKUP($B67,Lookups!$N$3:$P$103,3))^($A67-$A$3),"") ->  | AJ67: =IF(B67<121,(PCTMALE*AH67+(1-PCTMALE)*AI67),"") ->  | AM67: =IF(AJ67="","",ROUND((13/24)+(11/24)*(1/(1+IntRt))*(1-AJ67),6)) -> 
A68: =1+A67 -> 2083 | B68: =1+B67 -> 145 | D68: =VLOOKUP(B68,Lookups!A:B,2) -> 16185.63 | E68: =VLOOKUP(B68,Lookups!A:C,3) -> 1506.57 | G68: =VLOOKUP(B68,Lookups!A:D,4) -> 153028.08 | H68: =VLOOKUP(B68,Lookups!A:E,5) -> 75893.55 | J68: =VLOOKUP(A68,Trends!$A$3:$H$94,IF(ExFlg=0,4,2))+Sens -> 1.059 | K68: 50.55407846 | L68: =VLOOKUP(A68,Trends!$A$3:$H$94,IF(ExFlg=0,5,3))+Sens -> 1.047 | M68: 38.48997319 | N68: =VLOOKUP(A68,Trends!$A$3:$H$94,6)+Sens -> 1.0475 | O68: 24.37933923 | Q68: =IF(B68<=120,VLOOKUP(B68,Lookups!$A$3:$I$103,8,FALSE),"") ->  | R68: =VLOOKUP(A68,Trends!$A$3:$H$94,7)+Sens -> 1.045 | S68: 17.48070239 | T68: =IF(B68<=120,VLOOKUP(B68,Lookups!$A$3:$I$103,9,FALSE),"") ->  | U68: =VLOOKUP(A68,Trends!$A$3:$H$94,8)+Sens -> 1.045 | V68: 17.48070239 | X68: =IF(B68<=120,IF(B68<65,D68*K68,D68*M68),"") ->  | Y68: =IF(B68<=120,E68*O68,"") ->  | Z68: =IF(B68<=120,X68+Y68,"") ->  | AB68: =IF(B68<=120,G68*Q68*S68,"") ->  | AC68: =IF(B68<=120,H68*T68*V68,"") ->  | AD68: =IF(B68<=120,AB68+AC68,"") ->  | AF68: =IF(B68<=120,Z68+AD68, "") ->  | AH68: =IF($B68<121,VLOOKUP($B68,Lookups!A:F,6)*(1-VLOOKUP($B68,Lookups!$N$3:$P$103,2))^($A68-$A$3),"") ->  | AI68: =IF($B68<121,VLOOKUP($B68,Lookups!A:G,7)*(1-VLOOKUP($B68,Lookups!$N$3:$P$103,3))^($A68-$A$3),"") ->  | AL68: =IF(B68<121,AL67/(1+IntRt),"") ->  | AP68: =IF(B68<=120,AF68*AK68*AL68*AM68,"") -> 
A69: 2084 | B69: 146 | D69: =VLOOKUP(B69,Lookups!A:B,2) -> 16185.63 | E69: =VLOOKUP(B69,Lookups!A:C,3) -> 1506.57 | G69: =VLOOKUP(B69,Lookups!A:D,4) -> 153028.08 | H69: =VLOOKUP(B69,Lookups!A:E,5) -> 75893.55 | J69: =VLOOKUP(A69,Trends!$A$3:$H$94,IF(ExFlg=0,4,2))+Sens -> 1.059 | K69: =K68*J68 -> 53.53676908 | L69: =VLOOKUP(A69,Trends!$A$3:$H$94,IF(ExFlg=0,5,3))+Sens -> 1.047 | M69: 40.29900193 | N69: =VLOOKUP(A69,Trends!$A$3:$H$94,6)+Sens -> 1.0475 | O69: =O68*N68 -> 25.53735784 | Q69: =IF(B69<=120,VLOOKUP(B69,Lookups!$A$3:$I$103,8,FALSE),"") ->  | R69: =VLOOKUP(A69,Trends!$A$3:$H$94,7)+Sens -> 1.045 | S69: =S68*R68 -> 18.267334 | T69: =IF(B69<=120,VLOOKUP(B69,Lookups!$A$3:$I$103,9,FALSE),"") ->  | U69: =VLOOKUP(A69,Trends!$A$3:$H$94,8)+Sens -> 1.045 | V69: =V68*U68 -> 18.267334 | AH69: =IF($B69<121,VLOOKUP($B69,Lookups!A:F,6)*(1-VLOOKUP($B69,Lookups!$N$3:$P$103,2))^($A69-$A$3),"") ->  | AI69: =IF($B69<121,VLOOKUP($B69,Lookups!A:G,7)*(1-VLOOKUP($B69,Lookups!$N$3:$P$103,3))^($A69-$A$3),"") ->  | AK69: =IF(B69<121,AK68*(1-AJ68),"") -> 
A70: 2085 | B70: 147 | D70: =VLOOKUP(B70,Lookups!A:B,2) -> 16185.63 | E70: =VLOOKUP(B70,Lookups!A:C,3) -> 1506.57 | G70: =VLOOKUP(B70,Lookups!A:D,4) -> 153028.08 | H70: =VLOOKUP(B70,Lookups!A:E,5) -> 75893.55 | J70: =VLOOKUP(A70,Trends!$A$3:$H$94,IF(ExFlg=0,4,2))+Sens -> 1.059 | K70: 56.69543846 | L70: =VLOOKUP(A70,Trends!$A$3:$H$94,IF(ExFlg=0,5,3))+Sens -> 1.047 | M70: 42.19305502 | N70: =VLOOKUP(A70,Trends!$A$3:$H$94,6)+Sens -> 1.0475 | O70: 26.75038234 | Q70: =IF(B70<=120,VLOOKUP(B70,Lookups!$A$3:$I$103,8,FALSE),"") ->  | R70: =VLOOKUP(A70,Trends!$A$3:$H$94,7)+Sens -> 1.045 | S70: 19.08936403 | T70: =IF(B70<=120,VLOOKUP(B70,Lookups!$A$3:$I$103,9,FALSE),"") ->  | U70: =VLOOKUP(A70,Trends!$A$3:$H$94,8)+Sens -> 1.045 | V70: 19.08936403 | AH70: =IF($B70<121,VLOOKUP($B70,Lookups!A:F,6)*(1-VLOOKUP($B70,Lookups!$N$3:$P$103,2))^($A70-$A$3),"") ->  | AI70: =IF($B70<121,VLOOKUP($B70,Lookups!A:G,7)*(1-VLOOKUP($B70,Lookups!$N$3:$P$103,3))^($A70-$A$3),"") -> 
A71: 2086 | B71: 148 | D71: =VLOOKUP(B71,Lookups!A:B,2) -> 16185.63 | E71: =VLOOKUP(B71,Lookups!A:C,3) -> 1506.57 | G71: =VLOOKUP(B71,Lookups!A:D,4) -> 153028.08 | H71: =VLOOKUP(B71,Lookups!A:E,5) -> 75893.55 | J71: =VLOOKUP(A71,Trends!$A$3:$H$94,IF(ExFlg=0,4,2))+Sens -> 1.059 | K71: 60.04046933 | L71: =VLOOKUP(A71,Trends!$A$3:$H$94,IF(ExFlg=0,5,3))+Sens -> 1.047 | M71: 44.17612861 | N71: =VLOOKUP(A71,Trends!$A$3:$H$94,6)+Sens -> 1.0475 | O71: 28.0210255 | Q71: =IF(B71<=120,VLOOKUP(B71,Lookups!$A$3:$I$103,8,FALSE),"") ->  | R71: =VLOOKUP(A71,Trends!$A$3:$H$94,7)+Sens -> 1.045 | S71: 19.94838541 | T71: =IF(B71<=120,VLOOKUP(B71,Lookups!$A$3:$I$103,9,FALSE),"") ->  | U71: =VLOOKUP(A71,Trends!$A$3:$H$94,8)+Sens -> 1.045 | V71: 19.94838541 | AH71: =IF($B71<121,VLOOKUP($B71,Lookups!A:F,6)*(1-VLOOKUP($B71,Lookups!$N$3:$P$103,2))^($A71-$A$3),"") ->  | AI71: =IF($B71<121,VLOOKUP($B71,Lookups!A:G,7)*(1-VLOOKUP($B71,Lookups!$N$3:$P$103,3))^($A71-$A$3),"") -> 
A72: 2087 | B72: 149 | D72: =VLOOKUP(B72,Lookups!A:B,2) -> 16185.63 | E72: =VLOOKUP(B72,Lookups!A:C,3) -> 1506.57 | G72: =VLOOKUP(B72,Lookups!A:D,4) -> 153028.08 | H72: =VLOOKUP(B72,Lookups!A:E,5) -> 75893.55 | J72: =VLOOKUP(A72,Trends!$A$3:$H$94,IF(ExFlg=0,4,2))+Sens -> 1.059 | K72: 63.58285702 | L72: =VLOOKUP(A72,Trends!$A$3:$H$94,IF(ExFlg=0,5,3))+Sens -> 1.047 | M72: 46.25240665 | N72: =VLOOKUP(A72,Trends!$A$3:$H$94,6)+Sens -> 1.0475 | O72: 29.35202421 | Q72: =IF(B72<=120,VLOOKUP(B72,Lookups!$A$3:$I$103,8,FALSE),"") ->  | R72: =VLOOKUP(A72,Trends!$A$3:$H$94,7)+Sens -> 1.045 | S72: 20.84606276 | T72: =IF(B72<=120,VLOOKUP(B72,Lookups!$A$3:$I$103,9,FALSE),"") ->  | U72: =VLOOKUP(A72,Trends!$A$3:$H$94,8)+Sens -> 1.045 | V72: 20.84606276 | AH72: =IF($B72<121,VLOOKUP($B72,Lookups!A:F,6)*(1-VLOOKUP($B72,Lookups!$N$3:$P$103,2))^($A72-$A$3),"") ->  | AI72: =IF($B72<121,VLOOKUP($B72,Lookups!A:G,7)*(1-VLOOKUP($B72,Lookups!$N$3:$P$103,3))^($A72-$A$3),"") -> 
A73: 2088 | B73: 150 | D73: =VLOOKUP(B73,Lookups!A:B,2) -> 16185.63 | E73: =VLOOKUP(B73,Lookups!A:C,3) -> 1506.57 | G73: =VLOOKUP(B73,Lookups!A:D,4) -> 153028.08 | H73: =VLOOKUP(B73,Lookups!A:E,5) -> 75893.55 | J73: =VLOOKUP(A73,Trends!$A$3:$H$94,IF(ExFlg=0,4,2))+Sens -> 1.059 | K73: 67.33424558 | L73: =VLOOKUP(A73,Trends!$A$3:$H$94,IF(ExFlg=0,5,3))+Sens -> 1.047 | M73: 48.42626977 | N73: =VLOOKUP(A73,Trends!$A$3:$H$94,6)+Sens -> 1.0475 | O73: 30.74624536 | Q73: =IF(B73<=120,VLOOKUP(B73,Lookups!$A$3:$I$103,8,FALSE),"") ->  | R73: =VLOOKUP(A73,Trends!$A$3:$H$94,7)+Sens -> 1.045 | S73: 21.78413558 | T73: =IF(B73<=120,VLOOKUP(B73,Lookups!$A$3:$I$103,9,FALSE),"") ->  | U73: =VLOOKUP(A73,Trends!$A$3:$H$94,8)+Sens -> 1.045 | V73: 21.78413558 | AH73: =IF($B73<121,VLOOKUP($B73,Lookups!A:F,6)*(1-VLOOKUP($B73,Lookups!$N$3:$P$103,2))^($A73-$A$3),"") ->  | AI73: =IF($B73<121,VLOOKUP($B73,Lookups!A:G,7)*(1-VLOOKUP($B73,Lookups!$N$3:$P$103,3))^($A73-$A$3),"") -> 
A74: 2089 | B74: 151 | D74: =VLOOKUP(B74,Lookups!A:B,2) -> 16185.63 | E74: =VLOOKUP(B74,Lookups!A:C,3) -> 1506.57 | G74: =VLOOKUP(B74,Lookups!A:D,4) -> 153028.08 | H74: =VLOOKUP(B74,Lookups!A:E,5) -> 75893.55 | J74: =VLOOKUP(A74,Trends!$A$3:$H$94,IF(ExFlg=0,4,2))+Sens -> 1.059 | K74: 71.30696607 | L74: =VLOOKUP(A74,Trends!$A$3:$H$94,IF(ExFlg=0,5,3))+Sens -> 1.047 | M74: 50.70230445 | N74: =VLOOKUP(A74,Trends!$A$3:$H$94,6)+Sens -> 1.0475 | O74: 32.20669201 | Q74: =IF(B74<=120,VLOOKUP(B74,Lookups!$A$3:$I$103,8,FALSE),"") ->  | R74: =VLOOKUP(A74,Trends!$A$3:$H$94,7)+Sens -> 1.045 | S74: 22.76442168 | T74: =IF(B74<=120,VLOOKUP(B74,Lookups!$A$3:$I$103,9,FALSE),"") ->  | U74: =VLOOKUP(A74,Trends!$A$3:$H$94,8)+Sens -> 1.045 | V74: 22.76442168 | AH74: =IF($B74<121,VLOOKUP($B74,Lookups!A:F,6)*(1-VLOOKUP($B74,Lookups!$N$3:$P$103,2))^($A74-$A$3),"") ->  | AI74: =IF($B74<121,VLOOKUP($B74,Lookups!A:G,7)*(1-VLOOKUP($B74,Lookups!$N$3:$P$103,3))^($A74-$A$3),"") -> 
A75: 2090 | B75: 152 | D75: =VLOOKUP(B75,Lookups!A:B,2) -> 16185.63 | E75: =VLOOKUP(B75,Lookups!A:C,3) -> 1506.57 | G75: =VLOOKUP(B75,Lookups!A:D,4) -> 153028.08 | H75: =VLOOKUP(B75,Lookups!A:E,5) -> 75893.55 | J75: =VLOOKUP(A75,Trends!$A$3:$H$94,IF(ExFlg=0,4,2))+Sens -> 1.059 | K75: 75.51407707 | L75: =VLOOKUP(A75,Trends!$A$3:$H$94,IF(ExFlg=0,5,3))+Sens -> 1.047 | M75: 53.08531276 | N75: =VLOOKUP(A75,Trends!$A$3:$H$94,6)+Sens -> 1.0475 | O75: 33.73650988 | Q75: =IF(B75<=120,VLOOKUP(B75,Lookups!$A$3:$I$103,8,FALSE),"") ->  | R75: =VLOOKUP(A75,Trends!$A$3:$H$94,7)+Sens -> 1.045 | S75: 23.78882066 | T75: =IF(B75<=120,VLOOKUP(B75,Lookups!$A$3:$I$103,9,FALSE),"") ->  | U75: =VLOOKUP(A75,Trends!$A$3:$H$94,8)+Sens -> 1.045 | V75: 23.78882066 | AH75: =IF($B75<121,VLOOKUP($B75,Lookups!A:F,6)*(1-VLOOKUP($B75,Lookups!$N$3:$P$103,2))^($A75-$A$3),"") ->  | AI75: =IF($B75<121,VLOOKUP($B75,Lookups!A:G,7)*(1-VLOOKUP($B75,Lookups!$N$3:$P$103,3))^($A75-$A$3),"") -> 
A76: 2091 | B76: 153 | D76: =VLOOKUP(B76,Lookups!A:B,2) -> 16185.63 | E76: =VLOOKUP(B76,Lookups!A:C,3) -> 1506.57 | G76: =VLOOKUP(B76,Lookups!A:D,4) -> 153028.08 | H76: =VLOOKUP(B76,Lookups!A:E,5) -> 75893.55 | J76: =VLOOKUP(A76,Trends!$A$3:$H$94,IF(ExFlg=0,4,2))+Sens -> 1.059 | K76: 79.96940762 | L76: =VLOOKUP(A76,Trends!$A$3:$H$94,IF(ExFlg=0,5,3))+Sens -> 1.047 | M76: 55.58032245 | N76: =VLOOKUP(A76,Trends!$A$3:$H$94,6)+Sens -> 1.0475 | O76: 35.3389941 | Q76: =IF(B76<=120,VLOOKUP(B76,Lookups!$A$3:$I$103,8,FALSE),"") ->  | R76: =VLOOKUP(A76,Trends!$A$3:$H$94,7)+Sens -> 1.045 | S76: 24.85931759 | T76: =IF(B76<=120,VLOOKUP(B76,Lookups!$A$3:$I$103,9,FALSE),"") ->  | U76: =VLOOKUP(A76,Trends!$A$3:$H$94,8)+Sens -> 1.045 | V76: 24.85931759 | AH76: =IF($B76<121,VLOOKUP($B76,Lookups!A:F,6)*(1-VLOOKUP($B76,Lookups!$N$3:$P$103,2))^($A76-$A$3),"") ->  | AI76: =IF($B76<121,VLOOKUP($B76,Lookups!A:G,7)*(1-VLOOKUP($B76,Lookups!$N$3:$P$103,3))^($A76-$A$3),"") -> 
A77: 2092 | B77: 154 | D77: =VLOOKUP(B77,Lookups!A:B,2) -> 16185.63 | E77: =VLOOKUP(B77,Lookups!A:C,3) -> 1506.57 | G77: =VLOOKUP(B77,Lookups!A:D,4) -> 153028.08 | H77: =VLOOKUP(B77,Lookups!A:E,5) -> 75893.55 | J77: =VLOOKUP(A77,Trends!$A$3:$H$94,IF(ExFlg=0,4,2))+Sens -> 1.059 | K77: 84.68760267 | L77: =VLOOKUP(A77,Trends!$A$3:$H$94,IF(ExFlg=0,5,3))+Sens -> 1.047 | M77: 58.19259761 | N77: =VLOOKUP(A77,Trends!$A$3:$H$94,6)+Sens -> 1.0475 | O77: 37.01759632 | Q77: =IF(B77<=120,VLOOKUP(B77,Lookups!$A$3:$I$103,8,FALSE),"") ->  | R77: =VLOOKUP(A77,Trends!$A$3:$H$94,7)+Sens -> 1.045 | S77: 25.97798688 | T77: =IF(B77<=120,VLOOKUP(B77,Lookups!$A$3:$I$103,9,FALSE),"") ->  | U77: =VLOOKUP(A77,Trends!$A$3:$H$94,8)+Sens -> 1.045 | V77: 25.97798688 | AH77: =IF($B77<121,VLOOKUP($B77,Lookups!A:F,6)*(1-VLOOKUP($B77,Lookups!$N$3:$P$103,2))^($A77-$A$3),"") ->  | AI77: =IF($B77<121,VLOOKUP($B77,Lookups!A:G,7)*(1-VLOOKUP($B77,Lookups!$N$3:$P$103,3))^($A77-$A$3),"") -> 
A78: 2093 | B78: 155 | D78: =VLOOKUP(B78,Lookups!A:B,2) -> 16185.63 | E78: =VLOOKUP(B78,Lookups!A:C,3) -> 1506.57 | G78: =VLOOKUP(B78,Lookups!A:D,4) -> 153028.08 | H78: =VLOOKUP(B78,Lookups!A:E,5) -> 75893.55 | J78: =VLOOKUP(A78,Trends!$A$3:$H$94,IF(ExFlg=0,4,2))+Sens -> 1.059 | K78: 89.68417123 | L78: =VLOOKUP(A78,Trends!$A$3:$H$94,IF(ExFlg=0,5,3))+Sens -> 1.047 | M78: 60.9276497 | N78: =VLOOKUP(A78,Trends!$A$3:$H$94,6)+Sens -> 1.0475 | O78: 38.77593215 | Q78: =IF(B78<=120,VLOOKUP(B78,Lookups!$A$3:$I$103,8,FALSE),"") ->  | R78: =VLOOKUP(A78,Trends!$A$3:$H$94,7)+Sens -> 1.045 | S78: 27.14699629 | T78: =IF(B78<=120,VLOOKUP(B78,Lookups!$A$3:$I$103,9,FALSE),"") ->  | U78: =VLOOKUP(A78,Trends!$A$3:$H$94,8)+Sens -> 1.045 | V78: 27.14699629 | AH78: =IF($B78<121,VLOOKUP($B78,Lookups!A:F,6)*(1-VLOOKUP($B78,Lookups!$N$3:$P$103,2))^($A78-$A$3),"") ->  | AI78: =IF($B78<121,VLOOKUP($B78,Lookups!A:G,7)*(1-VLOOKUP($B78,Lookups!$N$3:$P$103,3))^($A78-$A$3),"") -> 
A79: 2094 | B79: 156 | D79: =VLOOKUP(B79,Lookups!A:B,2) -> 16185.63 | E79: =VLOOKUP(B79,Lookups!A:C,3) -> 1506.57 | G79: =VLOOKUP(B79,Lookups!A:D,4) -> 153028.08 | H79: =VLOOKUP(B79,Lookups!A:E,5) -> 75893.55 | J79: =VLOOKUP(A79,Trends!$A$3:$H$94,IF(ExFlg=0,4,2))+Sens -> 1.059 | K79: 94.97553733 | L79: =VLOOKUP(A79,Trends!$A$3:$H$94,IF(ExFlg=0,5,3))+Sens -> 1.047 | M79: 63.79124923 | N79: =VLOOKUP(A79,Trends!$A$3:$H$94,6)+Sens -> 1.0475 | O79: 40.61778892 | Q79: =IF(B79<=120,VLOOKUP(B79,Lookups!$A$3:$I$103,8,FALSE),"") ->  | R79: =VLOOKUP(A79,Trends!$A$3:$H$94,7)+Sens -> 1.045 | S79: 28.36861112 | T79: =IF(B79<=120,VLOOKUP(B79,Lookups!$A$3:$I$103,9,FALSE),"") ->  | U79: =VLOOKUP(A79,Trends!$A$3:$H$94,8)+Sens -> 1.045 | V79: 28.36861112 | AH79: =IF($B79<121,VLOOKUP($B79,Lookups!A:F,6)*(1-VLOOKUP($B79,Lookups!$N$3:$P$103,2))^($A79-$A$3),"") ->  | AI79: =IF($B79<121,VLOOKUP($B79,Lookups!A:G,7)*(1-VLOOKUP($B79,Lookups!$N$3:$P$103,3))^($A79-$A$3),"") -> 
A80: 2095 | B80: 157 | D80: =VLOOKUP(B80,Lookups!A:B,2) -> 16185.63 | E80: =VLOOKUP(B80,Lookups!A:C,3) -> 1506.57 | G80: =VLOOKUP(B80,Lookups!A:D,4) -> 153028.08 | H80: =VLOOKUP(B80,Lookups!A:E,5) -> 75893.55 | J80: =VLOOKUP(A80,Trends!$A$3:$H$94,IF(ExFlg=0,4,2))+Sens -> 1.059 | K80: 100.579094 | L80: =VLOOKUP(A80,Trends!$A$3:$H$94,IF(ExFlg=0,5,3))+Sens -> 1.047 | M80: 66.78943795 | N80: =VLOOKUP(A80,Trends!$A$3:$H$94,6)+Sens -> 1.0475 | O80: 42.5471339 | Q80: =IF(B80<=120,VLOOKUP(B80,Lookups!$A$3:$I$103,8,FALSE),"") ->  | R80: =VLOOKUP(A80,Trends!$A$3:$H$94,7)+Sens -> 1.045 | S80: 29.64519862 | T80: =IF(B80<=120,VLOOKUP(B80,Lookups!$A$3:$I$103,9,FALSE),"") ->  | U80: =VLOOKUP(A80,Trends!$A$3:$H$94,8)+Sens -> 1.045 | V80: 29.64519862 | AH80: =IF($B80<121,VLOOKUP($B80,Lookups!A:F,6)*(1-VLOOKUP($B80,Lookups!$N$3:$P$103,2))^($A80-$A$3),"") ->  | AI80: =IF($B80<121,VLOOKUP($B80,Lookups!A:G,7)*(1-VLOOKUP($B80,Lookups!$N$3:$P$103,3))^($A80-$A$3),"") -> 
A81: 2096 | B81: 158 | D81: =VLOOKUP(B81,Lookups!A:B,2) -> 16185.63 | E81: =VLOOKUP(B81,Lookups!A:C,3) -> 1506.57 | G81: =VLOOKUP(B81,Lookups!A:D,4) -> 153028.08 | H81: =VLOOKUP(B81,Lookups!A:E,5) -> 75893.55 | J81: =VLOOKUP(A81,Trends!$A$3:$H$94,IF(ExFlg=0,4,2))+Sens -> 1.059 | K81: 106.5132606 | L81: =VLOOKUP(A81,Trends!$A$3:$H$94,IF(ExFlg=0,5,3))+Sens -> 1.047 | M81: 69.92854153 | N81: =VLOOKUP(A81,Trends!$A$3:$H$94,6)+Sens -> 1.0475 | O81: 44.56812276 | Q81: =IF(B81<=120,VLOOKUP(B81,Lookups!$A$3:$I$103,8,FALSE),"") ->  | R81: =VLOOKUP(A81,Trends!$A$3:$H$94,7)+Sens -> 1.045 | S81: 30.97923256 | T81: =IF(B81<=120,VLOOKUP(B81,Lookups!$A$3:$I$103,9,FALSE),"") ->  | U81: =VLOOKUP(A81,Trends!$A$3:$H$94,8)+Sens -> 1.045 | V81: 30.97923256 | AH81: =IF($B81<121,VLOOKUP($B81,Lookups!A:F,6)*(1-VLOOKUP($B81,Lookups!$N$3:$P$103,2))^($A81-$A$3),"") ->  | AI81: =IF($B81<121,VLOOKUP($B81,Lookups!A:G,7)*(1-VLOOKUP($B81,Lookups!$N$3:$P$103,3))^($A81-$A$3),"") -> 
A82: 2097 | B82: 159 | D82: =VLOOKUP(B82,Lookups!A:B,2) -> 16185.63 | E82: =VLOOKUP(B82,Lookups!A:C,3) -> 1506.57 | G82: =VLOOKUP(B82,Lookups!A:D,4) -> 153028.08 | H82: =VLOOKUP(B82,Lookups!A:E,5) -> 75893.55 | J82: =VLOOKUP(A82,Trends!$A$3:$H$94,IF(ExFlg=0,4,2))+Sens -> 1.059 | K82: 112.797543 | L82: =VLOOKUP(A82,Trends!$A$3:$H$94,IF(ExFlg=0,5,3))+Sens -> 1.047 | M82: 73.21518298 | N82: =VLOOKUP(A82,Trends!$A$3:$H$94,6)+Sens -> 1.0475 | O82: 46.68510859 | Q82: =IF(B82<=120,VLOOKUP(B82,Lookups!$A$3:$I$103,8,FALSE),"") ->  | R82: =VLOOKUP(A82,Trends!$A$3:$H$94,7)+Sens -> 1.045 | S82: 32.37329802 | T82: =IF(B82<=120,VLOOKUP(B82,Lookups!$A$3:$I$103,9,FALSE),"") ->  | U82: =VLOOKUP(A82,Trends!$A$3:$H$94,8)+Sens -> 1.045 | V82: 32.37329802 | AH82: =IF($B82<121,VLOOKUP($B82,Lookups!A:F,6)*(1-VLOOKUP($B82,Lookups!$N$3:$P$103,2))^($A82-$A$3),"") ->  | AI82: =IF($B82<121,VLOOKUP($B82,Lookups!A:G,7)*(1-VLOOKUP($B82,Lookups!$N$3:$P$103,3))^($A82-$A$3),"") -> 
A83: 2098 | B83: 160 | D83: =VLOOKUP(B83,Lookups!A:B,2) -> 16185.63 | E83: =VLOOKUP(B83,Lookups!A:C,3) -> 1506.57 | G83: =VLOOKUP(B83,Lookups!A:D,4) -> 153028.08 | H83: =VLOOKUP(B83,Lookups!A:E,5) -> 75893.55 | J83: =VLOOKUP(A83,Trends!$A$3:$H$94,IF(ExFlg=0,4,2))+Sens -> 1.059 | K83: 119.452598 | L83: =VLOOKUP(A83,Trends!$A$3:$H$94,IF(ExFlg=0,5,3))+Sens -> 1.047 | M83: 76.65629658 | N83: =VLOOKUP(A83,Trends!$A$3:$H$94,6)+Sens -> 1.0475 | O83: 48.90265125 | Q83: =IF(B83<=120,VLOOKUP(B83,Lookups!$A$3:$I$103,8,FALSE),"") ->  | R83: =VLOOKUP(A83,Trends!$A$3:$H$94,7)+Sens -> 1.045 | S83: 33.83009643 | T83: =IF(B83<=120,VLOOKUP(B83,Lookups!$A$3:$I$103,9,FALSE),"") ->  | U83: =VLOOKUP(A83,Trends!$A$3:$H$94,8)+Sens -> 1.045 | V83: 33.83009643 | AH83: =IF($B83<121,VLOOKUP($B83,Lookups!A:F,6)*(1-VLOOKUP($B83,Lookups!$N$3:$P$103,2))^($A83-$A$3),"") ->  | AI83: =IF($B83<121,VLOOKUP($B83,Lookups!A:G,7)*(1-VLOOKUP($B83,Lookups!$N$3:$P$103,3))^($A83-$A$3),"") -> 
A84: 2099 | B84: 161 | D84: =VLOOKUP(B84,Lookups!A:B,2) -> 16185.63 | E84: =VLOOKUP(B84,Lookups!A:C,3) -> 1506.57 | G84: =VLOOKUP(B84,Lookups!A:D,4) -> 153028.08 | H84: =VLOOKUP(B84,Lookups!A:E,5) -> 75893.55 | J84: =VLOOKUP(A84,Trends!$A$3:$H$94,IF(ExFlg=0,4,2))+Sens -> 1.059 | K84: 126.5003013 | L84: =VLOOKUP(A84,Trends!$A$3:$H$94,IF(ExFlg=0,5,3))+Sens -> 1.047 | M84: 80.25914252 | N84: =VLOOKUP(A84,Trends!$A$3:$H$94,6)+Sens -> 1.0475 | O84: 51.22552718 | Q84: =IF(B84<=120,VLOOKUP(B84,Lookups!$A$3:$I$103,8,FALSE),"") ->  | R84: =VLOOKUP(A84,Trends!$A$3:$H$94,7)+Sens -> 1.045 | S84: 35.35245077 | T84: =IF(B84<=120,VLOOKUP(B84,Lookups!$A$3:$I$103,9,FALSE),"") ->  | U84: =VLOOKUP(A84,Trends!$A$3:$H$94,8)+Sens -> 1.045 | V84: 35.35245077 | AH84: =IF($B84<121,VLOOKUP($B84,Lookups!A:F,6)*(1-VLOOKUP($B84,Lookups!$N$3:$P$103,2))^($A84-$A$3),"") ->  | AI84: =IF($B84<121,VLOOKUP($B84,Lookups!A:G,7)*(1-VLOOKUP($B84,Lookups!$N$3:$P$103,3))^($A84-$A$3),"") -> 
A85: 2100 | B85: 162 | D85: =VLOOKUP(B85,Lookups!A:B,2) -> 16185.63 | E85: =VLOOKUP(B85,Lookups!A:C,3) -> 1506.57 | G85: =VLOOKUP(B85,Lookups!A:D,4) -> 153028.08 | H85: =VLOOKUP(B85,Lookups!A:E,5) -> 75893.55 | J85: =VLOOKUP(A85,Trends!$A$3:$H$94,IF(ExFlg=0,4,2))+Sens -> 1.059 | K85: 133.963819 | L85: =VLOOKUP(A85,Trends!$A$3:$H$94,IF(ExFlg=0,5,3))+Sens -> 1.047 | M85: 84.03132222 | N85: =VLOOKUP(A85,Trends!$A$3:$H$94,6)+Sens -> 1.0475 | O85: 53.65873972 | Q85: =IF(B85<=120,VLOOKUP(B85,Lookups!$A$3:$I$103,8,FALSE),"") ->  | R85: =VLOOKUP(A85,Trends!$A$3:$H$94,7)+Sens -> 1.045 | S85: 36.94331106 | T85: =IF(B85<=120,VLOOKUP(B85,Lookups!$A$3:$I$103,9,FALSE),"") ->  | U85: =VLOOKUP(A85,Trends!$A$3:$H$94,8)+Sens -> 1.045 | V85: 36.94331106 | AH85: =IF($B85<121,VLOOKUP($B85,Lookups!A:F,6)*(1-VLOOKUP($B85,Lookups!$N$3:$P$103,2))^($A85-$A$3),"") ->  | AI85: =IF($B85<121,VLOOKUP($B85,Lookups!A:G,7)*(1-VLOOKUP($B85,Lookups!$N$3:$P$103,3))^($A85-$A$3),"") -> 
A86: 2101 | B86: 163 | D86: =VLOOKUP(B86,Lookups!A:B,2) -> 16185.63 | E86: =VLOOKUP(B86,Lookups!A:C,3) -> 1506.57 | G86: =VLOOKUP(B86,Lookups!A:D,4) -> 153028.08 | H86: =VLOOKUP(B86,Lookups!A:E,5) -> 75893.55 | J86: =VLOOKUP(A86,Trends!$A$3:$H$94,IF(ExFlg=0,4,2))+Sens -> 1.059 | K86: 141.8676844 | L86: =VLOOKUP(A86,Trends!$A$3:$H$94,IF(ExFlg=0,5,3))+Sens -> 1.047 | M86: 87.98079437 | N86: =VLOOKUP(A86,Trends!$A$3:$H$94,6)+Sens -> 1.0475 | O86: 56.20752986 | Q86: =IF(B86<=120,VLOOKUP(B86,Lookups!$A$3:$I$103,8,FALSE),"") ->  | R86: =VLOOKUP(A86,Trends!$A$3:$H$94,7)+Sens -> 1.045 | S86: 38.60576006 | T86: =IF(B86<=120,VLOOKUP(B86,Lookups!$A$3:$I$103,9,FALSE),"") ->  | U86: =VLOOKUP(A86,Trends!$A$3:$H$94,8)+Sens -> 1.045 | V86: 38.60576006 | AH86: =IF($B86<121,VLOOKUP($B86,Lookups!A:F,6)*(1-VLOOKUP($B86,Lookups!$N$3:$P$103,2))^($A86-$A$3),"") ->  | AI86: =IF($B86<121,VLOOKUP($B86,Lookups!A:G,7)*(1-VLOOKUP($B86,Lookups!$N$3:$P$103,3))^($A86-$A$3),"") -> 
A87: 2102 | B87: 164 | D87: =VLOOKUP(B87,Lookups!A:B,2) -> 16185.63 | E87: =VLOOKUP(B87,Lookups!A:C,3) -> 1506.57 | G87: =VLOOKUP(B87,Lookups!A:D,4) -> 153028.08 | H87: =VLOOKUP(B87,Lookups!A:E,5) -> 75893.55 | J87: =VLOOKUP(A87,Trends!$A$3:$H$94,IF(ExFlg=0,4,2))+Sens -> 1.059 | K87: 150.2378777 | L87: =VLOOKUP(A87,Trends!$A$3:$H$94,IF(ExFlg=0,5,3))+Sens -> 1.047 | M87: 92.1158917 | N87: =VLOOKUP(A87,Trends!$A$3:$H$94,6)+Sens -> 1.0475 | O87: 58.87738753 | Q87: =IF(B87<=120,VLOOKUP(B87,Lookups!$A$3:$I$103,8,FALSE),"") ->  | R87: =VLOOKUP(A87,Trends!$A$3:$H$94,7)+Sens -> 1.045 | S87: 40.34301926 | T87: =IF(B87<=120,VLOOKUP(B87,Lookups!$A$3:$I$103,9,FALSE),"") ->  | U87: =VLOOKUP(A87,Trends!$A$3:$H$94,8)+Sens -> 1.045 | V87: 40.34301926 | AH87: =IF($B87<121,VLOOKUP($B87,Lookups!A:F,6)*(1-VLOOKUP($B87,Lookups!$N$3:$P$103,2))^($A87-$A$3),"") ->  | AI87: =IF($B87<121,VLOOKUP($B87,Lookups!A:G,7)*(1-VLOOKUP($B87,Lookups!$N$3:$P$103,3))^($A87-$A$3),"") -> 
A88: 2103 | B88: 165 | D88: =VLOOKUP(B88,Lookups!A:B,2) -> 16185.63 | E88: =VLOOKUP(B88,Lookups!A:C,3) -> 1506.57 | G88: =VLOOKUP(B88,Lookups!A:D,4) -> 153028.08 | H88: =VLOOKUP(B88,Lookups!A:E,5) -> 75893.55 | J88: =VLOOKUP(A88,Trends!$A$3:$H$94,IF(ExFlg=0,4,2))+Sens -> 1.059 | K88: 159.1019125 | L88: =VLOOKUP(A88,Trends!$A$3:$H$94,IF(ExFlg=0,5,3))+Sens -> 1.047 | M88: 96.44533861 | N88: =VLOOKUP(A88,Trends!$A$3:$H$94,6)+Sens -> 1.0475 | O88: 61.67406344 | Q88: =IF(B88<=120,VLOOKUP(B88,Lookups!$A$3:$I$103,8,FALSE),"") ->  | R88: =VLOOKUP(A88,Trends!$A$3:$H$94,7)+Sens -> 1.045 | S88: 42.15845513 | T88: =IF(B88<=120,VLOOKUP(B88,Lookups!$A$3:$I$103,9,FALSE),"") ->  | U88: =VLOOKUP(A88,Trends!$A$3:$H$94,8)+Sens -> 1.045 | V88: 42.15845513 | AH88: =IF($B88<121,VLOOKUP($B88,Lookups!A:F,6)*(1-VLOOKUP($B88,Lookups!$N$3:$P$103,2))^($A88-$A$3),"") ->  | AI88: =IF($B88<121,VLOOKUP($B88,Lookups!A:G,7)*(1-VLOOKUP($B88,Lookups!$N$3:$P$103,3))^($A88-$A$3),"") -> 
A89: 2104 | B89: 166 | D89: =VLOOKUP(B89,Lookups!A:B,2) -> 16185.63 | E89: =VLOOKUP(B89,Lookups!A:C,3) -> 1506.57 | G89: =VLOOKUP(B89,Lookups!A:D,4) -> 153028.08 | H89: =VLOOKUP(B89,Lookups!A:E,5) -> 75893.55 | J89: =VLOOKUP(A89,Trends!$A$3:$H$94,IF(ExFlg=0,4,2))+Sens -> 1.059 | K89: 168.4889254 | L89: =VLOOKUP(A89,Trends!$A$3:$H$94,IF(ExFlg=0,5,3))+Sens -> 1.047 | M89: 100.9782695 | N89: =VLOOKUP(A89,Trends!$A$3:$H$94,6)+Sens -> 1.0475 | O89: 64.60358145 | Q89: =IF(B89<=120,VLOOKUP(B89,Lookups!$A$3:$I$103,8,FALSE),"") ->  | R89: =VLOOKUP(A89,Trends!$A$3:$H$94,7)+Sens -> 1.045 | S89: 44.05558561 | T89: =IF(B89<=120,VLOOKUP(B89,Lookups!$A$3:$I$103,9,FALSE),"") ->  | U89: =VLOOKUP(A89,Trends!$A$3:$H$94,8)+Sens -> 1.045 | V89: 44.05558561 | AH89: =IF($B89<121,VLOOKUP($B89,Lookups!A:F,6)*(1-VLOOKUP($B89,Lookups!$N$3:$P$103,2))^($A89-$A$3),"") ->  | AI89: =IF($B89<121,VLOOKUP($B89,Lookups!A:G,7)*(1-VLOOKUP($B89,Lookups!$N$3:$P$103,3))^($A89-$A$3),"") -> 
A90: 2105 | B90: 167 | D90: =VLOOKUP(B90,Lookups!A:B,2) -> 16185.63 | E90: =VLOOKUP(B90,Lookups!A:C,3) -> 1506.57 | G90: =VLOOKUP(B90,Lookups!A:D,4) -> 153028.08 | H90: =VLOOKUP(B90,Lookups!A:E,5) -> 75893.55 | J90: =VLOOKUP(A90,Trends!$A$3:$H$94,IF(ExFlg=0,4,2))+Sens -> 1.059 | K90: 178.429772 | L90: =VLOOKUP(A90,Trends!$A$3:$H$94,IF(ExFlg=0,5,3))+Sens -> 1.047 | M90: 105.7242482 | N90: =VLOOKUP(A90,Trends!$A$3:$H$94,6)+Sens -> 1.0475 | O90: 67.67225157 | Q90: =IF(B90<=120,VLOOKUP(B90,Lookups!$A$3:$I$103,8,FALSE),"") ->  | R90: =VLOOKUP(A90,Trends!$A$3:$H$94,7)+Sens -> 1.045 | S90: 46.03808696 | T90: =IF(B90<=120,VLOOKUP(B90,Lookups!$A$3:$I$103,9,FALSE),"") ->  | U90: =VLOOKUP(A90,Trends!$A$3:$H$94,8)+Sens -> 1.045 | V90: 46.03808696 | AH90: =IF($B90<121,VLOOKUP($B90,Lookups!A:F,6)*(1-VLOOKUP($B90,Lookups!$N$3:$P$103,2))^($A90-$A$3),"") ->  | AI90: =IF($B90<121,VLOOKUP($B90,Lookups!A:G,7)*(1-VLOOKUP($B90,Lookups!$N$3:$P$103,3))^($A90-$A$3),"") -> 
A91: 2106 | B91: 168 | D91: =VLOOKUP(B91,Lookups!A:B,2) -> 16185.63 | E91: =VLOOKUP(B91,Lookups!A:C,3) -> 1506.57 | G91: =VLOOKUP(B91,Lookups!A:D,4) -> 153028.08 | H91: =VLOOKUP(B91,Lookups!A:E,5) -> 75893.55 | J91: =VLOOKUP(A91,Trends!$A$3:$H$94,IF(ExFlg=0,4,2))+Sens -> 1.059 | K91: 188.9571285 | L91: =VLOOKUP(A91,Trends!$A$3:$H$94,IF(ExFlg=0,5,3))+Sens -> 1.047 | M91: 110.6932879 | N91: =VLOOKUP(A91,Trends!$A$3:$H$94,6)+Sens -> 1.0475 | O91: 70.88668352 | Q91: =IF(B91<=120,VLOOKUP(B91,Lookups!$A$3:$I$103,8,FALSE),"") ->  | R91: =VLOOKUP(A91,Trends!$A$3:$H$94,7)+Sens -> 1.045 | S91: 48.10980087 | T91: =IF(B91<=120,VLOOKUP(B91,Lookups!$A$3:$I$103,9,FALSE),"") ->  | U91: =VLOOKUP(A91,Trends!$A$3:$H$94,8)+Sens -> 1.045 | V91: 48.10980087 | AH91: =IF($B91<121,VLOOKUP($B91,Lookups!A:F,6)*(1-VLOOKUP($B91,Lookups!$N$3:$P$103,2))^($A91-$A$3),"") ->  | AI91: =IF($B91<121,VLOOKUP($B91,Lookups!A:G,7)*(1-VLOOKUP($B91,Lookups!$N$3:$P$103,3))^($A91-$A$3),"") -> 
A92: 2107 | B92: 169 | D92: =VLOOKUP(B92,Lookups!A:B,2) -> 16185.63 | E92: =VLOOKUP(B92,Lookups!A:C,3) -> 1506.57 | G92: =VLOOKUP(B92,Lookups!A:D,4) -> 153028.08 | H92: =VLOOKUP(B92,Lookups!A:E,5) -> 75893.55 | J92: =VLOOKUP(A92,Trends!$A$3:$H$94,IF(ExFlg=0,4,2))+Sens -> 1.059 | K92: 200.1055991 | L92: =VLOOKUP(A92,Trends!$A$3:$H$94,IF(ExFlg=0,5,3))+Sens -> 1.047 | M92: 115.8958724 | N92: =VLOOKUP(A92,Trends!$A$3:$H$94,6)+Sens -> 1.0475 | O92: 74.25380099 | Q92: =IF(B92<=120,VLOOKUP(B92,Lookups!$A$3:$I$103,8,FALSE),"") ->  | R92: =VLOOKUP(A92,Trends!$A$3:$H$94,7)+Sens -> 1.045 | S92: 50.27474191 | T92: =IF(B92<=120,VLOOKUP(B92,Lookups!$A$3:$I$103,9,FALSE),"") ->  | U92: =VLOOKUP(A92,Trends!$A$3:$H$94,8)+Sens -> 1.045 | V92: 50.27474191 | AH92: =IF($B92<121,VLOOKUP($B92,Lookups!A:F,6)*(1-VLOOKUP($B92,Lookups!$N$3:$P$103,2))^($A92-$A$3),"") ->  | AI92: =IF($B92<121,VLOOKUP($B92,Lookups!A:G,7)*(1-VLOOKUP($B92,Lookups!$N$3:$P$103,3))^($A92-$A$3),"") -> 
A93: 2108 | B93: 170 | D93: =VLOOKUP(B93,Lookups!A:B,2) -> 16185.63 | E93: =VLOOKUP(B93,Lookups!A:C,3) -> 1506.57 | G93: =VLOOKUP(B93,Lookups!A:D,4) -> 153028.08 | H93: =VLOOKUP(B93,Lookups!A:E,5) -> 75893.55 | K93: 211.9118294 | M93: 121.3429784 | O93: 77.78085653 | Q93: =IF(B93<=120,VLOOKUP(B93,Lookups!$A$3:$I$103,8,FALSE),"") ->  | S93: 52.5371053 | T93: =IF(B93<=120,VLOOKUP(B93,Lookups!$A$3:$I$103,9,FALSE),"") ->  | V93: 52.5371053 | AH93: =IF($B93<121,VLOOKUP($B93,Lookups!A:F,6)*(1-VLOOKUP($B93,Lookups!$N$3:$P$103,2))^($A93-$A$3),"") ->  | AI93: =IF($B93<121,VLOOKUP($B93,Lookups!A:G,7)*(1-VLOOKUP($B93,Lookups!$N$3:$P$103,3))^($A93-$A$3),"") -> 
AP95: =SUM(AP3:AP93) -> 366753.9293 | AQ95: Sum
AP96: =B1 -> 1 | AQ96: Count
AP97: =AP95*AP96 -> 366753.9293 | AQ97: Aggregate
AP100: Total OPEB Liability | AQ100: =AP97 -> 366753.9293
AP101: Expected Benefit Payments | AQ101: =SUM(AO3:AP3)*AP96*AM3 -> 24905.79083

Sheet Log (hidden)
A1: EoP = End of Period | B1: Actives Cohort | G1: Inactive Cohorts
A2: BoP = Beginning of Period | B2: 1 | C2: 2 | D2: 3 | E2: 4 | G2: 1 | H2: 2 | I2: 3 | J2: 4
G3: 55-64 | H3: 65-69 | I3: 70-74 | J3: 75+ | L3: Total
A4: Run 1 - EoP Data, BoP Discount Rate, New HC Assumptions
A5: Service Cost (EANC) | L5: =SUM(B5:E5) -> 0
A6: Total OPEB Liability (TOL) | G6: 0 | H6: 0 | I6: 0 | J6: 0 | L6: =SUM(B6:E6,G6:J6) -> 0
A7: Expected Benefit Payments | G7: 0 | H7: 0 | I7: 0 | J7: 0 | L7: =SUM(B7:E7,G7:J7) -> 0
A9: Run 2 - EoP Data, EoP Discount Rate, New HC Assumptions
A10: Service Cost (EANC) | L10: =SUM(B10:E10) -> 0
A11: Total OPEB Liability (TOL) | G11: 0 | H11: 0 | I11: 0 | J11: 0 | L11: =SUM(B11:E11,G11:J11) -> 0
A12: Expected Benefit Payments | G12: 0 | H12: 0 | I12: 0 | J12: 0 | L12: =SUM(B12:E12,G12:J12) -> 0
A14: Run 3 - EoP Data, EoP Discount Rate, New HC Assumptions -1% Sensitvity
A15: Service Cost (EANC) | L15: =SUM(B15:E15) -> 0
A16: Total OPEB Liability (TOL) | G16: 0 | H16: 0 | I16: 0 | J16: 0 | L16: =SUM(B16:E16,G16:J16) -> 0
A17: Expected Benefit Payments | G17: 0 | H17: 0 | I17: 0 | J17: 0 | L17: =SUM(B17:E17,G17:J17) -> 0
A19: Run 4 - EoP Data, EoP Discount Rate, New HC Assumptions +1% Sensitvity
A20: Service Cost (EANC) | L20: =SUM(B20:E20) -> 0
A21: Total OPEB Liability (TOL) | G21: 0 | H21: 0 | I21: 0 | J21: 0 | L21: =SUM(B21:E21,G21:J21) -> 0
A22: Expected Benefit Payments | G22: 0 | H22: 0 | I22: 0 | J22: 0 | L22: =SUM(B22:E22,G22:J22) -> 0
A24: Run 5 - EoP Data, EoP Discount Rate -1% Sensitivity, New HC Assumptions
A25: Service Cost (EANC) | L25: =SUM(B25:E25) -> 0
A26: Total OPEB Liability (TOL) | G26: 0 | H26: 0 | I26: 0 | J26: 0 | L26: =SUM(B26:E26,G26:J26) -> 0
A27: Expected Benefit Payments | G27: 0 | H27: 0 | I27: 0 | J27: 0 | L27: =SUM(B27:E27,G27:J27) -> 0
A28: PVFB
A29: Run 6 - EoP Data, EoP Discount Rate +1% Sensitivity, New HC Assumptions
A30: Service Cost (EANC) | L30: =SUM(B30:E30) -> 0
A31: Total OPEB Liability (TOL) | G31: 0 | H31: 0 | I31: 0 | J31: 0 | L31: =SUM(B31:E31,G31:J31) -> 0
A32: Expected Benefit Payments | G32: 0 | H32: 0 | I32: 0 | J32: 0 | L32: =SUM(B32:E32,G32:J32) -> 0

Sheet Lookups (hidden)
B1: Medical | C1: Medicare | D1: LTC Inst. | E1: LTC Non- | F1: Mortality | G1: Mortality | H1: Institutional LTC Rate | I1: Non-Inst. LTC Rate | K1: 2017 Discount | L1: 0.0358 | O1: 100% Scale BB
A2: Age | B2: Cost | C2: Cost | D2: Cost | E2: Inst. Cost | F2: Male | G2: Female | K2: 2018 Discount | L2: 0.0387 | N2: Age | O2: Male | P2: Female
A3: 20 | B3: 18101.19 | C3: 0 | D3: 194164.67 | E3: 112434.89 | F3: 0.0003305 | G3: 0.000183 | H3: 0.0004 | I3: 0.0022 | N3: 20 | O3: 0.003 | P3: 0.003 | R3: Sources
A4: =1+A3 -> 21 | B4: 18101.19 | C4: 0 | D4: 194164.67 | E4: 112434.89 | F4: 0.00034 | G4: 0.0001855 | H4: 0.0004 | I4: 0.0022 | L4: Int Rt | N4: 21 | O4: 0.003 | P4: 0.003 | R4: Premiums/Costs/Trends
A5: 22 | B5: 18101.19 | C5: 0 | D5: 194164.67 | E5: 112434.89 | F5: 0.000347 | G5: 0.0001885 | H5: 0.0004 | I5: 0.0022 | L5: 0.0358 | N5: 22 | O5: 0.003 | P5: 0.003 | R5: Mortality
A6: 23 | B6: 18101.19 | C6: 0 | D6: 194164.67 | E6: 112434.89 | F6: 0.0003515 | G6: 0.000193 | H6: 0.0004 | I6: 0.0022 | N6: 23 | O6: 0.003 | P6: 0.003
A7: 24 | B7: 18101.19 | C7: 0 | D7: 194164.67 | E7: 112434.89 | F7: 0.0003555 | G7: 0.0001995 | H7: 0.0004 | I7: 0.0022 | L7: Sens | N7: 24 | O7: 0.003 | P7: 0.003
A8: 25 | B8: 18101.19 | C8: 0 | D8: 194164.67 | E8: 112434.89 | F8: 0.000359 | G8: 0.000207 | H8: 0.0004 | I8: 0.0022 | L8: 0 | N8: 25 | O8: 0.003 | P8: 0.003
A9: 26 | B9: 18101.19 | C9: 0 | D9: 194164.67 | E9: 112434.89 | F9: 0.000364 | G9: 0.000217 | H9: 0.0004 | I9: 0.0022 | N9: 26 | O9: 0.003 | P9: 0.003
A10: 27 | B10: 18101.19 | C10: 0 | D10: 194164.67 | E10: 112434.89 | F10: 0.000374 | G10: 0.000229 | H10: 0.0004 | I10: 0.0022 | L10: ExFlg | N10: 27 | O10: 0.003 | P10: 0.003
A11: 28 | B11: 18101.19 | C11: 0 | D11: 194164.67 | E11: 112434.89 | F11: 0.0003915 | G11: 0.0002425 | H11: 0.0004 | I11: 0.0022 | L11: 1 | N11: 28 | O11: 0.003 | P11: 0.003
A12: 29 | B12: 18101.19 | C12: 0 | D12: 194164.67 | E12: 112434.89 | F12: 0.0004225 | G12: 0.0002705 | H12: 0.0004 | I12: 0.0022 | N12: 29 | O12: 0.003 | P12: 0.003
A13: 30 | B13: 18101.19 | C13: 0 | D13: 194164.67 | E13: 112434.89 | F13: 0.000461 | G13: 0.0003115 | H13: 0.0004 | I13: 0.0022 | L13: Valuation Year | N13: 30 | O13: 0.003 | P13: 0.003
A14: 31 | B14: 18101.19 | C14: 0 | D14: 194164.67 | E14: 112434.89 | F14: 0.0005095 | G14: 0.0003525 | H14: 0.0004 | I14: 0.0022 | L14: 2018 | N14: 31 | O14: 0.003 | P14: 0.003
A15: 32 | B15: 18101.19 | C15: 0 | D15: 194164.67 | E15: 112434.89 | F15: 0.000569 | G15: 0.0003925 | H15: 0.0004 | I15: 0.0022 | N15: 32 | O15: 0.003 | P15: 0.003
A16: 33 | B16: 18101.19 | C16: 0 | D16: 194164.67 | E16: 112434.89 | F16: 0.000632 | G16: 0.000431 | H16: 0.0004 | I16: 0.0022 | N16: 33 | O16: 0.003 | P16: 0.003
A17: 34 | B17: 18101.19 | C17: 0 | D17: 194164.67 | E17: 112434.89 | F17: 0.0006975 | G17: 0.0004685 | H17: 0.0004 | I17: 0.0022 | N17: 34 | O17: 0.003 | P17: 0.003
A18: 35 | B18: 18101.19 | C18: 0 | D18: 194164.67 | E18: 112434.89 | F18: 0.0007605 | G18: 0.000506 | H18: 0.0004 | I18: 0.0022 | N18: 35 | O18: 0.003 | P18: 0.003
A19: 36 | B19: 18101.19 | C19: 0 | D19: 194164.67 | E19: 112434.89 | F19: 0.0008225 | G19: 0.000546 | H19: 0.0004 | I19: 0.0022 | N19: 36 | O19: 0.003 | P19: 0.003
A20: 37 | B20: 18101.19 | C20: 0 | D20: 194164.67 | E20: 112434.89 | F20: 0.000882 | G20: 0.0005905 | H20: 0.0004 | I20: 0.0022 | N20: 37 | O20: 0.003 | P20: 0.003
A21: 38 | B21: 18101.19 | C21: 0 | D21: 194164.67 | E21: 112434.89 | F21: 0.000939 | G21: 0.0006415 | H21: 0.0004 | I21: 0.0022 | N21: 38 | O21: 0.003 | P21: 0.003
A22: 39 | B22: 18101.19 | C22: 0 | D22: 194164.67 | E22: 112434.89 | F22: 0.0009975 | G22: 0.000701 | H22: 0.0004 | I22: 0.0022 | N22: 39 | O22: 0.003 | P22: 0.003
A23: 40 | B23: 18101.19 | C23: 0 | D23: 194164.67 | E23: 112434.89 | F23: 0.001059 | G23: 0.00077 | H23: 0.0004 | I23: 0.0022 | N23: 40 | O23: 0.003 | P23: 0.003
A24: 41 | B24: 18101.19 | C24: 0 | D24: 194164.67 | E24: 112434.89 | F24: 0.0011265 | G24: 0.0008475 | H24: 0.0004 | I24: 0.0022 | N24: 41 | O24: 0.003 | P24: 0.003
A25: 42 | B25: 18101.19 | C25: 0 | D25: 194164.67 | E25: 112434.89 | F25: 0.0012025 | G25: 0.0009315 | H25: 0.0004 | I25: 0.0022 | N25: 42 | O25: 0.003 | P25: 0.003
A26: 43 | B26: 18101.19 | C26: 0 | D26: 194164.67 | E26: 112434.89 | F26: 0.00129 | G26: 0.00102 | H26: 0.0004 | I26: 0.0022 | N26: 43 | O26: 0.003 | P26: 0.003
A27: 44 | B27: 18101.19 | C27: 0 | D27: 194164.67 | E27: 112434.89 | F27: 0.001381 | G27: 0.001112 | H27: 0.0004 | I27: 0.0022 | N27: 44 | O27: 0.003 | P27: 0.003
A28: 45 | B28: 18101.19 | C28: 0 | D28: 194164.67 | E28: 112434.89 | F28: 0.001483 | G28: 0.0012075 | H28: 0.0004 | I28: 0.0022 | N28: 45 | O28: 0.003 | P28: 0.003
A29: 46 | B29: 18101.19 | C29: 0 | D29: 194740.58 | E29: 111872.72 | F29: 0.0015955 | G29: 0.0013075 | H29: 0.0005 | I29: 0.0025 | N29: 46 | O29: 0.003 | P29: 0.003
A30: 47 | B30: 18101.19 | C30: 0 | D30: 195316.49 | E30: 111310.55 | F30: 0.0017105 | G30: 0.0014135 | H30: 0.0005 | I30: 0.0027 | N30: 47 | O30: 0.003 | P30: 0.003
A31: 48 | B31: 18101.19 | C31: 0 | D31: 195892.4 | E31: 110748.37 | F31: 0.001834 | G31: 0.001528 | H31: 0.0006 | I31: 0.003 | N31: 48 | O31: 0.003 | P31: 0.003
A32: 49 | B32: 18101.19 | C32: 0 | D32: 196468.31 | E32: 110186.2 | F32: 0.002041 | G32: 0.0016715 | H32: 0.0006 | I32: 0.0033 | N32: 49 | O32: 0.003 | P32: 0.003
A33: 50 | B33: 18101.19 | C33: 0 | D33: 197044.23 | E33: 109624.02 | F33: 0.0022085 | G33: 0.0018335 | H33: 0.0007 | I33: 0.0036 | N33: 50 | O33: 0.003 | P33: 0.003
A34: 51 | B34: 18101.19 | C34: 0 | D34: 197620.14 | E34: 109061.85 | F34: 0.0023935 | G34: 0.0020015 | H34: 0.0008 | I34: 0.0038 | N34: 51 | O34: 0.003 | P34: 0.003
A35: 52 | B35: 18101.19 | C35: 0 | D35: 198196.05 | E35: 108499.67 | F35: 0.002674 | G35: 0.0021935 | H35: 0.0008 | I35: 0.0041 | N35: 52 | O35: 0.003 | P35: 0.003
A36: =1+A35 -> 53 | B36: 18101.19 | C36: 0 | D36: 198771.96 | E36: 107937.5 | F36: 0.00298 | G36: 0.002435 | H36: 0.0009 | I36: 0.0044 | N36: 53 | O36: 0.003 | P36: 0.003
A37: 54 | B37: 18101.19 | C37: 0 | D37: 199347.88 | E37: 107375.32 | F37: 0.0033705 | G37: 0.0027015 | H37: 0.0009 | I37: 0.0046 | N37: 54 | O37: 0.003 | P37: 0.004
A38: 55 | B38: 18636.68 | C38: 0 | D38: 199923.79 | E38: 106813.15 | F38: 0.003737 | G38: 0.0030005 | H38: 0.001 | I38: 0.0049 | N38: 55 | O38: 0.003 | P38: 0.005
A39: 56 | B39: 19188.25 | C39: 0 | D39: 199923.79 | E39: 105929.73 | F39: 0.004214 | G39: 0.0033205 | H39: 0.0011 | I39: 0.0053 | N39: 56 | O39: 0.003 | P39: 0.006
A40: 57 | B40: 19755.92 | C40: 0 | D40: 199923.79 | E40: 105046.32 | F40: 0.0047195 | G40: 0.0036855 | H40: 0.0012 | I40: 0.0057 | N40: 57 | O40: 0.004 | P40: 0.007
A41: 58 | B41: 20697.35 | C41: 0 | D41: 199923.79 | E41: 104162.9 | F41: 0.0052265 | G41: 0.004109 | H41: 0.0013 | I41: 0.0061 | N41: 58 | O41: 0.005 | P41: 0.008
A42: 59 | B42: 21683.47 | C42: 0 | D42: 199923.79 | E42: 103279.48 | F42: 0.00581 | G42: 0.0046185 | H42: 0.0014 | I42: 0.0065 | N42: 59 | O42: 0.006 | P42: 0.009
A43: 60 | B43: 22716.63 | C43: 0 | D43: 199923.79 | E43: 102396.06 | F43: 0.006478 | G43: 0.0052035 | H43: 0.0015 | I43: 0.0069 | N43: 60 | O43: 0.007 | P43: 0.01
A44: 61 | B44: 23799.01 | C44: 0 | D44: 199923.79 | E44: 101512.65 | F44: 0.0072515 | G44: 0.005861 | H44: 0.0016 | I44: 0.0073 | N44: 61 | O44: 0.008 | P44: 0.011
A45: 62 | B45: 24933.11 | C45: 0 | D45: 199923.79 | E45: 100629.23 | F45: 0.0080545 | G45: 0.006545 | H45: 0.0017 | I45: 0.0077 | N45: 62 | O45: 0.009 | P45: 0.012
A46: 63 | B46: 26578.76 | C46: 0 | D46: 196961.95 | E46: 99617.32 | F46: 0.0089685 | G46: 0.007373 | H46: 0.002 | I46: 0.0084 | N46: 63 | O46: 0.01 | P46: 0.012
A47: 64 | B47: 28333.18 | C47: 0 | D47: 194000.12 | E47: 98605.4 | F47: 0.0100065 | G47: 0.0083125 | H47: 0.0023 | I47: 0.0091 | N47: 64 | O47: 0.011 | P47: 0.012
A48: 65 | B48: 13691.25 | C48: 1506.57 | D48: 191038.29 | E48: 97593.49 | F48: 0.011006 | G48: 0.009301 | H48: 0.0026 | I48: 0.0098 | N48: 65 | O48: 0.012 | P48: 0.012
A49: 66 | B49: 13966.78 | C49: 1506.57 | D49: 188076.45 | E49: 96581.57 | F49: 0.0120925 | G49: 0.010303 | H49: 0.0029 | I49: 0.0105 | N49: 66 | O49: 0.013 | P49: 0.012
A50: 67 | B50: 14247.88 | C50: 1506.57 | D50: 185114.62 | E50: 95569.66 | F50: 0.0132715 | G50: 0.0113885 | H50: 0.0032 | I50: 0.0112 | N50: 67 | O50: 0.014 | P50: 0.012
A51: 68 | B51: 14534.58 | C51: 1506.57 | D51: 185443.71 | E51: 96131.83 | F51: 0.0145815 | G51: 0.012715 | H51: 0.0039 | I51: 0.0126 | N51: 68 | O51: 0.015 | P51: 0.012
A52: 69 | B52: 14827.13 | C52: 1506.57 | D52: 185772.8 | E52: 96694.01 | F52: 0.016166 | G52: 0.014211 | H52: 0.0046 | I52: 0.0141 | N52: 69 | O52: 0.015 | P52: 0.012
A53: 70 | B53: 15125.55 | C53: 1506.57 | D53: 186101.9 | E53: 97256.18 | F53: 0.0179345 | G53: 0.0157895 | H53: 0.0052 | I53: 0.0155 | N53: 70 | O53: 0.015 | P53: 0.012
A54: 71 | B54: 15429.82 | C54: 1506.57 | D54: 186430.99 | E54: 97818.36 | F54: 0.020033 | G54: 0.0175565 | H54: 0.0059 | I54: 0.017 | N54: 71 | O54: 0.015 | P54: 0.012
A55: 72 | B55: 15740.38 | C55: 1506.57 | D55: 186760.08 | E55: 98380.53 | F55: 0.022272 | G55: 0.019485 | H55: 0.0066 | I55: 0.0184 | N55: 72 | O55: 0.015 | P55: 0.012
A56: 73 | B56: 15885.54 | C56: 1506.57 | D56: 187418.27 | E56: 99167.58 | F56: 0.024803 | G56: 0.021551 | H56: 0.0082 | I56: 0.0208 | N56: 73 | O56: 0.015 | P56: 0.012
A57: 74 | B57: 16032.1 | C57: 1506.57 | D57: 188076.45 | E57: 99954.62 | F57: 0.027637 | G57: 0.023767 | H57: 0.0099 | I57: 0.0232 | N57: 74 | O57: 0.015 | P57: 0.012
A58: 75 | B58: 16180.05 | C58: 1506.57 | D58: 188734.64 | E58: 100741.67 | F58: 0.03078 | G58: 0.026181 | H58: 0.0115 | I58: 0.0256 | N58: 75 | O58: 0.015 | P58: 0.012
A59: 76 | B59: 16329.26 | C59: 1506.57 | D59: 189392.82 | E59: 101528.71 | F59: 0.0342655 | G59: 0.028848 | H59: 0.0132 | I59: 0.028 | N59: 76 | O59: 0.015 | P59: 0.012
A60: 77 | B60: 16479.86 | C60: 1506.57 | D60: 190051.01 | E60: 102315.75 | F60: 0.0381275 | G60: 0.0318255 | H60: 0.0148 | I60: 0.0304 | N60: 77 | O60: 0.015 | P60: 0.012
A61: 78 | B61: 16507.78 | C61: 1506.57 | D61: 191038.29 | E61: 102315.75 | F61: 0.0423855 | G61: 0.0351585 | H61: 0.0182 | I61: 0.0336 | N61: 78 | O61: 0.015 | P61: 0.012
A62: 79 | B62: 16535.69 | C62: 1506.57 | D62: 192025.56 | E62: 102315.75 | F62: 0.047295 | G62: 0.03889 | H62: 0.0216 | I62: 0.0367 | N62: 79 | O62: 0.015 | P62: 0.012
A63: 80 | B63: 16563.61 | C63: 1506.57 | D63: 193012.84 | E63: 102315.75 | F63: 0.052723 | G63: 0.0430805 | H63: 0.025 | I63: 0.0399 | N63: 80 | O63: 0.015 | P63: 0.012
A64: 81 | B64: 16591.66 | C64: 1506.57 | D64: 194000.12 | E64: 102315.75 | F64: 0.058693 | G64: 0.0477985 | H64: 0.0284 | I64: 0.043 | N64: 81 | O64: 0.015 | P64: 0.012
A65: 82 | B65: 16619.72 | C65: 1506.57 | D65: 194987.4 | E65: 102315.75 | F65: 0.065448 | G65: 0.0531185 | H65: 0.0318 | I65: 0.0462 | N65: 82 | O65: 0.015 | P65: 0.012
A66: 83 | B66: 16556.91 | C66: 1506.57 | D66: 195316.49 | E66: 101753.58 | F66: 0.0728465 | G66: 0.0591295 | H66: 0.0378 | I66: 0.0513 | N66: 83 | O66: 0.015 | P66: 0.012
A67: 84 | B67: 16494.52 | C67: 1506.57 | D67: 195645.58 | E67: 101191.4 | F67: 0.080949 | G67: 0.0659125 | H67: 0.0438 | I67: 0.0565 | N67: 84 | O67: 0.015 | P67: 0.012
A68: =1+A67 -> 85 | B68: 16432.27 | C68: 1506.57 | D68: 195974.68 | E68: 100629.23 | F68: 0.089827 | G68: 0.073513 | H68: 0.0499 | I68: 0.0616 | N68: 85 | O68: 0.015 | P68: 0.012
A69: 86 | B69: 16370.29 | C69: 1506.57 | D69: 196303.77 | E69: 100067.06 | F69: 0.0995495 | G69: 0.081933 | H69: 0.0559 | I69: 0.0668 | N69: 86 | O69: 0.015 | P69: 0.012
A70: 87 | B70: 16308.46 | C70: 1506.57 | D70: 196632.86 | E70: 99504.88 | F70: 0.1121965 | G70: 0.091113 | H70: 0.0619 | I70: 0.0719 | N70: 87 | O70: 0.014 | P70: 0.012
A71: 88 | B71: 16246.91 | C71: 1506.57 | D71: 193012.84 | E71: 96131.83 | F71: 0.126207 | G71: 0.1009215 | H71: 0.072 | I71: 0.0761 | N71: 88 | O71: 0.013 | P71: 0.012
A72: 89 | B72: 16185.63 | C72: 1506.57 | D72: 189392.82 | E72: 92758.79 | F72: 0.140964 | G72: 0.111161 | H72: 0.082 | I72: 0.0803 | N72: 89 | O72: 0.012 | P72: 0.012
A73: 90 | B73: 16185.63 | C73: 1506.57 | D73: 185772.8 | E73: 89385.74 | F73: 0.1569385 | G73: 0.123831 | H73: 0.0921 | I73: 0.0846 | N73: 90 | O73: 0.011 | P73: 0.011
A74: 91 | B74: 16185.63 | C74: 1506.57 | D74: 182152.78 | E74: 86012.69 | F74: 0.174025 | G74: 0.1368815 | H74: 0.1021 | I74: 0.0888 | N74: 91 | O74: 0.01 | P74: 0.01
A75: 92 | B75: 16185.63 | C75: 1506.57 | D75: 178532.76 | E75: 82639.65 | F75: 0.191405 | G75: 0.1500915 | H75: 0.1122 | I75: 0.093 | N75: 92 | O75: 0.009 | P75: 0.009
A76: 93 | B76: 16185.63 | C76: 1506.57 | D76: 173431.83 | E76: 81290.43 | F76: 0.209465 | G76: 0.1632585 | H76: 0.1208 | I76: 0.0925 | N76: 93 | O76: 0.008 | P76: 0.008
A77: 94 | B77: 16185.63 | C77: 1506.57 | D77: 168330.89 | E77: 79941.21 | F77: 0.2280465 | G77: 0.1761955 | H77: 0.1293 | I77: 0.092 | N77: 94 | O77: 0.007 | P77: 0.007
A78: 95 | B78: 16185.63 | C78: 1506.57 | D78: 163229.96 | E78: 78591.99 | F78: 0.247012 | G78: 0.1887185 | H78: 0.1379 | I78: 0.0914 | N78: 95 | O78: 0.006 | P78: 0.006
A79: 96 | B79: 16185.63 | C79: 1506.57 | D79: 158129.02 | E79: 77242.77 | F79: 0.2662535 | G79: 0.200648 | H79: 0.1464 | I79: 0.0909 | N79: 96 | O79: 0.005 | P79: 0.005
A80: 97 | B80: 16185.63 | C80: 1506.57 | D80: 153028.08 | E80: 75893.55 | F80: 0.2856835 | G80: 0.211821 | H80: 0.155 | I80: 0.0904 | N80: 97 | O80: 0.004 | P80: 0.004
A81: 98 | B81: 16185.63 | C81: 1506.57 | D81: 153028.08 | E81: 75893.55 | F81: 0.2997775 | G81: 0.21811 | H81: 0.155 | I81: 0.0904 | N81: 98 | O81: 0.004 | P81: 0.004
A82: 99 | B82: 16185.63 | C82: 1506.57 | D82: 153028.08 | E82: 75893.55 | F82: 0.3192225 | G82: 0.2284555 | H82: 0.155 | I82: 0.0904 | N82: 99 | O82: 0.003 | P82: 0.003
A83: 100 | B83: 16185.63 | C83: 1506.57 | D83: 153028.08 | E83: 75893.55 | F83: 0.3324705 | G83: 0.2365225 | H83: 0.155 | I83: 0.0904 | N83: 100 | O83: 0.003 | P83: 0.003
A84: 101 | B84: 16185.63 | C84: 1506.57 | D84: 153028.08 | E84: 75893.55 | F84: 0.3509215 | G84: 0.251059 | H84: 0.155 | I84: 0.0904 | N84: 101 | O84: 0.002 | P84: 0.002
A85: 102 | B85: 16185.63 | C85: 1506.57 | D85: 153028.08 | E85: 75893.55 | F85: 0.3620315 | G85: 0.262903 | H85: 0.155 | I85: 0.0904 | N85: 102 | O85: 0.002 | P85: 0.002
A86: 103 | B86: 16185.63 | C86: 1506.57 | D86: 153028.08 | E86: 75893.55 | F86: 0.377918 | G86: 0.2809795 | H86: 0.155 | I86: 0.0904 | N86: 103 | O86: 0.001 | P86: 0.001
A87: 104 | B87: 16185.63 | C87: 1506.57 | D87: 153028.08 | E87: 75893.55 | F87: 0.3845325 | G87: 0.295101 | H87: 0.155 | I87: 0.0904 | N87: 104 | O87: 0.001 | P87: 0.001
A88: 105 | B88: 16185.63 | C88: 1506.57 | D88: 153028.08 | E88: 75893.55 | F88: 0.3960015 | G88: 0.315268 | H88: 0.155 | I88: 0.0904 | N88: 105 | O88: 0 | P88: 0
A89: 106 | B89: 16185.63 | C89: 1506.57 | D89: 153028.08 | E89: 75893.55 | F89: 0.398943 | G89: 0.330083 | H89: 0.155 | I89: 0.0904 | N89: 106 | O89: 0 | P89: 0
A90: 107 | B90: 16185.63 | C90: 1506.57 | D90: 153028.08 | E90: 75893.55 | F90: 0.4 | G90: 0.3444925 | H90: 0.155 | I90: 0.0904 | N90: 107 | O90: 0 | P90: 0
A91: 108 | B91: 16185.63 | C91: 1506.57 | D91: 153028.08 | E91: 75893.55 | F91: 0.4 | G91: 0.3580805 | H91: 0.155 | I91: 0.0904 | N91: 108 | O91: 0 | P91: 0
A92: 109 | B92: 16185.63 | C92: 1506.57 | D92: 153028.08 | E92: 75893.55 | F92: 0.4 | G92: 0.3704315 | H92: 0.155 | I92: 0.0904 | N92: 109 | O92: 0 | P92: 0
A93: 110 | B93: 16185.63 | C93: 1506.57 | D93: 153028.08 | E93: 75893.55 | F93: 0.4 | G93: 0.3811305 | H93: 0.155 | I93: 0.0904 | N93: 110 | O93: 0 | P93: 0
A94: 111 | B94: 16185.63 | C94: =C93 -> 1506.57 | D94: 153028.08 | E94: 75893.55 | F94: 0.4 | G94: 0.389761 | H94: =H93 -> 0.155 | I94: =I93 -> 0.0904 | N94: 111 | O94: 0 | P94: 0
A95: 112 | B95: 16185.63 | C95: =C94 -> 1506.57 | D95: =D94 -> 153028.08 | E95: =E94 -> 75893.55 | F95: 0.4 | G95: 0.3959075 | H95: =H94 -> 0.155 | I95: =I94 -> 0.0904 | N95: 112 | O95: 0 | P95: 0
A96: 113 | B96: 16185.63 | C96: 1506.57 | D96: 153028.08 | E96: 75893.55 | F96: 0.4 | G96: 0.399154 | H96: 0.155 | I96: 0.0904 | N96: 113 | O96: 0 | P96: 0
A97: 114 | B97: 16185.63 | C97: 1506.57 | D97: 153028.08 | E97: 75893.55 | F97: 0.4 | G97: 0.4 | H97: 0.155 | I97: 0.0904 | N97: 114 | O97: 0 | P97: 0
A98: 115 | B98: 16185.63 | C98: 1506.57 | D98: 153028.08 | E98: 75893.55 | F98: 0.4 | G98: 0.4 | H98: 0.155 | I98: 0.0904 | N98: 115 | O98: 0 | P98: 0
A99: 116 | B99: 16185.63 | C99: 1506.57 | D99: 153028.08 | E99: 75893.55 | F99: 0.4 | G99: 0.4 | H99: 0.155 | I99: 0.0904 | N99: 116 | O99: 0 | P99: 0
A100: 117 | B100: 16185.63 | C100: 1506.57 | D100: 153028.08 | E100: 75893.55 | F100: 0.4 | G100: 0.4 | H100: 0.155 | I100: 0.0904 | N100: 117 | O100: 0 | P100: 0
A101: 118 | B101: 16185.63 | C101: 1506.57 | D101: 153028.08 | E101: 75893.55 | F101: 0.7 | G101: 0.7 | H101: 0.155 | I101: 0.0904 | N101: 118 | O101: 0 | P101: 0
A102: 119 | B102: 16185.63 | C102: 1506.57 | D102: 153028.08 | E102: 75893.55 | F102: 0.7 | G102: 1 | H102: 0.155 | I102: 0.0904 | N102: 119 | O102: 0 | P102: 0
A103: 120 | B103: 16185.63 | C103: 1506.57 | D103: 153028.08 | E103: 75893.55 | F103: 1 | G103: 1 | H103: 0.155 | I103: 0.0904 | N103: 120 | O103: 0 | P103: 0

Sheet Trends (hidden)
A1: Beginning of | B1: Costs Trends
A2: Year | B2: Medical Excise Tax - Age<65 | C2: Medical Excise Tax - Age>=65 | D2: Medical No Excise Tax - Age<65 | E2: Medical No Excise Tax - Age>=65 | F2: Medicare Part B | G2: LTC Inst. | H2: LTC Non-Inst.
A3: 2018 | B3: 1.184 | C3: 1.123 | D3: 1.062 | E3: 1.066 | F3: 1.0565 | G3: 1.045 | H3: 1.045
A4: =1+A3 -> 2019 | B4: 1.161 | C4: 1.111 | D4: 1.056 | E4: 1.057 | F4: 1.057 | G4: 1.045 | H4: 1.045
A5: 2020 | B5: 1.057 | C5: 1.06 | D5: 1.053 | E5: 1.054 | F5: 1.057 | G5: 1.045 | H5: 1.045
A6: 2021 | B6: 1.057 | C6: 1.06 | D6: 1.054 | E6: 1.054 | F6: 1.0585 | G6: 1.045 | H6: 1.045
A7: 2022 | B7: 1.057 | C7: 1.06 | D7: 1.054 | E7: 1.054 | F7: 1.0585 | G7: 1.045 | H7: 1.045
A8: 2023 | B8: 1.058 | C8: 1.061 | D8: 1.055 | E8: 1.055 | F8: 1.0585 | G8: 1.045 | H8: 1.045
A9: 2024 | B9: 1.059 | C9: 1.061 | D9: 1.055 | E9: 1.055 | F9: 1.0585 | G9: 1.045 | H9: 1.045
A10: 2025 | B10: 1.059 | C10: 1.062 | D10: 1.056 | E10: 1.056 | F10: 1.0585 | G10: 1.045 | H10: 1.045
A11: 2026 | B11: 1.059 | C11: 1.062 | D11: 1.056 | E11: 1.056 | F11: 1.0585 | G11: 1.045 | H11: 1.045
A12: 2027 | B12: 1.059 | C12: 1.062 | D12: 1.056 | E12: 1.056 | F12: 1.0585 | G12: 1.045 | H12: 1.045
A13: 2028 | B13: 1.059 | C13: 1.062 | D13: 1.056 | E13: 1.056 | F13: 1.0585 | G13: 1.045 | H13: 1.045
A14: 2029 | B14: 1.059 | C14: 1.062 | D14: 1.056 | E14: 1.056 | F14: 1.056 | G14: 1.045 | H14: 1.045
A15: 2030 | B15: 1.059 | C15: 1.062 | D15: 1.056 | E15: 1.056 | F15: 1.053 | G15: 1.045 | H15: 1.045
A16: 2031 | B16: 1.059 | C16: 1.062 | D16: 1.056 | E16: 1.057 | F16: 1.053 | G16: 1.045 | H16: 1.045
A17: 2032 | B17: 1.059 | C17: 1.062 | D17: 1.056 | E17: 1.057 | F17: 1.053 | G17: 1.045 | H17: 1.045
A18: 2033 | B18: 1.059 | C18: 1.062 | D18: 1.056 | E18: 1.057 | F18: 1.053 | G18: 1.045 | H18: 1.045
A19: 2034 | B19: 1.059 | C19: 1.062 | D19: 1.056 | E19: 1.057 | F19: 1.053 | G19: 1.045 | H19: 1.045
A20: 2035 | B20: 1.059 | C20: 1.062 | D20: 1.056 | E20: 1.057 | F20: 1.053 | G20: 1.045 | H20: 1.045
A21: 2036 | B21: 1.059 | C21: 1.062 | D21: 1.056 | E21: 1.057 | F21: 1.053 | G21: 1.045 | H21: 1.045
A22: 2037 | B22: 1.059 | C22: 1.062 | D22: 1.056 | E22: 1.057 | F22: 1.053 | G22: 1.045 | H22: 1.045
A23: 2038 | B23: 1.059 | C23: 1.062 | D23: 1.056 | E23: 1.057 | F23: 1.053 | G23: 1.045 | H23: 1.045
A24: 2039 | B24: 1.059 | C24: 1.061 | D24: 1.056 | E24: 1.057 | F24: 1.0505 | G24: 1.045 | H24: 1.045
A25: 2040 | B25: 1.059 | C25: 1.06 | D25: 1.056 | E25: 1.056 | F25: 1.0485 | G25: 1.045 | H25: 1.045
A26: 2041 | B26: 1.059 | C26: 1.059 | D26: 1.056 | E26: 1.056 | F26: 1.0485 | G26: 1.045 | H26: 1.045
A27: 2042 | B27: 1.059 | C27: 1.059 | D27: 1.056 | E27: 1.055 | F27: 1.0485 | G27: 1.045 | H27: 1.045
A28: 2043 | B28: 1.059 | C28: 1.058 | D28: 1.056 | E28: 1.055 | F28: 1.0485 | G28: 1.045 | H28: 1.045
A29: 2044 | B29: 1.059 | C29: 1.058 | D29: 1.056 | E29: 1.055 | F29: 1.0485 | G29: 1.045 | H29: 1.045
A30: 2045 | B30: 1.059 | C30: 1.058 | D30: 1.056 | E30: 1.055 | F30: 1.0485 | G30: 1.045 | H30: 1.045
A31: 2046 | B31: 1.059 | C31: 1.058 | D31: 1.056 | E31: 1.055 | F31: 1.0485 | G31: 1.045 | H31: 1.045
A32: 2047 | B32: 1.059 | C32: 1.057 | D32: 1.056 | E32: 1.054 | F32: 1.0485 | G32: 1.045 | H32: 1.045
A33: 2048 | B33: 1.059 | C33: 1.057 | D33: 1.056 | E33: 1.054 | F33: 1.0485 | G33: 1.045 | H33: 1.045
A34: 2049 | B34: 1.059 | C34: 1.057 | D34: 1.056 | E34: 1.054 | F34: 1.048 | G34: 1.045 | H34: 1.045
A35: 2050 | B35: 1.059 | C35: 1.057 | D35: 1.056 | E35: 1.054 | F35: 1.0475 | G35: 1.045 | H35: 1.045
A36: 2051 | B36: 1.059 | C36: 1.057 | D36: 1.056 | E36: 1.054 | F36: 1.0475 | G36: 1.045 | H36: 1.045
A37: =1+A36 -> 2052 | B37: 1.059 | C37: 1.056 | D37: 1.056 | E37: 1.054 | F37: 1.0475 | G37: 1.045 | H37: 1.045
A38: 2053 | B38: 1.059 | C38: 1.056 | D38: 1.056 | E38: 1.054 | F38: 1.0475 | G38: 1.045 | H38: 1.045
A39: 2054 | B39: 1.059 | C39: 1.056 | D39: 1.056 | E39: 1.054 | F39: 1.0475 | G39: 1.045 | H39: 1.045
A40: 2055 | B40: 1.059 | C40: 1.056 | D40: 1.056 | E40: 1.054 | F40: 1.0475 | G40: 1.045 | H40: 1.045
A41: 2056 | B41: 1.059 | C41: 1.056 | D41: 1.056 | E41: 1.054 | F41: 1.0475 | G41: 1.045 | H41: 1.045
A42: 2057 | B42: 1.059 | C42: 1.056 | D42: 1.056 | E42: 1.054 | F42: 1.0475 | G42: 1.045 | H42: 1.045
A43: 2058 | B43: 1.059 | C43: 1.056 | D43: 1.056 | E43: 1.054 | F43: 1.0475 | G43: 1.045 | H43: 1.045
A44: 2059 | B44: 1.059 | C44: 1.056 | D44: 1.056 | E44: 1.054 | F44: 1.0475 | G44: 1.045 | H44: 1.045
A45: 2060 | B45: 1.059 | C45: 1.055 | D45: 1.056 | E45: 1.053 | F45: 1.0475 | G45: 1.045 | H45: 1.045
A46: 2061 | B46: 1.059 | C46: 1.055 | D46: 1.056 | E46: 1.053 | F46: 1.0475 | G46: 1.045 | H46: 1.045
A47: 2062 | B47: 1.059 | C47: 1.055 | D47: 1.056 | E47: 1.053 | F47: 1.0475 | G47: 1.045 | H47: 1.045
A48: 2063 | B48: 1.059 | C48: 1.055 | D48: 1.056 | E48: 1.053 | F48: 1.0475 | G48: 1.045 | H48: 1.045
A49: 2064 | B49: 1.059 | C49: 1.054 | D49: 1.056 | E49: 1.053 | F49: 1.0475 | G49: 1.045 | H49: 1.045
A50: 2065 | B50: 1.059 | C50: 1.054 | D50: 1.056 | E50: 1.052 | F50: 1.0475 | G50: 1.045 | H50: 1.045
A51: 2066 | B51: 1.059 | C51: 1.053 | D51: 1.056 | E51: 1.051 | F51: 1.0475 | G51: 1.045 | H51: 1.045
A52: 2067 | B52: 1.059 | C52: 1.052 | D52: 1.056 | E52: 1.05 | F52: 1.0475 | G52: 1.045 | H52: 1.045
A53: 2068 | B53: 1.059 | C53: 1.051 | D53: 1.056 | E53: 1.05 | F53: 1.0475 | G53: 1.045 | H53: 1.045
A54: 2069 | B54: 1.059 | C54: 1.05 | D54: 1.056 | E54: 1.049 | F54: 1.0475 | G54: 1.045 | H54: 1.045
A55: 2070 | B55: 1.059 | C55: 1.05 | D55: 1.056 | E55: 1.048 | F55: 1.0475 | G55: 1.045 | H55: 1.045
A56: 2071 | B56: 1.059 | C56: 1.049 | D56: 1.056 | E56: 1.048 | F56: 1.0475 | G56: 1.045 | H56: 1.045
A57: 2072 | B57: 1.059 | C57: 1.048 | D57: 1.056 | E57: 1.047 | F57: 1.0475 | G57: 1.045 | H57: 1.045
A58: 2073 | B58: 1.059 | C58: 1.047 | D58: 1.056 | E58: 1.046 | F58: 1.0475 | G58: 1.045 | H58: 1.045
A59: 2074 | B59: 1.059 | C59: 1.047 | D59: 1.056 | E59: 1.046 | F59: 1.0475 | G59: 1.045 | H59: 1.045
A60: 2075 | B60: 1.059 | C60: 1.047 | D60: 1.056 | E60: 1.046 | F60: 1.0475 | G60: 1.045 | H60: 1.045
A61: 2076 | B61: 1.059 | C61: 1.047 | D61: 1.056 | E61: 1.046 | F61: 1.0475 | G61: 1.045 | H61: 1.045
A62: 2077 | B62: 1.059 | C62: 1.047 | D62: 1.056 | E62: 1.046 | F62: 1.0475 | G62: 1.045 | H62: 1.045
A63: 2078 | B63: 1.059 | C63: 1.047 | D63: 1.056 | E63: 1.046 | F63: 1.0475 | G63: 1.045 | H63: 1.045
A64: 2079 | B64: 1.059 | C64: 1.047 | D64: 1.056 | E64: 1.046 | F64: 1.0475 | G64: 1.045 | H64: 1.045
A65: 2080 | B65: 1.059 | C65: 1.047 | D65: 1.056 | E65: 1.046 | F65: 1.0475 | G65: 1.045 | H65: 1.045
A66: 2081 | B66: 1.059 | C66: 1.047 | D66: 1.056 | E66: 1.046 | F66: 1.0475 | G66: 1.045 | H66: 1.045
A67: 2082 | B67: 1.059 | C67: 1.047 | D67: 1.056 | E67: 1.046 | F67: 1.0475 | G67: 1.045 | H67: 1.045
A68: 2083 | B68: 1.059 | C68: 1.047 | D68: 1.056 | E68: 1.046 | F68: 1.0475 | G68: 1.045 | H68: 1.045
A69: =1+A68 -> 2084 | B69: 1.059 | C69: 1.047 | D69: 1.056 | E69: 1.046 | F69: 1.0475 | G69: 1.045 | H69: 1.045
A70: 2085 | B70: 1.059 | C70: 1.047 | D70: 1.056 | E70: 1.046 | F70: 1.0475 | G70: 1.045 | H70: 1.045
A71: 2086 | B71: 1.059 | C71: 1.047 | D71: 1.056 | E71: 1.046 | F71: 1.0475 | G71: 1.045 | H71: 1.045
A72: 2087 | B72: 1.059 | C72: 1.047 | D72: 1.056 | E72: 1.046 | F72: 1.0475 | G72: 1.045 | H72: 1.045
A73: 2088 | B73: 1.059 | C73: 1.047 | D73: 1.056 | E73: 1.046 | F73: 1.0475 | G73: 1.045 | H73: 1.045
A74: 2089 | B74: 1.059 | C74: 1.047 | D74: 1.056 | E74: 1.046 | F74: 1.0475 | G74: 1.045 | H74: 1.045
A75: 2090 | B75: 1.059 | C75: 1.047 | D75: 1.056 | E75: 1.046 | F75: 1.0475 | G75: 1.045 | H75: 1.045
A76: 2091 | B76: 1.059 | C76: 1.047 | D76: 1.056 | E76: 1.046 | F76: 1.0475 | G76: 1.045 | H76: 1.045
A77: 2092 | B77: 1.059 | C77: 1.047 | D77: 1.056 | E77: 1.046 | F77: 1.0475 | G77: 1.045 | H77: 1.045
A78: 2093 | B78: 1.059 | C78: 1.047 | D78: 1.056 | E78: 1.046 | F78: 1.0475 | G78: 1.045 | H78: 1.045
A79: 2094 | B79: 1.059 | C79: 1.047 | D79: 1.056 | E79: 1.046 | F79: 1.0475 | G79: 1.045 | H79: 1.045
A80: 2095 | B80: 1.059 | C80: 1.047 | D80: 1.056 | E80: 1.046 | F80: 1.0475 | G80: 1.045 | H80: 1.045
A81: 2096 | B81: 1.059 | C81: 1.047 | D81: 1.056 | E81: 1.046 | F81: 1.0475 | G81: 1.045 | H81: 1.045
A82: 2097 | B82: 1.059 | C82: 1.047 | D82: 1.056 | E82: 1.046 | F82: 1.0475 | G82: 1.045 | H82: 1.045
A83: 2098 | B83: 1.059 | C83: 1.047 | D83: 1.056 | E83: 1.046 | F83: 1.0475 | G83: 1.045 | H83: 1.045
A84: 2099 | B84: 1.059 | C84: 1.047 | D84: 1.056 | E84: 1.046 | F84: 1.0475 | G84: 1.045 | H84: 1.045
A85: 2100 | B85: 1.059 | C85: 1.047 | D85: 1.056 | E85: 1.046 | F85: 1.0475 | G85: 1.045 | H85: 1.045
A86: 2101 | B86: 1.059 | C86: 1.047 | D86: 1.056 | E86: 1.046 | F86: 1.0475 | G86: 1.045 | H86: 1.045
A87: 2102 | B87: 1.059 | C87: 1.047 | D87: 1.056 | E87: 1.046 | F87: 1.0475 | G87: 1.045 | H87: 1.045
A88: 2103 | B88: 1.059 | C88: 1.047 | D88: 1.056 | E88: 1.046 | F88: 1.0475 | G88: 1.045 | H88: 1.045
A89: 2104 | B89: 1.059 | C89: 1.047 | D89: 1.056 | E89: 1.046 | F89: 1.0475 | G89: 1.045 | H89: 1.045
A90: 2105 | B90: 1.059 | C90: 1.047 | D90: 1.056 | E90: 1.046 | F90: 1.0475 | G90: 1.045 | H90: 1.045
A91: 2106 | B91: 1.059 | C91: 1.047 | D91: 1.056 | E91: 1.046 | F91: 1.0475 | G91: 1.045 | H91: 1.045
A92: 2107 | B92: 1.059 | C92: 1.047 | D92: 1.056 | E92: 1.046 | F92: 1.0475 | G92: 1.045 | H92: 1.045
A93: 2108 | B93: 1.059 | C93: 1.047 | D93: 1.056 | E93: 1.046 | F93: 1.0475 | G93: 1.045 | H93: 1.045
A94: 2109 | B94: 1.059 | C94: 1.047 | D94: 1.056 | E94: 1.046 | F94: 1.0475 | G94: 1.045 | H94: 1.045
